 Batch Number,Vendor Name,Invoice Number, Line,Line Amount,Account Description,Issue Date ,Total Amount Paid
139393,THOMPSONS=====================,7813,2,"2,500.00",CLAIMANT COSTS AGREED,01/11/11,"2,500.00"
201011C,HAZLEMERE WINDOW CO.LTD,0000022589,1,"63,827.50",DEVELOPMENT EXP - CONTRACTORS,03/11/11,"63,827.50"
011111A,FAITHORN FARRELL TIMMS========,005020,1,"1,090.00",STRATEGIC (NON CYCLICAL),03/11/11,"1,090.00"
011111A,FAITHORN FARRELL TIMMS========,005196,1,450.00,STRATEGIC (NON CYCLICAL),03/11/11,"2,423.00"
011111A,FAITHORN FARRELL TIMMS========,005196,2,"1,973.00",STRATEGIC (NON CYCLICAL),03/11/11,
011111A,FAITHORN FARRELL TIMMS========,005386,1,"6,387.30",STRATEGIC (NON CYCLICAL),03/11/11,"6,387.30"
011111A,FAITHORN FARRELL TIMMS========,006060,1,"4,150.00",STRATEGIC (NON CYCLICAL),03/11/11,"4,815.52"
011111A,FAITHORN FARRELL TIMMS========,006060,2,665.52,STRATEGIC (NON CYCLICAL),03/11/11,
311011C,H J HALL & SON================,100614,1,656.21,UNIFORMS - POMS,03/11/11,656.21
281011G,*SPRUE SAFETY PRODUCTS LTD====,1022815,1,"1,264.00",FIRE DETECTORS,03/11/11,"1,264.00"
139393,MISS NATASHA JOFFE============,104009*,1,"1,000.00",COUNSELS FEES,03/11/11,"1,000.00"
171011C,A M SLASKI====================,1044,1,584.00,ASSESSMENTS,03/11/11,584.00
800004943,JAMES HUNTER (OUTFITTERS) LTD=,104653,1,480.00,UNIFORMS - POMS,03/11/11,840.00
800004943,JAMES HUNTER (OUTFITTERS) LTD=,104653,2,120.00,UNIFORMS - POMS,03/11/11,
800004943,JAMES HUNTER (OUTFITTERS) LTD=,104653,3,120.00,UNIFORMS - POMS,03/11/11,
800004943,JAMES HUNTER (OUTFITTERS) LTD=,104653,4,120.00,UNIFORMS - POMS,03/11/11,
181011A,ATKINS LIMITED================,11031674,1,"20,582.50",MAINTENANCE & SUPPORT,03/11/11,"20,582.50"
181011A,ATKINS LIMITED================,11031675,1,"21,743.00",MAINTENANCE & SUPPORT,03/11/11,"21,743.00"
311011A,GAS CONTROL EQUIPMENT LTD=====,11103402,1,875.00,TRAINING & CONFERENCES,03/11/11,875.00
311011A,GAS CONTROL EQUIPMENT LTD=====,11103403,1,875.00,TRAINING & CONFERENCES,03/11/11,875.00
181011A,BEAUMONT LTD.,1177,1,"5,285.76",STRATEGIC (CYCLICAL),03/11/11,"5,285.76"
181011A,BEAUMONT LTD.,1178,1,"4,571.47",STRATEGIC (CYCLICAL),03/11/11,"4,571.47"
271011C,RICHARD EDWARD LTD============,123716,1,"1,161.00",PRINTING,03/11/11,"1,161.00"
211011A,TAQA PROFESSIONAL DEVELOPMENT,1318,1,"3,300.00",TRAINING & CONFERENCES,03/11/11,"3,300.00"
311011A,RESPIREX======================,136186,1,"1,482.50",PROTECTIVE EQUIPT - PARTS,03/11/11,"1,482.50"
311011A,RESPIREX======================,136187,1,39.67,REPAIR & MAINTENANCE,03/11/11,602.77
311011A,RESPIREX======================,136187,2,21.67,REPAIR & MAINTENANCE,03/11/11,
311011A,RESPIREX======================,136187,3,48.67,REPAIR & MAINTENANCE,03/11/11,
311011A,RESPIREX======================,136187,4,255.74,REPAIR & MAINTENANCE,03/11/11,
311011A,RESPIREX======================,136187,5,237.02,REPAIR & MAINTENANCE,03/11/11,
281011C,H FINE & SON LTD==============,136541,1,950.00,GENERAL CONSUMABLES,03/11/11,950.00
261011A,AIRSERVICES(UK)===============,15086,1,715.00,REPAIR & MAINTENANCE,03/11/11,"1,114.00"
261011A,AIRSERVICES(UK)===============,15086,2,234.00,REPAIR & MAINTENANCE,03/11/11,
261011A,AIRSERVICES(UK)===============,15086,3,52.00,REPAIR & MAINTENANCE,03/11/11,
261011A,AIRSERVICES(UK)===============,15086,4,48.00,REPAIR & MAINTENANCE,03/11/11,
261011A,AIRSERVICES(UK)===============,15086,6,52.00,REPAIR & MAINTENANCE,03/11/11,
261011A,AIRSERVICES(UK)===============,15086,7,13.00,REPAIR & MAINTENANCE,03/11/11,
271011C,DRAIN CONTROL=================,17857,1,600.00,TACTICAL DAY TO DAY,03/11/11,600.00
141011C,GREATER LONDON AUTHORITY======,1800001949,1,"45,951.50",GENERAL,03/11/11,"45,951.50"
281011G,COMMUNITIES & LOCAL GOVERNMENT,1800016095,1,"94,738.98",RADIO,03/11/11,"94,738.98"
281011G,COMMUNITIES & LOCAL GOVERNMENT,1800016231,1,"9,055.00",RADIO,03/11/11,"105,654.52"
281011G,COMMUNITIES & LOCAL GOVERNMENT,1800016231,2,"96,599.52",RADIO,03/11/11,
311011A,ASIAN FIRE SERVICE ASSOCIATION,20,1,800.00,SUBSCRIPTIONS,03/11/11,800.00
191011F,PR ACADEMY,2160,1,995.00,TRAINING & CONFERENCES,03/11/11,995.00
271011C,DICKINSON DEES================,249111,1,405.00,PROFESSIONAL SERVICES,03/11/11,"1,884.90"
271011C,DICKINSON DEES================,249111,2,"1,479.90",PROFESSIONAL SERVICES,03/11/11,
800004829,ADECCO UK LIMITED=============,25779800,1,650.72,FRS STAFF AGENCY,03/11/11,650.72
800004830,ADECCO UK LIMITED=============,25779801,1,650.72,FRS STAFF AGENCY,03/11/11,650.72
800004737,ADECCO UK LIMITED=============,25783196,1,744.10,FRS STAFF AGENCY,03/11/11,744.10
800004996,ADECCO UK LIMITED=============,25789962,1,680.32,FRS STAFF AGENCY,03/11/11,680.32
800004997,ADECCO UK LIMITED=============,25789963,1,602.00,FRS STAFF AGENCY,03/11/11,602.00
800004998,ADECCO UK LIMITED=============,25789964,1,759.15,FRS STAFF AGENCY,03/11/11,759.15
800005002,ADECCO UK LIMITED=============,25789968,1,946.75,FRS STAFF AGENCY,03/11/11,946.75
800005005,ADECCO UK LIMITED=============,25789971,1,595.28,FRS STAFF AGENCY,03/11/11,595.28
800005006,ADECCO UK LIMITED=============,25789972,1,500.61,FRS STAFF AGENCY,03/11/11,500.61
800005008,ADECCO UK LIMITED=============,25789974,1,"1,971.00",FRS STAFF AGENCY,03/11/11,"1,971.00"
800005009,ADECCO UK LIMITED=============,25789975,1,749.70,FRS STAFF AGENCY,03/11/11,749.70
800005010,ADECCO UK LIMITED=============,25789976,1,528.39,FRS STAFF AGENCY,03/11/11,528.39
800005014,ADECCO UK LIMITED=============,25789980,1,530.95,FRS STAFF AGENCY,03/11/11,530.95
800005015,ADECCO UK LIMITED=============,25789981,1,530.95,FRS STAFF AGENCY,03/11/11,530.95
800005017,ADECCO UK LIMITED=============,25789983,1,602.00,FRS STAFF AGENCY,03/11/11,602.00
800005018,ADECCO UK LIMITED=============,25789984,1,"1,426.25",FRS STAFF AGENCY,03/11/11,"1,426.25"
800005022,ADECCO UK LIMITED=============,25789988,1,548.80,FRS STAFF AGENCY,03/11/11,548.80
800005023,ADECCO UK LIMITED=============,25789989,1,578.20,FRS STAFF AGENCY,03/11/11,578.20
800005026,ADECCO UK LIMITED=============,25789992,1,507.50,FRS STAFF AGENCY,03/11/11,507.50
800005033,ADECCO UK LIMITED=============,25790000,1,933.10,FRS STAFF AGENCY,03/11/11,933.10
800005035,ADECCO UK LIMITED=============,25790002,1,"1,024.75",FRS STAFF AGENCY,03/11/11,"1,024.75"
800005039,ADECCO UK LIMITED=============,25790006,1,530.95,FRS STAFF AGENCY,03/11/11,530.95
800005042,ADECCO UK LIMITED=============,25790009,1,578.20,FRS STAFF AGENCY,03/11/11,578.20
800005053,ADECCO UK LIMITED=============,25794222,1,"1,909.45",FRS STAFF AGENCY,03/11/11,"1,909.45"
800005054,ADECCO UK LIMITED=============,25794223,1,"1,553.50",FRS STAFF AGENCY,03/11/11,"1,553.50"
800005055,ADECCO UK LIMITED=============,25794224,1,714.79,FRS STAFF AGENCY,03/11/11,714.79
800005056,ADECCO UK LIMITED=============,25794225,1,"1,962.75",FRS STAFF AGENCY,03/11/11,"1,962.75"
800005057,ADECCO UK LIMITED=============,25794226,1,860.00,FRS STAFF AGENCY,03/11/11,860.00
800005058,ADECCO UK LIMITED=============,25794227,1,"1,290.00",FRS STAFF AGENCY,03/11/11,"1,290.00"
800005059,ADECCO UK LIMITED=============,25794228,1,"1,290.00",FRS STAFF AGENCY,03/11/11,"1,290.00"
800005070,ADECCO UK LIMITED=============,25794239,1,"1,230.78",FRS STAFF AGENCY,03/11/11,"1,230.78"
800005071,ADECCO UK LIMITED=============,25794240,1,662.10,FRS STAFF AGENCY,03/11/11,662.10
800005072,ADECCO UK LIMITED=============,25794241,1,"1,198.53",FRS STAFF AGENCY,03/11/11,"1,198.53"
800005073,ADECCO UK LIMITED=============,25794242,1,"1,800.00",FRS STAFF AGENCY,03/11/11,"1,800.00"
800005074,ADECCO UK LIMITED=============,25794243,1,"2,250.00",FRS STAFF AGENCY,03/11/11,"2,250.00"
800005081,ADECCO UK LIMITED=============,25794250,1,850.00,FRS STAFF AGENCY,03/11/11,850.00
800005082,ADECCO UK LIMITED=============,25794251,1,765.00,FRS STAFF AGENCY,03/11/11,765.00
011111A,MACE LIMITED,26915/1011373,1,"7,630.00",STRATEGIC (NON CYCLICAL),03/11/11,"7,637.50"
011111A,MACE LIMITED,26915/1011373,2,7.50,STRATEGIC (NON CYCLICAL),03/11/11,
191011A,PLANTFORCE====================,27199,1,603.00,TACTICAL DAY TO DAY,03/11/11,603.00
311011C,DRAMANON======================,283,1,750.00,TRAINING & CONFERENCES,03/11/11,750.00
011111A,EXPRESS VENDING LIMITED=======,286197,1,520.00,CATERING EQUIPMENT,03/11/11,520.00
011111A,CIPFA BUSINESS LTD============,3055427,1,"3,750.00",SUBSCRIPTIONS,03/11/11,"3,750.00"
139392,THAMES WATER UTILITIES LTD====,3229800367Z,1,544.66,WATER & SEWERAGE RATES,03/11/11,544.66
211011C,THOMAS SINDEN LIMITED=========,3784,1,"8,274.20",STRATEGIC (NON CYCLICAL),03/11/11,"8,274.20"
281011G,W & E DERRICK BLDG. CONT.=====,3991,1,775.00,DAY TO DAY MINOR IMPS,03/11/11,775.00
139394,NPOWER BUSINESS===============,4101998,1,"1,845.90",GAS,03/11/11,"1,845.90"
139394,NPOWER BUSINESS===============,4102001,1,"3,071.32",GAS,03/11/11,"3,071.32"
139394,NPOWER BUSINESS===============,4102002,1,"1,778.54",GAS,03/11/11,"8,892.71"
139394,NPOWER BUSINESS===============,4102002,2,"7,114.17",GAS,03/11/11,
139392,NPOWER BUSINESS===============,4102006,1,545.88,GAS,03/11/11,545.88
139394,NPOWER BUSINESS===============,4102014,1,"4,777.10",GAS,03/11/11,"4,777.10"
139394,NPOWER BUSINESS===============,4102015,1,"1,901.52",GAS,03/11/11,"1,901.52"
139394,NPOWER BUSINESS===============,4102016,1,"1,308.65",GAS,03/11/11,"1,308.65"
139392,NPOWER BUSINESS===============,4102018,1,666.69,GAS,03/11/11,666.69
139394,NPOWER BUSINESS===============,4102019,1,"1,313.94",GAS,03/11/11,"1,313.94"
139394,NPOWER BUSINESS===============,4102020,1,"2,641.53",GAS,03/11/11,"2,641.53"
139394,NPOWER BUSINESS===============,4102021,1,"1,882.71",GAS,03/11/11,"1,882.71"
139394,NPOWER BUSINESS===============,4102023,1,"1,305.31",GAS,03/11/11,"1,305.31"
139392,NPOWER BUSINESS===============,4102026,1,953.84,GAS,03/11/11,953.84
139394,NPOWER BUSINESS===============,4102027,1,"1,219.74",GAS,03/11/11,"1,219.74"
139392,NPOWER BUSINESS===============,4102028,1,753.17,GAS,03/11/11,753.17
139394,NPOWER BUSINESS===============,4102029,1,"3,620.74",GAS,03/11/11,"3,620.74"
139394,NPOWER BUSINESS===============,410203,1,"2,118.69",GAS,03/11/11,"2,118.69"
139394,NPOWER BUSINESS===============,4102030,1,"1,023.62",GAS,03/11/11,"1,023.62"
139394,NPOWER BUSINESS===============,4102031,1,"1,124.13",GAS,03/11/11,"1,124.13"
139394,NPOWER BUSINESS===============,4102032,1,"1,274.62",GAS,03/11/11,"1,274.62"
139394,NPOWER BUSINESS===============,4102033,1,"1,924.73",GAS,03/11/11,"1,924.73"
139386,BRITISH GAS BUSINESS==========,51079991,1,450.98,ELECTRICITY,03/11/11,"11,161.94"
139386,BRITISH GAS BUSINESS==========,51079991,2,271.04,ELECTRICITY,03/11/11,
139386,BRITISH GAS BUSINESS==========,51079991,3,396.02,ELECTRICITY,03/11/11,
139386,BRITISH GAS BUSINESS==========,51079991,4,472.34,ELECTRICITY,03/11/11,
139386,BRITISH GAS BUSINESS==========,51079991,5,275.34,ELECTRICITY,03/11/11,
139386,BRITISH GAS BUSINESS==========,51079991,6,331.08,ELECTRICITY,03/11/11,
139386,BRITISH GAS BUSINESS==========,51079991,7,391.17,ELECTRICITY,03/11/11,
139386,BRITISH GAS BUSINESS==========,51079991,8,282.57,ELECTRICITY,03/11/11,
139386,BRITISH GAS BUSINESS==========,51079991,9,354.13,ELECTRICITY,03/11/11,
139386,BRITISH GAS BUSINESS==========,51079991,10,451.27,ELECTRICITY,03/11/11,
139386,BRITISH GAS BUSINESS==========,51079991,11,220.27,ELECTRICITY,03/11/11,
139386,BRITISH GAS BUSINESS==========,51079991,12,364.13,ELECTRICITY,03/11/11,
139386,BRITISH GAS BUSINESS==========,51079991,13,388.67,ELECTRICITY,03/11/11,
139386,BRITISH GAS BUSINESS==========,51079991,14,551.79,ELECTRICITY,03/11/11,
139386,BRITISH GAS BUSINESS==========,51079991,15,407.75,ELECTRICITY,03/11/11,
139386,BRITISH GAS BUSINESS==========,51079991,16,288.32,ELECTRICITY,03/11/11,
139386,BRITISH GAS BUSINESS==========,51079991,17,116.32,ELECTRICITY,03/11/11,
139386,BRITISH GAS BUSINESS==========,51079991,18,216.72,ELECTRICITY,03/11/11,
139386,BRITISH GAS BUSINESS==========,51079991,19,671.17,ELECTRICITY,03/11/11,
139386,BRITISH GAS BUSINESS==========,51079991,20,318.85,ELECTRICITY,03/11/11,
139386,BRITISH GAS BUSINESS==========,51079991,21,28.79,ELECTRICITY,03/11/11,
139386,BRITISH GAS BUSINESS==========,51079991,22,31.21,ELECTRICITY,03/11/11,
139386,BRITISH GAS BUSINESS==========,51079991,23,36.21,ELECTRICITY,03/11/11,
139386,BRITISH GAS BUSINESS==========,51079991,24,49.35,ELECTRICITY,03/11/11,
139386,BRITISH GAS BUSINESS==========,51079991,25,415.41,ELECTRICITY,03/11/11,
139386,BRITISH GAS BUSINESS==========,51079991,26,43.33,ELECTRICITY,03/11/11,
139386,BRITISH GAS BUSINESS==========,51079991,27,14.59,ELECTRICITY,03/11/11,
139386,BRITISH GAS BUSINESS==========,51079991,28,19.64,ELECTRICITY,03/11/11,
139386,BRITISH GAS BUSINESS==========,51079991,29,19.99,ELECTRICITY,03/11/11,
139386,BRITISH GAS BUSINESS==========,51079991,30,877.39,ELECTRICITY,03/11/11,
139386,BRITISH GAS BUSINESS==========,51079991,31,"1,085.75",ELECTRICITY,03/11/11,
139386,BRITISH GAS BUSINESS==========,51079991,32,544.28,ELECTRICITY,03/11/11,
139386,BRITISH GAS BUSINESS==========,51079991,33,273.58,ELECTRICITY,03/11/11,
139386,BRITISH GAS BUSINESS==========,51079991,34,212.64,ELECTRICITY,03/11/11,
139386,BRITISH GAS BUSINESS==========,51079991,35,289.85,ELECTRICITY,03/11/11,
139387,BRITISH GAS BUSINESS==========,51079992,1,278.14,ELECTRICITY,03/11/11,"32,391.88"
139387,BRITISH GAS BUSINESS==========,51079992,2,396.48,ELECTRICITY,03/11/11,
139387,BRITISH GAS BUSINESS==========,51079992,3,188.46,ELECTRICITY,03/11/11,
139387,BRITISH GAS BUSINESS==========,51079992,4,188.45,ELECTRICITY,03/11/11,
139387,BRITISH GAS BUSINESS==========,51079992,5,251.27,ELECTRICITY,03/11/11,
139387,BRITISH GAS BUSINESS==========,51079992,6,397.15,ELECTRICITY,03/11/11,
139387,BRITISH GAS BUSINESS==========,51079992,7,17.24,ELECTRICITY,03/11/11,
139387,BRITISH GAS BUSINESS==========,51079992,8,16.38,ELECTRICITY,03/11/11,
139387,BRITISH GAS BUSINESS==========,51079992,9,242.41,ELECTRICITY,03/11/11,
139387,BRITISH GAS BUSINESS==========,51079992,10,300.51,ELECTRICITY,03/11/11,
139387,BRITISH GAS BUSINESS==========,51079992,11,325.79,ELECTRICITY,03/11/11,
139387,BRITISH GAS BUSINESS==========,51079992,12,684.84,ELECTRICITY,03/11/11,
139387,BRITISH GAS BUSINESS==========,51079992,13,19.91,ELECTRICITY,03/11/11,
139387,BRITISH GAS BUSINESS==========,51079992,14,16.45,ELECTRICITY,03/11/11,
139387,BRITISH GAS BUSINESS==========,51079992,15,193.50,ELECTRICITY,03/11/11,
139387,BRITISH GAS BUSINESS==========,51079992,16,15.10,ELECTRICITY,03/11/11,
139387,BRITISH GAS BUSINESS==========,51079992,17,424.01,ELECTRICITY,03/11/11,
139387,BRITISH GAS BUSINESS==========,51079992,18,297.93,ELECTRICITY,03/11/11,
139387,BRITISH GAS BUSINESS==========,51079992,19,425.49,ELECTRICITY,03/11/11,
139387,BRITISH GAS BUSINESS==========,51079992,20,332.00,ELECTRICITY,03/11/11,
139387,BRITISH GAS BUSINESS==========,51079992,21,"4,876.99",ELECTRICITY,03/11/11,
139387,BRITISH GAS BUSINESS==========,51079992,22,"5,057.99",ELECTRICITY,03/11/11,
139387,BRITISH GAS BUSINESS==========,51079992,23,"6,605.24",ELECTRICITY,03/11/11,
139387,BRITISH GAS BUSINESS==========,51079992,24,"6,341.35",ELECTRICITY,03/11/11,
139387,BRITISH GAS BUSINESS==========,51079992,25,178.02,ELECTRICITY,03/11/11,
139387,BRITISH GAS BUSINESS==========,51079992,26,33.38,ELECTRICITY,03/11/11,
139387,BRITISH GAS BUSINESS==========,51079992,27,200.26,ELECTRICITY,03/11/11,
139387,BRITISH GAS BUSINESS==========,51079992,28,"1,816.26",ELECTRICITY,03/11/11,
139387,BRITISH GAS BUSINESS==========,51079992,29,18.18,ELECTRICITY,03/11/11,
139387,BRITISH GAS BUSINESS==========,51079992,30,486.59,ELECTRICITY,03/11/11,
139387,BRITISH GAS BUSINESS==========,51079992,31,62.69,ELECTRICITY,03/11/11,
139387,BRITISH GAS BUSINESS==========,51079992,32,247.79,ELECTRICITY,03/11/11,
139387,BRITISH GAS BUSINESS==========,51079992,33,337.74,ELECTRICITY,03/11/11,
139387,BRITISH GAS BUSINESS==========,51079992,34,196.63,ELECTRICITY,03/11/11,
139387,BRITISH GAS BUSINESS==========,51079992,35,489.37,ELECTRICITY,03/11/11,
139387,BRITISH GAS BUSINESS==========,51079992,36,311.56,ELECTRICITY,03/11/11,
139387,BRITISH GAS BUSINESS==========,51079992,37,120.33,ELECTRICITY,03/11/11,
139388,BRITISH GAS BUSINESS==========,51079993,1,226.13,ELECTRICITY,03/11/11,"12,745.39"
139388,BRITISH GAS BUSINESS==========,51079993,2,306.69,ELECTRICITY,03/11/11,
139388,BRITISH GAS BUSINESS==========,51079993,3,435.40,ELECTRICITY,03/11/11,
139388,BRITISH GAS BUSINESS==========,51079993,4,263.02,ELECTRICITY,03/11/11,
139388,BRITISH GAS BUSINESS==========,51079993,5,362.04,ELECTRICITY,03/11/11,
139388,BRITISH GAS BUSINESS==========,51079993,6,524.54,ELECTRICITY,03/11/11,
139388,BRITISH GAS BUSINESS==========,51079993,7,491.49,ELECTRICITY,03/11/11,
139388,BRITISH GAS BUSINESS==========,51079993,8,13.31,ELECTRICITY,03/11/11,
139388,BRITISH GAS BUSINESS==========,51079993,9,19.39,ELECTRICITY,03/11/11,
139388,BRITISH GAS BUSINESS==========,51079993,10,290.06,ELECTRICITY,03/11/11,
139388,BRITISH GAS BUSINESS==========,51079993,11,289.32,ELECTRICITY,03/11/11,
139388,BRITISH GAS BUSINESS==========,51079993,12,364.39,ELECTRICITY,03/11/11,
139388,BRITISH GAS BUSINESS==========,51079993,13,259.70,ELECTRICITY,03/11/11,
139388,BRITISH GAS BUSINESS==========,51079993,14,318.48,ELECTRICITY,03/11/11,
139388,BRITISH GAS BUSINESS==========,51079993,15,26.58,ELECTRICITY,03/11/11,
139388,BRITISH GAS BUSINESS==========,51079993,16,25.13,ELECTRICITY,03/11/11,
139388,BRITISH GAS BUSINESS==========,51079993,17,220.23,ELECTRICITY,03/11/11,
139388,BRITISH GAS BUSINESS==========,51079993,18,40.34,ELECTRICITY,03/11/11,
139388,BRITISH GAS BUSINESS==========,51079993,19,345.49,ELECTRICITY,03/11/11,
139388,BRITISH GAS BUSINESS==========,51079993,20,947.83,ELECTRICITY,03/11/11,
139388,BRITISH GAS BUSINESS==========,51079993,21,584.08,ELECTRICITY,03/11/11,
139388,BRITISH GAS BUSINESS==========,51079993,22,402.36,ELECTRICITY,03/11/11,
139388,BRITISH GAS BUSINESS==========,51079993,23,230.65,ELECTRICITY,03/11/11,
139388,BRITISH GAS BUSINESS==========,51079993,24,"1,868.73",ELECTRICITY,03/11/11,
139388,BRITISH GAS BUSINESS==========,51079993,25,249.23,ELECTRICITY,03/11/11,
139388,BRITISH GAS BUSINESS==========,51079993,26,484.37,ELECTRICITY,03/11/11,
139388,BRITISH GAS BUSINESS==========,51079993,27,207.10,ELECTRICITY,03/11/11,
139388,BRITISH GAS BUSINESS==========,51079993,28,202.99,ELECTRICITY,03/11/11,
139388,BRITISH GAS BUSINESS==========,51079993,29,260.63,ELECTRICITY,03/11/11,
139388,BRITISH GAS BUSINESS==========,51079993,30,266.46,ELECTRICITY,03/11/11,
139388,BRITISH GAS BUSINESS==========,51079993,31,355.55,ELECTRICITY,03/11/11,
139388,BRITISH GAS BUSINESS==========,51079993,32,266.02,ELECTRICITY,03/11/11,
139388,BRITISH GAS BUSINESS==========,51079993,33,375.62,ELECTRICITY,03/11/11,
139388,BRITISH GAS BUSINESS==========,51079993,34,169.53,ELECTRICITY,03/11/11,
139388,BRITISH GAS BUSINESS==========,51079993,35,"1,052.51",ELECTRICITY,03/11/11,
139389,BRITISH GAS BUSINESS==========,51079994,1,243.39,ELECTRICITY,03/11/11,"14,165.25"
139389,BRITISH GAS BUSINESS==========,51079994,2,456.26,ELECTRICITY,03/11/11,
139389,BRITISH GAS BUSINESS==========,51079994,3,478.78,ELECTRICITY,03/11/11,
139389,BRITISH GAS BUSINESS==========,51079994,4,255.43,ELECTRICITY,03/11/11,
139389,BRITISH GAS BUSINESS==========,51079994,5,520.50,ELECTRICITY,03/11/11,
139389,BRITISH GAS BUSINESS==========,51079994,6,248.21,ELECTRICITY,03/11/11,
139389,BRITISH GAS BUSINESS==========,51079994,7,276.95,ELECTRICITY,03/11/11,
139389,BRITISH GAS BUSINESS==========,51079994,8,269.48,ELECTRICITY,03/11/11,
139389,BRITISH GAS BUSINESS==========,51079994,9,408.20,ELECTRICITY,03/11/11,
139389,BRITISH GAS BUSINESS==========,51079994,10,381.90,ELECTRICITY,03/11/11,
139389,BRITISH GAS BUSINESS==========,51079994,11,34.40,ELECTRICITY,03/11/11,
139389,BRITISH GAS BUSINESS==========,51079994,12,32.23,ELECTRICITY,03/11/11,
139389,BRITISH GAS BUSINESS==========,51079994,13,22.45,ELECTRICITY,03/11/11,
139389,BRITISH GAS BUSINESS==========,51079994,14,21.22,ELECTRICITY,03/11/11,
139389,BRITISH GAS BUSINESS==========,51079994,15,428.20,ELECTRICITY,03/11/11,
139389,BRITISH GAS BUSINESS==========,51079994,16,359.22,ELECTRICITY,03/11/11,
139389,BRITISH GAS BUSINESS==========,51079994,17,329.60,ELECTRICITY,03/11/11,
139389,BRITISH GAS BUSINESS==========,51079994,18,93.43,ELECTRICITY,03/11/11,
139389,BRITISH GAS BUSINESS==========,51079994,19,274.96,ELECTRICITY,03/11/11,
139389,BRITISH GAS BUSINESS==========,51079994,20,13.40,ELECTRICITY,03/11/11,
139389,BRITISH GAS BUSINESS==========,51079994,21,672.37,ELECTRICITY,03/11/11,
139389,BRITISH GAS BUSINESS==========,51079994,22,186.50,ELECTRICITY,03/11/11,
139389,BRITISH GAS BUSINESS==========,51079994,23,201.77,ELECTRICITY,03/11/11,
139389,BRITISH GAS BUSINESS==========,51079994,24,206.23,ELECTRICITY,03/11/11,
139389,BRITISH GAS BUSINESS==========,51079994,25,234.72,ELECTRICITY,03/11/11,
139389,BRITISH GAS BUSINESS==========,51079994,26,347.24,ELECTRICITY,03/11/11,
139389,BRITISH GAS BUSINESS==========,51079994,27,"2,419.61",ELECTRICITY,03/11/11,
139389,BRITISH GAS BUSINESS==========,51079994,28,"2,303.91",ELECTRICITY,03/11/11,
139389,BRITISH GAS BUSINESS==========,51079994,29,565.11,ELECTRICITY,03/11/11,
139389,BRITISH GAS BUSINESS==========,51079994,30,21.06,ELECTRICITY,03/11/11,
139389,BRITISH GAS BUSINESS==========,51079994,31,265.10,ELECTRICITY,03/11/11,
139389,BRITISH GAS BUSINESS==========,51079994,32,393.93,ELECTRICITY,03/11/11,
139389,BRITISH GAS BUSINESS==========,51079994,33,345.72,ELECTRICITY,03/11/11,
139389,BRITISH GAS BUSINESS==========,51079994,34,435.58,ELECTRICITY,03/11/11,
139389,BRITISH GAS BUSINESS==========,51079994,35,418.19,ELECTRICITY,03/11/11,
139390,BRITISH GAS BUSINESS==========,51079995,1,319.56,ELECTRICITY,03/11/11,"5,000.95"
139390,BRITISH GAS BUSINESS==========,51079995,2,"1,085.62",ELECTRICITY,03/11/11,
139390,BRITISH GAS BUSINESS==========,51079995,3,291.92,ELECTRICITY,03/11/11,
139390,BRITISH GAS BUSINESS==========,51079995,4,247.12,ELECTRICITY,03/11/11,
139390,BRITISH GAS BUSINESS==========,51079995,5,300.49,ELECTRICITY,03/11/11,
139390,BRITISH GAS BUSINESS==========,51079995,6,17.54,ELECTRICITY,03/11/11,
139390,BRITISH GAS BUSINESS==========,51079995,7,26.58,ELECTRICITY,03/11/11,
139390,BRITISH GAS BUSINESS==========,51079995,8,17.46,ELECTRICITY,03/11/11,
139390,BRITISH GAS BUSINESS==========,51079995,9,390.23,ELECTRICITY,03/11/11,
139390,BRITISH GAS BUSINESS==========,51079995,10,319.91,ELECTRICITY,03/11/11,
139390,BRITISH GAS BUSINESS==========,51079995,11,226.69,ELECTRICITY,03/11/11,
139390,BRITISH GAS BUSINESS==========,51079995,12,511.73,ELECTRICITY,03/11/11,
139390,BRITISH GAS BUSINESS==========,51079995,13,339.24,ELECTRICITY,03/11/11,
139390,BRITISH GAS BUSINESS==========,51079995,14,353.84,ELECTRICITY,03/11/11,
139390,BRITISH GAS BUSINESS==========,51079995,15,363.93,ELECTRICITY,03/11/11,
139390,BRITISH GAS BUSINESS==========,51079995,16,14.20,ELECTRICITY,03/11/11,
139390,BRITISH GAS BUSINESS==========,51079995,17,174.89,ELECTRICITY,03/11/11,
271011C,RIG SYSTEMS LTD===============,524,1,"1,575.00",TRAINING & CONFERENCES,03/11/11,"1,575.00"
271011C,RIG SYSTEMS LTD===============,527,1,"1,575.00",TRAINING & CONFERENCES,03/11/11,"1,575.00"
271011C,RIG SYSTEMS LTD===============,530,1,"1,575.00",TRAINING & CONFERENCES,03/11/11,"1,575.00"
011111A,EJT ASSOCIATES LIMITED========,633,1,"1,800.00",TRAINING & CONFERENCES,03/11/11,"1,800.00"
011111A,CPL PETROLEUM=================,6794511,1,"3,409.50",FUEL,03/11/11,"3,409.50"
011111A,CPL PETROLEUM=================,6801007,1,"3,402.00",FUEL,03/11/11,"3,402.00"
311011C,CPL PETROLEUM=================,6811384,1,"2,279.00",FUEL,03/11/11,"2,279.00"
011111A,CPL PETROLEUM=================,6838273,1,"3,974.25",FUEL,03/11/11,"3,974.25"
011111A,CPL PETROLEUM=================,6849026,1,"3,369.00",FUEL,03/11/11,"3,369.00"
011111A,CPL PETROLEUM=================,6869497,1,"3,447.00",FUEL,03/11/11,"3,447.00"
311011A,RESPONSE DEVELOPMENT TRAINING=,726,1,"9,480.63",TRAINING & CONFERENCES,03/11/11,"9,480.63"
011111A,LONDON MAINTENANCE CO LTD=====,7721,1,"3,242.87",STRATEGIC (NON CYCLICAL),03/11/11,"3,242.87"
281011C,UNITED ENGINEERING SERVICES LT,7789,1,171.78,STRATEGIC (CYCLICAL),03/11/11,"1,265.53"
281011C,UNITED ENGINEERING SERVICES LT,7789,2,250.01,STRATEGIC (CYCLICAL),03/11/11,
281011C,UNITED ENGINEERING SERVICES LT,7789,3,138.08,STRATEGIC (CYCLICAL),03/11/11,
281011C,UNITED ENGINEERING SERVICES LT,7789,4,188.06,STRATEGIC (CYCLICAL),03/11/11,
281011C,UNITED ENGINEERING SERVICES LT,7789,5,228.74,STRATEGIC (CYCLICAL),03/11/11,
281011C,UNITED ENGINEERING SERVICES LT,7789,6,138.08,STRATEGIC (CYCLICAL),03/11/11,
281011C,UNITED ENGINEERING SERVICES LT,7789,7,150.78,STRATEGIC (CYCLICAL),03/11/11,
271011C,ANGUS FIRE ARMOUR LIMITED=====,8011868,1,"11,664.00",OPERATIONAL EQUIP-PURCHASE,03/11/11,"11,664.00"
139392,THAMES WATER UTILITIES LTD====,8965699261J,1,610.87,WATER & SEWERAGE RATES,03/11/11,610.87
261011C,BRITISH GAS BUSINESS==========,90147967,1,"1,390.94",DEVELOPMENT EXP - CONTRACTORS,03/11/11,"1,390.94"
281011G,AMEY MECHANICAL & ELECTRICAL==,90289319,1,102.32,STRATEGIC (CYCLICAL),03/11/11,"6,747.95"
281011G,AMEY MECHANICAL & ELECTRICAL==,90289319,2,132.55,STRATEGIC (CYCLICAL),03/11/11,
281011G,AMEY MECHANICAL & ELECTRICAL==,90289319,3,149.13,STRATEGIC (CYCLICAL),03/11/11,
281011G,AMEY MECHANICAL & ELECTRICAL==,90289319,4,60.82,STRATEGIC (CYCLICAL),03/11/11,
281011G,AMEY MECHANICAL & ELECTRICAL==,90289319,5,111.42,STRATEGIC (CYCLICAL),03/11/11,
281011G,AMEY MECHANICAL & ELECTRICAL==,90289319,6,115.44,STRATEGIC (CYCLICAL),03/11/11,
281011G,AMEY MECHANICAL & ELECTRICAL==,90289319,7,111.42,STRATEGIC (CYCLICAL),03/11/11,
281011G,AMEY MECHANICAL & ELECTRICAL==,90289319,8,111.42,STRATEGIC (CYCLICAL),03/11/11,
281011G,AMEY MECHANICAL & ELECTRICAL==,90289319,9,103.94,STRATEGIC (CYCLICAL),03/11/11,
281011G,AMEY MECHANICAL & ELECTRICAL==,90289319,10,114.29,STRATEGIC (CYCLICAL),03/11/11,
281011G,AMEY MECHANICAL & ELECTRICAL==,90289319,11,121.19,STRATEGIC (CYCLICAL),03/11/11,
281011G,AMEY MECHANICAL & ELECTRICAL==,90289319,12,168.92,STRATEGIC (CYCLICAL),03/11/11,
281011G,AMEY MECHANICAL & ELECTRICAL==,90289319,13,55.93,STRATEGIC (CYCLICAL),03/11/11,
281011G,AMEY MECHANICAL & ELECTRICAL==,90289319,14,70.93,STRATEGIC (CYCLICAL),03/11/11,
281011G,AMEY MECHANICAL & ELECTRICAL==,90289319,15,55.30,STRATEGIC (CYCLICAL),03/11/11,
281011G,AMEY MECHANICAL & ELECTRICAL==,90289319,16,83.24,STRATEGIC (CYCLICAL),03/11/11,
281011G,AMEY MECHANICAL & ELECTRICAL==,90289319,17,60.82,STRATEGIC (CYCLICAL),03/11/11,
281011G,AMEY MECHANICAL & ELECTRICAL==,90289319,18,225.20,STRATEGIC (CYCLICAL),03/11/11,
281011G,AMEY MECHANICAL & ELECTRICAL==,90289319,19,55.07,STRATEGIC (CYCLICAL),03/11/11,
281011G,AMEY MECHANICAL & ELECTRICAL==,90289319,20,253.95,STRATEGIC (CYCLICAL),03/11/11,
281011G,AMEY MECHANICAL & ELECTRICAL==,90289319,21,253.95,STRATEGIC (CYCLICAL),03/11/11,
281011G,AMEY MECHANICAL & ELECTRICAL==,90289319,22,64.27,STRATEGIC (CYCLICAL),03/11/11,
281011G,AMEY MECHANICAL & ELECTRICAL==,90289319,23,458.87,STRATEGIC (CYCLICAL),03/11/11,
281011G,AMEY MECHANICAL & ELECTRICAL==,90289319,24,38.63,STRATEGIC (CYCLICAL),03/11/11,
281011G,AMEY MECHANICAL & ELECTRICAL==,90289319,25,52.19,STRATEGIC (CYCLICAL),03/11/11,
281011G,AMEY MECHANICAL & ELECTRICAL==,90289319,26,110.85,STRATEGIC (CYCLICAL),03/11/11,
281011G,AMEY MECHANICAL & ELECTRICAL==,90289319,27,286.83,STRATEGIC (CYCLICAL),03/11/11,
281011G,AMEY MECHANICAL & ELECTRICAL==,90289319,28,111.76,STRATEGIC (CYCLICAL),03/11/11,
281011G,AMEY MECHANICAL & ELECTRICAL==,90289319,29,117.17,STRATEGIC (CYCLICAL),03/11/11,
281011G,AMEY MECHANICAL & ELECTRICAL==,90289319,30,85.88,STRATEGIC (CYCLICAL),03/11/11,
281011G,AMEY MECHANICAL & ELECTRICAL==,90289319,31,167.06,STRATEGIC (CYCLICAL),03/11/11,
281011G,AMEY MECHANICAL & ELECTRICAL==,90289319,32,59.67,STRATEGIC (CYCLICAL),03/11/11,
281011G,AMEY MECHANICAL & ELECTRICAL==,90289319,33,136.86,STRATEGIC (CYCLICAL),03/11/11,
281011G,AMEY MECHANICAL & ELECTRICAL==,90289319,34,272.76,STRATEGIC (CYCLICAL),03/11/11,
281011G,AMEY MECHANICAL & ELECTRICAL==,90289319,35,195.52,STRATEGIC (CYCLICAL),03/11/11,
281011G,AMEY MECHANICAL & ELECTRICAL==,90289319,36,298.67,STRATEGIC (CYCLICAL),03/11/11,
281011G,AMEY MECHANICAL & ELECTRICAL==,90289319,37,638.06,STRATEGIC (CYCLICAL),03/11/11,
281011G,AMEY MECHANICAL & ELECTRICAL==,90289319,38,171.52,STRATEGIC (CYCLICAL),03/11/11,
281011G,AMEY MECHANICAL & ELECTRICAL==,90289319,39,84.63,STRATEGIC (CYCLICAL),03/11/11,
281011G,AMEY MECHANICAL & ELECTRICAL==,90289319,40,32.88,STRATEGIC (CYCLICAL),03/11/11,
281011G,AMEY MECHANICAL & ELECTRICAL==,90289319,41,564.86,STRATEGIC (CYCLICAL),03/11/11,
281011G,AMEY MECHANICAL & ELECTRICAL==,90289319,42,281.76,STRATEGIC (CYCLICAL),03/11/11,
281011G,AMEY MECHANICAL & ELECTRICAL==,90290021,1,530.00,DAY TO DAY MINOR IMPS,03/11/11,530.00
251011C,DRAEGER SAFETY UK LIMITED=====,90352239,1,54.37,PROTECTIVE EQUIPT - PARTS,03/11/11,"1,714.61"
251011C,DRAEGER SAFETY UK LIMITED=====,90352239,2,"1,460.87",PROTECTIVE EQUIPT - PARTS,03/11/11,
251011C,DRAEGER SAFETY UK LIMITED=====,90352239,3,199.37,PROTECTIVE EQUIPT - PARTS,03/11/11,
271011C,DRAEGER SAFETY UK LIMITED=====,90352535,1,506.45,PROTECTIVE EQUIPT - PARTS,03/11/11,506.45
311011C,DRAEGER SAFETY UK LIMITED=====,90353198,1,531.00,PURCHASE,03/11/11,531.00
011111A,P J HARTE(DECORATING CONT) LTD,9451PH,1,"1,175.00",STRATEGIC (NON CYCLICAL),03/11/11,"1,175.00"
800004826,*NPS (SHOES) LTD,9483,1,41.10,CLOTHING,03/11/11,"1,806.75"
800004826,*NPS (SHOES) LTD,9483,2,41.10,CLOTHING,03/11/11,
800004826,*NPS (SHOES) LTD,9483,3,41.10,CLOTHING,03/11/11,
800004826,*NPS (SHOES) LTD,9483,4,41.10,CLOTHING,03/11/11,
800004826,*NPS (SHOES) LTD,9483,5,41.10,CLOTHING,03/11/11,
800004826,*NPS (SHOES) LTD,9483,6,29.45,CLOTHING,03/11/11,
800004826,*NPS (SHOES) LTD,9483,7,29.45,CLOTHING,03/11/11,
800004826,*NPS (SHOES) LTD,9483,8,29.45,CLOTHING,03/11/11,
800004826,*NPS (SHOES) LTD,9483,9,29.45,CLOTHING,03/11/11,
800004826,*NPS (SHOES) LTD,9483,10,29.45,CLOTHING,03/11/11,
800004826,*NPS (SHOES) LTD,9483,11,29.45,CLOTHING,03/11/11,
800004826,*NPS (SHOES) LTD,9483,12,29.45,CLOTHING,03/11/11,
800004826,*NPS (SHOES) LTD,9483,13,29.45,CLOTHING,03/11/11,
800004826,*NPS (SHOES) LTD,9483,14,29.45,CLOTHING,03/11/11,
800004826,*NPS (SHOES) LTD,9483,15,29.45,CLOTHING,03/11/11,
800004826,*NPS (SHOES) LTD,9483,16,29.45,CLOTHING,03/11/11,
800004826,*NPS (SHOES) LTD,9483,17,29.45,CLOTHING,03/11/11,
800004826,*NPS (SHOES) LTD,9483,18,29.45,CLOTHING,03/11/11,
800004826,*NPS (SHOES) LTD,9483,19,29.45,CLOTHING,03/11/11,
800004826,*NPS (SHOES) LTD,9483,20,29.45,CLOTHING,03/11/11,
800004826,*NPS (SHOES) LTD,9483,21,29.45,CLOTHING,03/11/11,
800004826,*NPS (SHOES) LTD,9483,22,29.45,CLOTHING,03/11/11,
800004826,*NPS (SHOES) LTD,9483,23,29.45,CLOTHING,03/11/11,
800004826,*NPS (SHOES) LTD,9483,24,29.45,CLOTHING,03/11/11,
800004826,*NPS (SHOES) LTD,9483,25,29.45,CLOTHING,03/11/11,
800004826,*NPS (SHOES) LTD,9483,26,29.45,CLOTHING,03/11/11,
800004826,*NPS (SHOES) LTD,9483,27,29.45,CLOTHING,03/11/11,
800004826,*NPS (SHOES) LTD,9483,28,29.45,CLOTHING,03/11/11,
800004826,*NPS (SHOES) LTD,9483,29,29.45,CLOTHING,03/11/11,
800004826,*NPS (SHOES) LTD,9483,30,29.45,CLOTHING,03/11/11,
800004826,*NPS (SHOES) LTD,9483,31,29.45,CLOTHING,03/11/11,
800004826,*NPS (SHOES) LTD,9483,32,29.45,CLOTHING,03/11/11,
800004826,*NPS (SHOES) LTD,9483,33,29.45,CLOTHING,03/11/11,
800004826,*NPS (SHOES) LTD,9483,34,29.45,CLOTHING,03/11/11,
800004826,*NPS (SHOES) LTD,9483,35,29.45,CLOTHING,03/11/11,
800004826,*NPS (SHOES) LTD,9483,36,29.45,CLOTHING,03/11/11,
800004826,*NPS (SHOES) LTD,9483,37,29.45,CLOTHING,03/11/11,
800004826,*NPS (SHOES) LTD,9483,38,29.45,CLOTHING,03/11/11,
800004826,*NPS (SHOES) LTD,9483,39,29.45,CLOTHING,03/11/11,
800004826,*NPS (SHOES) LTD,9483,40,29.45,CLOTHING,03/11/11,
800004826,*NPS (SHOES) LTD,9483,41,29.45,CLOTHING,03/11/11,
800004826,*NPS (SHOES) LTD,9483,42,29.45,CLOTHING,03/11/11,
800004826,*NPS (SHOES) LTD,9483,43,29.45,CLOTHING,03/11/11,
800004826,*NPS (SHOES) LTD,9483,44,29.45,CLOTHING,03/11/11,
800004826,*NPS (SHOES) LTD,9483,45,29.45,CLOTHING,03/11/11,
800004826,*NPS (SHOES) LTD,9483,46,29.45,CLOTHING,03/11/11,
800004826,*NPS (SHOES) LTD,9483,47,29.45,CLOTHING,03/11/11,
800004826,*NPS (SHOES) LTD,9483,48,29.45,CLOTHING,03/11/11,
800004826,*NPS (SHOES) LTD,9483,49,29.45,CLOTHING,03/11/11,
800004826,*NPS (SHOES) LTD,9483,50,30.05,CLOTHING,03/11/11,
800004826,*NPS (SHOES) LTD,9483,51,30.05,CLOTHING,03/11/11,
800004826,*NPS (SHOES) LTD,9483,52,30.05,CLOTHING,03/11/11,
800004826,*NPS (SHOES) LTD,9483,53,30.05,CLOTHING,03/11/11,
800004826,*NPS (SHOES) LTD,9483,54,30.05,CLOTHING,03/11/11,
800004826,*NPS (SHOES) LTD,9483,55,30.05,CLOTHING,03/11/11,
800004826,*NPS (SHOES) LTD,9483,56,30.05,CLOTHING,03/11/11,
800004826,*NPS (SHOES) LTD,9483,57,30.05,CLOTHING,03/11/11,
800004826,*NPS (SHOES) LTD,9483,58,30.05,CLOTHING,03/11/11,
800004826,*NPS (SHOES) LTD,9483,59,35.00,CLOTHING,03/11/11,
171011A,*OFFICE DEPOT UK LTD,951303107,1,583.00,STATIONERY CONSUMABLES,03/11/11,583.00
011111A,RUTH LEE LTD==================,9679,1,866.60,OPERATIONAL EQUIP-PURCHASE,03/11/11,866.60
139392,THAMES WATER UTILITIES LTD====,9765275302Y,1,722.44,WATER & SEWERAGE RATES,03/11/11,722.44
311011A,ARCHITECTURAL DECORATORS LTD==,AD18400,1,"10,189.85",STRATEGIC (NON CYCLICAL),03/11/11,"10,189.85"
311011A,ARCHITECTURAL DECORATORS LTD==,AD18401,1,"4,285.94",STRATEGIC (NON CYCLICAL),03/11/11,"4,285.94"
311011A,FREIGHT TRANSPORT ASSOCIATION=,C.398834,1,"3,713.75",VEHICLES,03/11/11,"3,713.75"
281011C,THAMES WATER UTILITIES LTD====,CBA1127680,1,616.00,CURRENT HYDRANT COSTS,03/11/11,616.00
281011C,THAMES WATER UTILITIES LTD====,CBA1127686,1,"1,082.00",CURRENT HYDRANT COSTS,03/11/11,"1,082.00"
281011C,THAMES WATER UTILITIES LTD====,CBA1127687,1,"1,082.00",CURRENT HYDRANT COSTS,03/11/11,"1,082.00"
281011C,THAMES WATER UTILITIES LTD====,CBA1127689,1,"1,082.00",CURRENT HYDRANT COSTS,03/11/11,"1,082.00"
281011C,THAMES WATER UTILITIES LTD====,CBA1127690,1,"1,082.00",CURRENT HYDRANT COSTS,03/11/11,"1,082.00"
281011C,THAMES WATER UTILITIES LTD====,CBA1127691,1,"1,082.00",CURRENT HYDRANT COSTS,03/11/11,"1,082.00"
281011C,THAMES WATER UTILITIES LTD====,CBA1127692,1,"1,082.00",CURRENT HYDRANT COSTS,03/11/11,"1,082.00"
281011C,THAMES WATER UTILITIES LTD====,CBA1127693,1,"1,082.00",CURRENT HYDRANT COSTS,03/11/11,"1,082.00"
281011C,THAMES WATER UTILITIES LTD====,CBA1127694,1,"1,082.00",HYDRANTS,03/11/11,"1,082.00"
311011A,THAMES WATER UTILITIES LTD====,CBA1127698,1,"3,250.00",HYDRANTS,03/11/11,"3,250.00"
281011C,THAMES WATER UTILITIES LTD====,CBA1127699,1,"1,082.00",HYDRANTS,03/11/11,"1,082.00"
281011C,THAMES WATER UTILITIES LTD====,CBA1127700,1,"1,082.00",HYDRANTS,03/11/11,"1,082.00"
281011C,THAMES WATER UTILITIES LTD====,CBA1127701,1,"1,082.00",HYDRANTS,03/11/11,"1,082.00"
281011C,THAMES WATER UTILITIES LTD====,CBA1127702,1,"1,082.00",HYDRANTS,03/11/11,"1,082.00"
281011C,THAMES WATER UTILITIES LTD====,CBA1127703,1,"1,082.00",HYDRANTS,03/11/11,"1,082.00"
281011C,THAMES WATER UTILITIES LTD====,CBA1127704,1,"1,082.00",HYDRANTS,03/11/11,"1,082.00"
281011C,THAMES WATER UTILITIES LTD====,CBA1127705,1,"1,082.00",HYDRANTS,03/11/11,"1,082.00"
281011C,THAMES WATER UTILITIES LTD====,CBA1127706,1,"1,082.00",HYDRANTS,03/11/11,"1,082.00"
281011C,THAMES WATER UTILITIES LTD====,CBA1127707,1,"1,082.00",HYDRANTS,03/11/11,"1,082.00"
281011C,THAMES WATER UTILITIES LTD====,CBA1127708,1,"1,082.00",HYDRANTS,03/11/11,"1,082.00"
281011C,THAMES WATER UTILITIES LTD====,CBA1127709,1,"1,082.00",CURRENT HYDRANT COSTS,03/11/11,"1,082.00"
281011C,THAMES WATER UTILITIES LTD====,CBA1127710,1,"1,082.00",HYDRANTS,03/11/11,"1,082.00"
281011C,THAMES WATER UTILITIES LTD====,CBA1127711,1,"1,031.00",HYDRANTS,03/11/11,"1,031.00"
281011C,THAMES WATER UTILITIES LTD====,CBA1127964,1,"1,015.00",HYDRANTS,03/11/11,"1,015.00"
311011A,E&S B DAVIS LTD===============,DAV/30722,1,"3,300.00",OPERATIONAL EQUIP-PURCHASE,03/11/11,"3,900.00"
311011A,E&S B DAVIS LTD===============,DAV/30722,2,600.00,OPERATIONAL EQUIP-PURCHASE,03/11/11,
311011C,E&S B DAVIS LTD===============,DAV/30722*,1,825.00,OPERATIONAL EQUIP-PURCHASE,03/11/11,825.00
271011C,KIER BUILDING SERV ENGINEERS==,F028075,1,104.35,TACTICAL DAY TO DAY,03/11/11,"1,252.20"
271011C,KIER BUILDING SERV ENGINEERS==,F028075,2,104.35,TACTICAL DAY TO DAY,03/11/11,
271011C,KIER BUILDING SERV ENGINEERS==,F028075,3,104.35,TACTICAL DAY TO DAY,03/11/11,
271011C,KIER BUILDING SERV ENGINEERS==,F028075,4,104.35,TACTICAL DAY TO DAY,03/11/11,
271011C,KIER BUILDING SERV ENGINEERS==,F028075,5,104.35,TACTICAL DAY TO DAY,03/11/11,
271011C,KIER BUILDING SERV ENGINEERS==,F028075,6,104.35,TACTICAL DAY TO DAY,03/11/11,
271011C,KIER BUILDING SERV ENGINEERS==,F028075,7,104.35,TACTICAL DAY TO DAY,03/11/11,
271011C,KIER BUILDING SERV ENGINEERS==,F028075,8,104.35,TACTICAL DAY TO DAY,03/11/11,
271011C,KIER BUILDING SERV ENGINEERS==,F028075,9,104.35,TACTICAL DAY TO DAY,03/11/11,
271011C,KIER BUILDING SERV ENGINEERS==,F028075,10,104.35,TACTICAL DAY TO DAY,03/11/11,
271011C,KIER BUILDING SERV ENGINEERS==,F028075,11,104.35,TACTICAL DAY TO DAY,03/11/11,
271011C,KIER BUILDING SERV ENGINEERS==,F028075,12,104.35,TACTICAL DAY TO DAY,03/11/11,
271011C,PURDY CONTRACTS LTD,IN220468,1,"17,426.17",STRATEGIC (NON CYCLICAL),03/11/11,"17,426.17"
011111A,SMITH O'SULLIVAN LTD.=========,LFB/WHF/003,1,"2,344.50",STRATEGIC (NON CYCLICAL),03/11/11,"2,344.50"
281011G,POSTCODE ANYWHERE (EUROPE) LD,LONDO11225-122825,1,"7,500.00",PROFESSIONAL SERVICES,03/11/11,"7,500.00"
271011C,SUTTON & EAST SURREY WATER PLC,SI024868,1,985.00,CURRENT HYDRANT COSTS,03/11/11,985.00
311011A,*THOMAS KNEALE & CO LTD,TK1384,1,629.40,CLOTHING,03/11/11,808.20
311011A,*THOMAS KNEALE & CO LTD,TK1384,2,178.80,CLOTHING,03/11/11,
281011C,DNV CERTIFICATION LTD=========,ZNWUK70146325,1,"2,056.75",PROFESSIONAL SERVICES,03/11/11,"2,056.75"
021111A,THE FORENSIC SCIENCE SOCIETY==,010184/500747,1,600.50,TRAINING & CONFERENCES,07/11/11,600.50
021111C,NATIONAL DRIVING CENTRE=======,08896,1,"5,678.38",TRAINING & CONFERENCES,07/11/11,"23,894.48"
021111C,NATIONAL DRIVING CENTRE=======,08896,2,"18,216.10",TRAINING & CONFERENCES,07/11/11,
251011C,HAYS ACCOUNTANCY & FINANCE====,1001531322,1,696.00,FRS STAFF AGENCY,07/11/11,696.00
021111F,ARVAL PHH=====================,1017240512,1,179.10,FUEL,07/11/11,"25,824.53"
021111F,ARVAL PHH=====================,1017240512,2,121.29,FUEL,07/11/11,
021111F,ARVAL PHH=====================,1017240512,3,115.01,FUEL,07/11/11,
021111F,ARVAL PHH=====================,1017240512,4,330.36,FUEL,07/11/11,
021111F,ARVAL PHH=====================,1017240512,5,209.92,FUEL,07/11/11,
021111F,ARVAL PHH=====================,1017240512,6,33.42,FUEL,07/11/11,
021111F,ARVAL PHH=====================,1017240512,7,141.56,FUEL,07/11/11,
021111F,ARVAL PHH=====================,1017240512,8,212.18,FUEL,07/11/11,
021111F,ARVAL PHH=====================,1017240512,9,141.71,FUEL,07/11/11,
021111F,ARVAL PHH=====================,1017240512,10,229.48,FUEL,07/11/11,
021111F,ARVAL PHH=====================,1017240512,11,211.46,FUEL,07/11/11,
021111F,ARVAL PHH=====================,1017240512,12,358.49,FUEL,07/11/11,
021111F,ARVAL PHH=====================,1017240512,13,301.14,FUEL,07/11/11,
021111F,ARVAL PHH=====================,1017240512,14,307.33,FUEL,07/11/11,
021111F,ARVAL PHH=====================,1017240512,15,150.64,FUEL,07/11/11,
021111F,ARVAL PHH=====================,1017240512,16,265.39,FUEL,07/11/11,
021111F,ARVAL PHH=====================,1017240512,17,134.81,FUEL,07/11/11,
021111F,ARVAL PHH=====================,1017240512,18,118.24,FUEL,07/11/11,
021111F,ARVAL PHH=====================,1017240512,19,151.74,FUEL,07/11/11,
021111F,ARVAL PHH=====================,1017240512,20,158.43,FUEL,07/11/11,
021111F,ARVAL PHH=====================,1017240512,21,73.10,FUEL,07/11/11,
021111F,ARVAL PHH=====================,1017240512,22,303.19,FUEL,07/11/11,
021111F,ARVAL PHH=====================,1017240512,23,218.61,FUEL,07/11/11,
021111F,ARVAL PHH=====================,1017240512,24,224.19,FUEL,07/11/11,
021111F,ARVAL PHH=====================,1017240512,25,221.23,FUEL,07/11/11,
021111F,ARVAL PHH=====================,1017240512,26,188.46,FUEL,07/11/11,
021111F,ARVAL PHH=====================,1017240512,27,242.87,FUEL,07/11/11,
021111F,ARVAL PHH=====================,1017240512,28,371.56,FUEL,07/11/11,
021111F,ARVAL PHH=====================,1017240512,29,263.62,FUEL,07/11/11,
021111F,ARVAL PHH=====================,1017240512,30,285.65,FUEL,07/11/11,
021111F,ARVAL PHH=====================,1017240512,31,386.14,FUEL,07/11/11,
021111F,ARVAL PHH=====================,1017240512,32,408.77,FUEL,07/11/11,
021111F,ARVAL PHH=====================,1017240512,33,286.39,FUEL,07/11/11,
021111F,ARVAL PHH=====================,1017240512,34,312.22,FUEL,07/11/11,
021111F,ARVAL PHH=====================,1017240512,35,660.83,FUEL,07/11/11,
021111F,ARVAL PHH=====================,1017240512,36,143.95,FUEL,07/11/11,
021111F,ARVAL PHH=====================,1017240512,37,544.18,FUEL,07/11/11,
021111F,ARVAL PHH=====================,1017240512,38,115.56,FUEL,07/11/11,
021111F,ARVAL PHH=====================,1017240512,39,114.56,FUEL,07/11/11,
021111F,ARVAL PHH=====================,1017240512,40,638.04,FUEL,07/11/11,
021111F,ARVAL PHH=====================,1017240512,41,181.52,FUEL,07/11/11,
021111F,ARVAL PHH=====================,1017240512,42,190.98,FUEL,07/11/11,
021111F,ARVAL PHH=====================,1017240512,43,158.01,FUEL,07/11/11,
021111F,ARVAL PHH=====================,1017240512,44,157.45,FUEL,07/11/11,
021111F,ARVAL PHH=====================,1017240512,45,281.38,FUEL,07/11/11,
021111F,ARVAL PHH=====================,1017240512,46,187.13,FUEL,07/11/11,
021111F,ARVAL PHH=====================,1017240512,47,202.11,FUEL,07/11/11,
021111F,ARVAL PHH=====================,1017240512,48,144.67,FUEL,07/11/11,
021111F,ARVAL PHH=====================,1017240512,49,150.42,FUEL,07/11/11,
021111F,ARVAL PHH=====================,1017240512,50,271.42,FUEL,07/11/11,
021111F,ARVAL PHH=====================,1017240512,51,105.26,FUEL,07/11/11,
021111F,ARVAL PHH=====================,1017240512,52,207.05,FUEL,07/11/11,
021111F,ARVAL PHH=====================,1017240512,53,864.38,FUEL,07/11/11,
021111F,ARVAL PHH=====================,1017240512,54,385.95,FUEL,07/11/11,
021111F,ARVAL PHH=====================,1017240512,55,278.53,FUEL,07/11/11,
021111F,ARVAL PHH=====================,1017240512,56,336.70,FUEL,07/11/11,
021111F,ARVAL PHH=====================,1017240512,57,349.58,FUEL,07/11/11,
021111F,ARVAL PHH=====================,1017240512,58,643.32,FUEL,07/11/11,
021111F,ARVAL PHH=====================,1017240512,59,100.92,FUEL,07/11/11,
021111F,ARVAL PHH=====================,1017240512,60,236.86,FUEL,07/11/11,
021111F,ARVAL PHH=====================,1017240512,61,133.43,FUEL,07/11/11,
021111F,ARVAL PHH=====================,1017240512,62,131.92,FUEL,07/11/11,
021111F,ARVAL PHH=====================,1017240512,63,255.02,FUEL,07/11/11,
021111F,ARVAL PHH=====================,1017240512,64,381.88,FUEL,07/11/11,
021111F,ARVAL PHH=====================,1017240512,65,105.59,FUEL,07/11/11,
021111F,ARVAL PHH=====================,1017240512,66,192.41,FUEL,07/11/11,
021111F,ARVAL PHH=====================,1017240512,67,62.44,FUEL,07/11/11,
021111F,ARVAL PHH=====================,1017240512,68,579.53,FUEL,07/11/11,
021111F,ARVAL PHH=====================,1017240512,69,128.65,FUEL,07/11/11,
021111F,ARVAL PHH=====================,1017240512,70,138.01,FUEL,07/11/11,
021111F,ARVAL PHH=====================,1017240512,71,57.57,FUEL,07/11/11,
021111F,ARVAL PHH=====================,1017240512,72,163.19,FUEL,07/11/11,
021111F,ARVAL PHH=====================,1017240512,73,166.37,FUEL,07/11/11,
021111F,ARVAL PHH=====================,1017240512,74,304.16,FUEL,07/11/11,
021111F,ARVAL PHH=====================,1017240512,75,"1,130.06",FUEL,07/11/11,
021111F,ARVAL PHH=====================,1017240512,76,154.89,FUEL,07/11/11,
021111F,ARVAL PHH=====================,1017240512,77,124.09,FUEL,07/11/11,
021111F,ARVAL PHH=====================,1017240512,78,120.89,FUEL,07/11/11,
021111F,ARVAL PHH=====================,1017240512,79,126.53,FUEL,07/11/11,
021111F,ARVAL PHH=====================,1017240512,80,114.63,FUEL,07/11/11,
021111F,ARVAL PHH=====================,1017240512,81,164.39,FUEL,07/11/11,
021111F,ARVAL PHH=====================,1017240512,82,77.67,FUEL,07/11/11,
021111F,ARVAL PHH=====================,1017240512,83,210.89,FUEL,07/11/11,
021111F,ARVAL PHH=====================,1017240512,84,248.53,FUEL,07/11/11,
021111F,ARVAL PHH=====================,1017240512,85,150.22,FUEL,07/11/11,
021111F,ARVAL PHH=====================,1017240512,86,311.61,FUEL,07/11/11,
021111F,ARVAL PHH=====================,1017240512,87,116.09,FUEL,07/11/11,
021111F,ARVAL PHH=====================,1017240512,88,"1,029.96",FUEL,07/11/11,
021111F,ARVAL PHH=====================,1017240512,89,790.22,FUEL,07/11/11,
021111F,ARVAL PHH=====================,1017240512,90,121.60,FUEL,07/11/11,
021111F,ARVAL PHH=====================,1017240512,91,87.09,FUEL,07/11/11,
021111F,ARVAL PHH=====================,1017240512,92,127.13,FUEL,07/11/11,
021111F,ARVAL PHH=====================,1017240512,93,95.61,FUEL,07/11/11,
021111F,ARVAL PHH=====================,1017240512,94,176.60,FUEL,07/11/11,
021111F,ARVAL PHH=====================,1017240512,95,164.26,FUEL,07/11/11,
021111F,ARVAL PHH=====================,1017240512,96,55.80,FUEL,07/11/11,
021111F,ARVAL PHH=====================,1017240512,97,107.50,FUEL,07/11/11,
021111F,ARVAL PHH=====================,1017240512,98,270.53,FUEL,07/11/11,
021111F,ARVAL PHH=====================,1017240512,99,83.53,FUEL,07/11/11,
021111F,ARVAL PHH=====================,1017240512,100,110.11,FUEL,07/11/11,
021111F,ARVAL PHH=====================,1017240512,101,143.49,FUEL,07/11/11,
021111F,ARVAL PHH=====================,1017240512,102,31.49,FUEL,07/11/11,
021111F,ARVAL PHH=====================,1017240512,103,52.62,FUEL,07/11/11,
021111F,ARVAL PHH=====================,1017240512,104,62.79,FUEL,07/11/11,
021111F,ARVAL PHH=====================,1017240512,105,51.26,FUEL,07/11/11,
021111F,ARVAL PHH=====================,1017240512,106,118.90,FUEL,07/11/11,
021111F,ARVAL PHH=====================,1017240512,107,172.12,FUEL,07/11/11,
021111F,ARVAL PHH=====================,1017240512,108,57.22,FUEL,07/11/11,
021111F,ARVAL PHH=====================,1017240512,109,92.50,FUEL,07/11/11,
021111F,ARVAL PHH=====================,1017240512,110,372.08,FUEL,07/11/11,
021111F,ARVAL PHH=====================,1017240512,111,12.85,FUEL,07/11/11,
021111F,ARVAL PHH=====================,1017240512,112,80.49,FUEL,07/11/11,
021111F,ARVAL PHH=====================,1017240512,113,10.97,FUEL,07/11/11,
021111F,ARVAL PHH=====================,1017240512,114,59.41,FUEL,07/11/11,
021111F,ARVAL PHH=====================,1017240512,115,16.75,FUEL,07/11/11,
021111F,ARVAL PHH=====================,1017240512,116,110.53,FUEL,07/11/11,
021111A,*SPRUE SAFETY PRODUCTS LTD====,1023450,1,"2,275.20",FIRE DETECTORS,07/11/11,"2,275.20"
271011C,*SPRUE SAFETY PRODUCTS LTD====,1024263,1,"5,056.00",FIRE DETECTORS,07/11/11,"5,056.00"
271011C,*SPRUE SAFETY PRODUCTS LTD====,1024264,1,"3,429.00",FIRE DETECTORS,07/11/11,"3,429.00"
271011C,*SPRUE SAFETY PRODUCTS LTD====,1024265,1,"3,800.00",FIRE DETECTORS,07/11/11,"3,800.00"
271011C,*SPRUE SAFETY PRODUCTS LTD====,1024266,1,"1,120.00",FIRE DETECTORS,07/11/11,"1,120.00"
031111G,INFOR GLOBAL SOLUTIONS LTD====,11002276-00U7,1,535.00,MAINTENANCE & SUPPORT,07/11/11,535.00
251011C,KIER BUILDING SERV ENGINEERS==,11040233,1,"45,889.69",TACTICAL DAY TO DAY,07/11/11,"83,832.73"
251011C,KIER BUILDING SERV ENGINEERS==,11040233,2,"36,061.59",STRATEGIC (CYCLICAL),07/11/11,
251011C,KIER BUILDING SERV ENGINEERS==,11040233,3,385.64,STRATEGIC (CYCLICAL),07/11/11,
251011C,KIER BUILDING SERV ENGINEERS==,11040233,4,583.57,STRATEGIC (CYCLICAL),07/11/11,
251011C,KIER BUILDING SERV ENGINEERS==,11040233,5,533.17,STRATEGIC (CYCLICAL),07/11/11,
251011C,KIER BUILDING SERV ENGINEERS==,11040233,6,275.44,STRATEGIC (CYCLICAL),07/11/11,
251011C,KIER BUILDING SERV ENGINEERS==,11040233,7,103.63,STRATEGIC (CYCLICAL),07/11/11,
139395,B NOKES CONTRACTS LTD,1271,1,"1,472.50",DEVELOPMENT EXP - CONTRACTORS,07/11/11,"1,472.50"
139395,B NOKES CONTRACTS LTD,1290,1,"1,875.65",STRATEGIC (NON CYCLICAL),07/11/11,"3,891.65"
139395,B NOKES CONTRACTS LTD,1290,2,"2,016.00",STRATEGIC (NON CYCLICAL),07/11/11,
139395,B NOKES CONTRACTS LTD,1291,1,379.50,DAY TO DAY MINOR IMPS,07/11/11,"1,639.50"
139395,B NOKES CONTRACTS LTD,1291,2,"1,260.00",DAY TO DAY MINOR IMPS,07/11/11,
139395,B NOKES CONTRACTS LTD,1292,1,391.00,DAY TO DAY MINOR IMPS,07/11/11,769.00
139395,B NOKES CONTRACTS LTD,1292,2,378.00,DAY TO DAY MINOR IMPS,07/11/11,
139395,B NOKES CONTRACTS LTD,1293,1,336.00,STRATEGIC (NON CYCLICAL),07/11/11,"1,128.50"
139395,B NOKES CONTRACTS LTD,1293,2,792.50,STRATEGIC (NON CYCLICAL),07/11/11,
139395,B NOKES CONTRACTS LTD,1294,1,356.50,DAY TO DAY MINOR IMPS,07/11/11,776.50
139395,B NOKES CONTRACTS LTD,1294,2,420.00,DAY TO DAY MINOR IMPS,07/11/11,
139395,B NOKES CONTRACTS LTD,1295,1,"1,725.00",STRATEGIC (NON CYCLICAL),07/11/11,"2,145.00"
139395,B NOKES CONTRACTS LTD,1295,2,420.00,STRATEGIC (NON CYCLICAL),07/11/11,
139395,B NOKES CONTRACTS LTD,1296,1,460.00,DAY TO DAY MINOR IMPS,07/11/11,670.00
139395,B NOKES CONTRACTS LTD,1296,2,210.00,DAY TO DAY MINOR IMPS,07/11/11,
139395,B NOKES CONTRACTS LTD,1299,1,695.25,DAY TO DAY MINOR IMPS,07/11/11,"1,325.25"
139395,B NOKES CONTRACTS LTD,1299,2,630.00,DAY TO DAY MINOR IMPS,07/11/11,
139395,B NOKES CONTRACTS LTD,1304,1,172.50,REMOVALS,07/11/11,592.50
139395,B NOKES CONTRACTS LTD,1304,2,420.00,REMOVALS,07/11/11,
021111A,GP CONTRACTS==================,14168,1,470.00,OFFICE FURNITURE,07/11/11,940.00
021111A,GP CONTRACTS==================,14168,2,470.00,OFFICE FURNITURE,07/11/11,
021111A,DRON & WRIGHT=================,15283,1,390.00,PROFESSIONAL SERVICES,07/11/11,"20,487.55"
021111A,DRON & WRIGHT=================,15283,2,"3,824.15",PROFESSIONAL SERVICES,07/11/11,
021111A,DRON & WRIGHT=================,15283,3,833.33,PROFESSIONAL SERVICES,07/11/11,
021111A,DRON & WRIGHT=================,15283,4,35.00,PROFESSIONAL SERVICES,07/11/11,
021111A,DRON & WRIGHT=================,15283,5,45.00,PROFESSIONAL SERVICES,07/11/11,
021111A,DRON & WRIGHT=================,15283,6,48.00,PROFESSIONAL SERVICES,07/11/11,
021111A,DRON & WRIGHT=================,15283,7,"1,000.00",PROFESSIONAL SERVICES,07/11/11,
021111A,DRON & WRIGHT=================,15283,8,600.00,PROFESSIONAL SERVICES,07/11/11,
021111A,DRON & WRIGHT=================,15283,9,35.00,PROFESSIONAL SERVICES,07/11/11,
021111A,DRON & WRIGHT=================,15283,10,45.00,PROFESSIONAL SERVICES,07/11/11,
021111A,DRON & WRIGHT=================,15283,11,45.00,PROFESSIONAL SERVICES,07/11/11,
021111A,DRON & WRIGHT=================,15283,12,"1,155.00",PROFESSIONAL SERVICES,07/11/11,
021111A,DRON & WRIGHT=================,15283,13,45.00,PROFESSIONAL SERVICES,07/11/11,
021111A,DRON & WRIGHT=================,15283,14,225.00,PROFESSIONAL SERVICES,07/11/11,
021111A,DRON & WRIGHT=================,15283,15,"1,207.70",PROFESSIONAL FEES - MISC,07/11/11,
021111A,DRON & WRIGHT=================,15283,16,783.20,PROFESSIONAL SERVICES,07/11/11,
021111A,DRON & WRIGHT=================,15283,17,532.50,PROFESSIONAL SERVICES,07/11/11,
021111A,DRON & WRIGHT=================,15283,18,183.80,PROFESSIONAL SERVICES,07/11/11,
021111A,DRON & WRIGHT=================,15283,19,67.50,PROFESSIONAL FEES - MISC,07/11/11,
021111A,DRON & WRIGHT=================,15283,20,34.00,PROFESSIONAL SERVICES,07/11/11,
021111A,DRON & WRIGHT=================,15283,21,176.00,PROFESSIONAL SERVICES,07/11/11,
021111A,DRON & WRIGHT=================,15283,22,525.00,PROFESSIONAL SERVICES,07/11/11,
021111A,DRON & WRIGHT=================,15283,23,331.65,DISPOSAL COSTS - ESTATE AGENTS,07/11/11,
021111A,DRON & WRIGHT=================,15283,24,403.35,DISPOSAL COSTS - ESTATE AGENTS,07/11/11,
021111A,DRON & WRIGHT=================,15283,25,405.00,PROFESSIONAL SERVICES,07/11/11,
021111A,DRON & WRIGHT=================,15283,26,135.00,PROFESSIONAL SERVICES,07/11/11,
021111A,DRON & WRIGHT=================,15283,27,90.00,PROFESSIONAL SERVICES,07/11/11,
021111A,DRON & WRIGHT=================,15283,28,225.00,PROFESSIONAL SERVICES,07/11/11,
021111A,DRON & WRIGHT=================,15283,29,510.20,PROFESSIONAL SERVICES,07/11/11,
021111A,DRON & WRIGHT=================,15283,30,42.00,PROFESSIONAL SERVICES,07/11/11,
021111A,DRON & WRIGHT=================,15283,31,735.00,PROFESSIONAL FEES - MISC,07/11/11,
021111A,DRON & WRIGHT=================,15283,32,105.00,PROFESSIONAL FEES - MISC,07/11/11,
021111A,DRON & WRIGHT=================,15283,33,711.00,PROFESSIONAL SERVICES,07/11/11,
021111A,DRON & WRIGHT=================,15283,34,585.00,PROFESSIONAL SERVICES,07/11/11,
021111A,DRON & WRIGHT=================,15283,35,70.00,PROFESSIONAL FEES - MISC,07/11/11,
021111A,DRON & WRIGHT=================,15283,36,"1,007.50",PROFESSIONAL SERVICES,07/11/11,
021111A,DRON & WRIGHT=================,15283,37,265.00,PROFESSIONAL SERVICES,07/11/11,
021111A,DRON & WRIGHT=================,15283,38,495.00,PROFESSIONAL SERVICES,07/11/11,
021111A,DRON & WRIGHT=================,15283,39,35.00,PROFESSIONAL FEES - MISC,07/11/11,
021111A,DRON & WRIGHT=================,15283,40,"1,170.00",PROFESSIONAL SERVICES,07/11/11,
021111A,DRON & WRIGHT=================,15283,41,665.00,PROFESSIONAL SERVICES,07/11/11,
021111A,DRON & WRIGHT=================,15283,42,250.00,PROFESSIONAL SERVICES,07/11/11,
021111A,DRON & WRIGHT=================,15283,43,416.67,PROFESSIONAL SERVICES,07/11/11,
021111A,GRADIENT CONSULTANTS LLP======,1629,1,290.02,DEVELOPMENT EXP - CONTRACTORS,07/11/11,"7,153.35"
021111A,GRADIENT CONSULTANTS LLP======,1629,2,104.41,DEVELOPMENT EXP - CONTRACTORS,07/11/11,
021111A,GRADIENT CONSULTANTS LLP======,1629,3,346.98,DEVELOPMENT EXP - CONTRACTORS,07/11/11,
021111A,GRADIENT CONSULTANTS LLP======,1629,4,251.80,DEVELOPMENT EXP - CONTRACTORS,07/11/11,
021111A,GRADIENT CONSULTANTS LLP======,1629,5,61.96,PROFESSIONAL FEES - MISC,07/11/11,
021111A,GRADIENT CONSULTANTS LLP======,1629,6,92.28,PROFESSIONAL FEES - MISC,07/11/11,
021111A,GRADIENT CONSULTANTS LLP======,1629,7,290.02,DEVELOPMENT EXP - CONTRACTORS,07/11/11,
021111A,GRADIENT CONSULTANTS LLP======,1629,8,104.41,PROFESSIONAL FEES - MISC,07/11/11,
021111A,GRADIENT CONSULTANTS LLP======,1629,9,295.30,DEVELOPMENT EXP - CONTRACTORS,07/11/11,
021111A,GRADIENT CONSULTANTS LLP======,1629,10,189.84,DEVELOPMENT EXP - CONTRACTORS,07/11/11,
021111A,GRADIENT CONSULTANTS LLP======,1629,11,295.31,DEVELOPMENT EXP - CONTRACTORS,07/11/11,
021111A,GRADIENT CONSULTANTS LLP======,1629,12,52.74,DEVELOPMENT EXP - CONTRACTORS,07/11/11,
021111A,GRADIENT CONSULTANTS LLP======,1629,13,189.84,PROFESSIONAL FEES - MISC,07/11/11,
021111A,GRADIENT CONSULTANTS LLP======,1629,14,52.09,DEVELOPMENT EXP - CONTRACTORS,07/11/11,
021111A,GRADIENT CONSULTANTS LLP======,1629,15,143.96,DEVELOPMENT EXP - CONTRACTORS,07/11/11,
021111A,GRADIENT CONSULTANTS LLP======,1629,16,104.41,DEVELOPMENT EXP - CONTRACTORS,07/11/11,
021111A,GRADIENT CONSULTANTS LLP======,1629,17,104.41,DEVELOPMENT EXP - CONTRACTORS,07/11/11,
021111A,GRADIENT CONSULTANTS LLP======,1629,18,92.29,PROFESSIONAL FEES - MISC,07/11/11,
021111A,GRADIENT CONSULTANTS LLP======,1629,19,290.02,PROFESSIONAL FEES - MISC,07/11/11,
021111A,GRADIENT CONSULTANTS LLP======,1629,20,123.92,PROFESSIONAL FEES - MISC,07/11/11,
021111A,GRADIENT CONSULTANTS LLP======,1629,21,104.41,PROFESSIONAL FEES - MISC,07/11/11,
021111A,GRADIENT CONSULTANTS LLP======,1629,22,242.57,DEVELOPMENT EXP - CONTRACTORS,07/11/11,
021111A,GRADIENT CONSULTANTS LLP======,1629,23,166.37,PROFESSIONAL FEES - MISC,07/11/11,
021111A,GRADIENT CONSULTANTS LLP======,1629,24,346.98,PROFESSIONAL FEES - MISC,07/11/11,
021111A,GRADIENT CONSULTANTS LLP======,1629,25,242.57,DEVELOPMENT EXP - CONTRACTORS,07/11/11,
021111A,GRADIENT CONSULTANTS LLP======,1629,26,242.57,DEVELOPMENT EXP - CONTRACTORS,07/11/11,
021111A,GRADIENT CONSULTANTS LLP======,1629,27,358.84,DEVELOPMENT EXP - CONTRACTORS,07/11/11,
021111A,GRADIENT CONSULTANTS LLP======,1629,28,104.41,PROFESSIONAL FEES - MISC,07/11/11,
021111A,GRADIENT CONSULTANTS LLP======,1629,29,242.57,PROFESSIONAL FEES - MISC,07/11/11,
021111A,GRADIENT CONSULTANTS LLP======,1629,30,790.97,DEVELOPMENT EXP - CONTRACTORS,07/11/11,
021111A,GRADIENT CONSULTANTS LLP======,1629,31,104.41,DEVELOPMENT EXP - CONTRACTORS,07/11/11,
021111A,GRADIENT CONSULTANTS LLP======,1629,32,104.41,DEVELOPMENT EXP - CONTRACTORS,07/11/11,
021111A,GRADIENT CONSULTANTS LLP======,1629,33,104.41,DEVELOPMENT EXP - CONTRACTORS,07/11/11,
021111A,GRADIENT CONSULTANTS LLP======,1629,34,196.69,PROFESSIONAL FEES - MISC,07/11/11,
021111A,GRADIENT CONSULTANTS LLP======,1629,35,104.41,PROFESSIONAL FEES - MISC,07/11/11,
021111A,GRADIENT CONSULTANTS LLP======,1629,36,220.75,PROFESSIONAL FEES - MISC,07/11/11,
021111A,AGE CONCERN TOWER HAMLETS,2045,1,"2,500.00",HFSC - TOWER HAMLETS BOROUGH,07/11/11,"2,500.00"
021111A,ARKAS LIMITED=================,21039,1,"1,627.00",STRATEGIC (CYCLICAL),07/11/11,"2,907.00"
021111A,ARKAS LIMITED=================,21039,2,"1,280.00",STRATEGIC (CYCLICAL),07/11/11,
021111C,ARKAS LIMITED=================,21399,1,"4,977.92",STRATEGIC (CYCLICAL),07/11/11,"4,977.92"
031111G,BRITISH TELECOM===============,25237476Q041,1,"102,983.65",TELECOMMUNICATIONS,07/11/11,"102,983.65"
800004828,ADECCO UK LIMITED=============,25776281,1,744.10,FRS STAFF AGENCY,07/11/11,744.10
800005019,ADECCO UK LIMITED=============,25789985,1,744.10,FRS STAFF AGENCY,07/11/11,744.10
800005153,ADECCO UK LIMITED=============,25791929,1,675.20,FRS STAFF AGENCY,07/11/11,675.20
800005060,ADECCO UK LIMITED=============,25794229,1,860.00,FRS STAFF AGENCY,07/11/11,860.00
800005061,ADECCO UK LIMITED=============,25794230,1,"1,290.00",FRS STAFF AGENCY,07/11/11,"1,290.00"
800005062,ADECCO UK LIMITED=============,25794231,1,860.00,FRS STAFF AGENCY,07/11/11,860.00
800005063,ADECCO UK LIMITED=============,25794232,1,860.00,FRS STAFF AGENCY,07/11/11,860.00
800005064,ADECCO UK LIMITED=============,25794233,1,860.00,FRS STAFF AGENCY,07/11/11,860.00
800005075,ADECCO UK LIMITED=============,25794244,1,"2,700.00",FRS STAFF AGENCY,07/11/11,"2,700.00"
800005076,ADECCO UK LIMITED=============,25794245,1,"2,700.00",FRS STAFF AGENCY,07/11/11,"2,700.00"
800005077,ADECCO UK LIMITED=============,25794246,1,"2,700.00",FRS STAFF AGENCY,07/11/11,"2,700.00"
800005083,ADECCO UK LIMITED=============,25794252,1,850.00,FRS STAFF AGENCY,07/11/11,850.00
800005084,ADECCO UK LIMITED=============,25794253,1,850.00,FRS STAFF AGENCY,07/11/11,850.00
800005085,ADECCO UK LIMITED=============,25794254,1,850.00,FRS STAFF AGENCY,07/11/11,850.00
800005086,ADECCO UK LIMITED=============,25794255,1,850.00,FRS STAFF AGENCY,07/11/11,850.00
021111C,MACE LIMITED,26915/1011374,1,"7,637.50",STRATEGIC (NON CYCLICAL),07/11/11,"7,637.50"
021111A,EXPRESS VENDING LIMITED=======,279557,1,520.00,CATERING EQUIPMENT,07/11/11,520.00
021111A,BREYER GROUP PLC==============,32941,1,"3,601.65",DEVELOPMENT EXP - CONTRACTOR,07/11/11,"3,601.65"
139397,LONDON PENSIONS FUND AUTHORITY,3960,1,"81,493.46",LOCAL GOVT PENSION SCHEME PAYM,07/11/11,"81,493.46"
021111A,CANON (UK) LTD===============,401122280,1,"1,147.67",OFFICE EQUIPMENT,07/11/11,"1,147.67"
261011C,BADENOCH & CLARK==============,4153906,1,"2,137.50",FRS STAFF AGENCY,07/11/11,"2,137.50"
261011C,BADENOCH & CLARK==============,4153907,1,"2,137.50",FRS STAFF AGENCY,07/11/11,"2,137.50"
021111A,CARPETS & FLOOR COVERS DIRECT=,440,1,"3,371.78",FIXTURES & FITTINGS,07/11/11,"3,371.78"
021111A,URS SCOTT WILSON LIMITED,4871474,1,"7,608.50",STRATEGIC (NON CYCLICAL),07/11/11,"7,608.50"
021111A,RIG SYSTEMS LTD===============,537,1,"1,575.00",TRAINING & CONFERENCES,07/11/11,"1,575.00"
031111G,PREMIER HOSE TECHNOLOGIES LTD=,619609,1,741.20,GENERAL CONSUMABLES,07/11/11,"1,181.70"
031111G,PREMIER HOSE TECHNOLOGIES LTD=,619609,2,440.50,GENERAL CONSUMABLES,07/11/11,
031111G,CPL PETROLEUM=================,6875135,1,"2,322.00",FUEL,07/11/11,"2,322.00"
241011A,NATIONAL POLICING IMPROVEMENT,90031140,1,"5,235.20",TRAINING & CONFERENCES,07/11/11,"5,235.20"
021111C,AMEY MECHANICAL & ELECTRICAL==,90289906,1,"1,278.60",DAY TO DAY MINOR IMPS,07/11/11,"1,466.10"
021111C,AMEY MECHANICAL & ELECTRICAL==,90289906,2,187.50,DAY TO DAY MINOR IMPS,07/11/11,
311011A,DRAEGER SAFETY UK LIMITED=====,90352950,1,779.52,PROTECTIVE EQUIPT - PARTS,07/11/11,779.52
021111A,NORTHUMBRIAN WATER LTD========,912488964,1,867.00,CURRENT HYDRANT COSTS,07/11/11,867.00
021111A,THAMES WATER UTILITIES LTD====,CBA1127541,1,"1,082.00",CURRENT HYDRANT COSTS,07/11/11,"1,082.00"
021111A,THAMES WATER UTILITIES LTD====,CBA1127574,1,"1,082.00",CURRENT HYDRANT COSTS,07/11/11,"1,082.00"
021111A,THAMES WATER UTILITIES LTD====,CBA1127575,1,"1,082.00",CURRENT HYDRANT COSTS,07/11/11,"1,082.00"
021111A,THAMES WATER UTILITIES LTD====,CBA1127576,1,"1,082.00",HYDRANTS,07/11/11,"1,082.00"
021111A,THAMES WATER UTILITIES LTD====,CBA1127577,1,"1,082.00",HYDRANTS,07/11/11,"1,082.00"
021111A,THAMES WATER UTILITIES LTD====,CBA1127578,1,"1,082.00",HYDRANTS,07/11/11,"1,082.00"
021111A,THAMES WATER UTILITIES LTD====,CBA1127579,1,"1,082.00",HYDRANTS,07/11/11,"1,082.00"
021111A,THAMES WATER UTILITIES LTD====,CBA1127580,1,"1,082.00",HYDRANTS,07/11/11,"1,082.00"
311011C,SURVITEC SERVICE &DISTRIBUTION,CD30664979,1,136.00,PROTECTIVE EQUIPT - PARTS,07/11/11,878.60
311011C,SURVITEC SERVICE &DISTRIBUTION,CD30664979,2,136.00,PROTECTIVE EQUIPT - PARTS,07/11/11,
311011C,SURVITEC SERVICE &DISTRIBUTION,CD30664979,3,606.60,PROTECTIVE EQUIPT - PARTS,07/11/11,
021111C,COLLINS (CONTRACTORS) LTD=====,D135589A,1,"9,284.09",STRATEGIC (NON CYCLICAL),07/11/11,"9,966.30"
021111C,COLLINS (CONTRACTORS) LTD=====,D135589A,2,682.21,STRATEGIC (NON CYCLICAL),07/11/11,
021111A,NCC SERVICES LTD==============,E817189,1,995.00,MAINTENANCE & SUPPORT,07/11/11,995.00
021111A,INFOTERRA=====================,IN021944,1,"104,725.00",MAINTENANCE & SUPPORT,07/11/11,"104,725.00"
021111C,SMITH O'SULLIVAN LTD.=========,LFB/IS/001,1,"10,031.05",STRATEGIC (NON CYCLICAL),07/11/11,"10,031.05"
021111C,ROADTRAIN GROUP PLC===========,PROC/PER/5115/9,1,"17,834.44",TRAINING & CONFERENCES,07/11/11,"24,602.92"
021111C,ROADTRAIN GROUP PLC===========,PROC/PER/5115/9,2,"6,768.48",TRAINING & CONFERENCES,07/11/11,
021111C,SMITH CONSTRUCTION (HECKINGTON,RT6560,1,811.44,DEVELOPMENT EXP - CONTRACTOR,07/11/11,811.44
021111A,AGE CONCERN HAVERING==========,SEPTEMBER2011,1,805.00,HFSC - HAVERING BOROUGH,07/11/11,805.00
021111A,FIRE SERVICE COLLEGE==========,SIN048005,1,"34,350.00",TRAINING & CONFERENCES,07/11/11,"34,350.00"
021111A,IHS GLOBAL LTD================,SINV052428,1,"6,410.00",MAINTENANCE & SUPPORT,07/11/11,"6,410.00"
021111A,COLLINS (CONTRACTORS) LTD=====,SPAK414,1,"39,187.44",STRATEGIC (NON CYCLICAL),07/11/11,"50,518.28"
021111A,COLLINS (CONTRACTORS) LTD=====,SPAK414,2,"11,330.84",STRATEGIC (NON CYCLICAL),07/11/11,
021111A,COLLINS (CONTRACTORS) LTD=====,SPAK562,1,"9,990.00",STRATEGIC (NON CYCLICAL),07/11/11,"9,990.00"
031111G,BRITISH TELECOM===============,VP71178070M17001TM,1,"4,859.36",CALL CHARGES,07/11/11,"128,214.34"
031111G,BRITISH TELECOM===============,VP71178070M17001TM,2,"24,047.34",TELECOMMUNICATIONS,07/11/11,
031111G,BRITISH TELECOM===============,VP71178070M17001TM,3,"99,307.64",TELECOMMUNICATIONS,07/11/11,
139401,H M LAND REGISTRY=============,5961,1,690.00,MISCELLANEOUS DISBURSEMENTS,08/11/11,690.00
139401,H M REVENUE & CUSTOMS=========,8171,1,"3,466.00",RENTS,08/11/11,"3,466.00"
031111C,ENTEL UK LTD==================,0000108127,1,33.09,RADIO,10/11/11,"1,562.63"
031111C,ENTEL UK LTD==================,0000108127,2,856.80,RADIO,10/11/11,
031111C,ENTEL UK LTD==================,0000108127,3,663.74,RADIO,10/11/11,
031111C,ENTEL UK LTD==================,0000108127,4,9.00,RADIO,10/11/11,
261011G,EDENRED (INCENTIVES & MOTIVATI,00470713/00470728,1,"17,432.67",LONG SERVICE MEMENTOS,10/11/11,"17,432.67"
251011A,THE BOWFORD BINDING CO. LTD.==,014212,1,760.00,PRINTING,10/11/11,760.00
251011A,HEMSLEY FRASER TRAINING GROUP=,088173,1,512.10,TRAINING & CONFERENCES,10/11/11,512.10
251011A,HEMSLEY FRASER TRAINING GROUP=,088174,1,512.10,TRAINING & CONFERENCES,10/11/11,512.10
251011A,HEMSLEY FRASER TRAINING GROUP=,088175,1,512.10,TRAINING & CONFERENCES,10/11/11,512.10
311011C,HAYS ACCOUNTANCY & FINANCE====,1001566561,1,696.00,FRS STAFF AGENCY,10/11/11,696.00
081111A,ARVAL PHH=====================,1017301333,1,"1,310.75",CONTRACT HIRE,10/11/11,"1,310.75"
211011C,*SPRUE SAFETY PRODUCTS LTD====,1023449,1,"2,275.20",FIRE DETECTORS,10/11/11,"2,275.20"
031111C,*SPRUE SAFETY PRODUCTS LTD====,1023460,1,"1,137.60",FIRE DETECTORS,10/11/11,"1,137.60"
071111A,NATIONAL DESIGN CONSULTANCY===,105/90195/48,1,265.85,DAY TO DAY MINOR IMPS,10/11/11,"3,760.00"
071111A,NATIONAL DESIGN CONSULTANCY===,105/90195/48,2,265.85,DAY TO DAY MINOR IMPS,10/11/11,
071111A,NATIONAL DESIGN CONSULTANCY===,105/90195/48,3,500.00,DAY TO DAY MINOR IMPS,10/11/11,
071111A,NATIONAL DESIGN CONSULTANCY===,105/90195/48,4,265.85,DAY TO DAY MINOR IMPS,10/11/11,
071111A,NATIONAL DESIGN CONSULTANCY===,105/90195/48,5,470.00,DAY TO DAY MINOR IMPS,10/11/11,
071111A,NATIONAL DESIGN CONSULTANCY===,105/90195/48,6,"1,992.45",PROFESSIONAL FEES - MISC,10/11/11,
081111A,ARIA ESTATES LTD,11/014,1,"2,277.80",OPERATIONAL EQUIP-PURCHASE,10/11/11,"2,277.80"
261011C,KIER BUILDING SERV ENGINEERS==,11040837,1,"2,061.76",STRATEGIC (CYCLICAL),10/11/11,"4,356.24"
261011C,KIER BUILDING SERV ENGINEERS==,11040837,2,"2,294.48",TACTICAL DAY TO DAY,10/11/11,
800005156,PRIMEPEACE LTD================,111001,1,"3,356.25",PROFESSIONAL SERVICES,10/11/11,"35,352.50"
800005156,PRIMEPEACE LTD================,111001,2,"1,342.50",PROFESSIONAL SERVICES,10/11/11,
800005156,PRIMEPEACE LTD================,111001,3,"1,342.50",MAINTENANCE & SUPPORT,10/11/11,
800005156,PRIMEPEACE LTD================,111001,4,"2,685.00",MAINTENANCE & SUPPORT,10/11/11,
800005156,PRIMEPEACE LTD================,111001,5,"2,685.00",MAINTENANCE & SUPPORT,10/11/11,
800005156,PRIMEPEACE LTD================,111001,6,"4,475.00",MAINTENANCE & SUPPORT,10/11/11,
800005156,PRIMEPEACE LTD================,111001,7,"4,475.00",MAINTENANCE & SUPPORT,10/11/11,
800005156,PRIMEPEACE LTD================,111001,8,"4,475.00",MAINTENANCE & SUPPORT,10/11/11,
800005156,PRIMEPEACE LTD================,111001,9,"4,475.00",MAINTENANCE & SUPPORT,10/11/11,
800005156,PRIMEPEACE LTD================,111001,10,"4,475.00",MAINTENANCE & SUPPORT,10/11/11,
800005156,PRIMEPEACE LTD================,111001,11,895.00,MAINTENANCE & SUPPORT,10/11/11,
800005156,PRIMEPEACE LTD================,111001,12,671.25,TELECOMMUNICATIONS,10/11/11,
071111A,DELOITTE LLP,1110729956,1,784.61,PROFESSIONAL SERVICES,10/11/11,784.61
071111A,DELOITTE LLP,1110729960,1,"1,624.27",PROFESSIONAL SERVICES,10/11/11,"1,624.27"
031111C,BT GLOBAL SERVICES============,1116706,1,586.06,TELECOMMUNICATIONS,10/11/11,586.06
031111C,EBSCO INFORMATION SERVICES====,1204756,1,"1,296.69",BOOKS & JOURNALS,10/11/11,"1,296.69"
071111A,GP CONTRACTS==================,14176,1,705.00,TACTICAL DAY TO DAY,10/11/11,705.00
071111G,UNDERSTANDING RECRUITMENT=====,1575,1,"3,850.00",ACQUISITIONS,10/11/11,"3,850.00"
281011C,STORM TECHNOLOGIES============,162936,1,676.38,ACQUISITIONS,10/11/11,676.38
031111C,GRADIENT CONSULTANTS LLP======,1630,1,52.08,DEVELOPMENT EXP - CONTRACTORS,10/11/11,931.31
031111C,GRADIENT CONSULTANTS LLP======,1630,2,103.13,PROFESSIONAL FEES - MISC,10/11/11,
031111C,GRADIENT CONSULTANTS LLP======,1630,3,52.09,PROFESSIONAL FEES - MISC,10/11/11,
031111C,GRADIENT CONSULTANTS LLP======,1630,4,103.13,PROFESSIONAL FEES - MISC,10/11/11,
031111C,GRADIENT CONSULTANTS LLP======,1630,5,52.09,DEVELOPMENT EXP - CONTRACTORS,10/11/11,
031111C,GRADIENT CONSULTANTS LLP======,1630,6,103.13,PROFESSIONAL FEES - MISC,10/11/11,
031111C,GRADIENT CONSULTANTS LLP======,1630,7,52.09,DEVELOPMENT EXP - CONTRACTORS,10/11/11,
031111C,GRADIENT CONSULTANTS LLP======,1630,8,52.09,PROFESSIONAL FEES - MISC,10/11/11,
031111C,GRADIENT CONSULTANTS LLP======,1630,9,103.13,PROFESSIONAL FEES - MISC,10/11/11,
031111C,GRADIENT CONSULTANTS LLP======,1630,10,103.13,PROFESSIONAL FEES - MISC,10/11/11,
031111C,GRADIENT CONSULTANTS LLP======,1630,11,103.13,PROFESSIONAL FEES - MISC,10/11/11,
031111C,GRADIENT CONSULTANTS LLP======,1630,12,52.09,PROFESSIONAL FEES - MISC,10/11/11,
041111G,BOWLES OUTDOOR CENTRE LTD=====,1703,1,"8,849.22",TRAINING & CONFERENCES,10/11/11,"8,849.22"
031111C,CHRISTIE DIGITAL SYSTEMS EURO.,1741383R2-00282138,1,646.75,ACQUISITIONS,10/11/11,646.75
071111A,AUTOGLASS LIMITED=============,17876585,1,527.23,WINDSCREEN & TYRE CHARGES,10/11/11,527.23
251011G,BIGHAND LTD===================,20017201,1,287.80,OFFICE EQUIPMENT,10/11/11,"1,448.50"
251011G,BIGHAND LTD===================,20017201,2,484.10,OFFICE EQUIPMENT,10/11/11,
251011G,BIGHAND LTD===================,20017201,3,676.60,OFFICE EQUIPMENT,10/11/11,
139395,REACTIVE ROOFING (UK) LIMITED,2052,1,"1,800.00",STRATEGIC (NON CYCLICAL),10/11/11,"2,788.00"
139395,REACTIVE ROOFING (UK) LIMITED,2052,2,988.00,STRATEGIC (NON CYCLICAL),10/11/11,
311011A,MITIE TECH FACILITIES MNGT LT,220128277,1,"1,747.40",DAY TO DAY MINOR IMPS,10/11/11,"1,747.40"
311011A,MITIE TECH FACILITIES MNGT LT,220128283,1,876.20,DAY TO DAY MINOR IMPS,10/11/11,876.20
800005157,ADECCO UK LIMITED=============,25779802,1,871.77,FRS STAFF AGENCY,10/11/11,871.77
800005159,ADECCO UK LIMITED=============,25779802B,1,507.50,FRS STAFF AGENCY,10/11/11,507.50
800005016,ADECCO UK LIMITED=============,25789982,1,"1,086.68",FRS STAFF AGENCY,10/11/11,"1,086.68"
800005024,ADECCO UK LIMITED=============,25789990,1,"1,121.85",FRS STAFF AGENCY,10/11/11,"1,121.85"
800005025,ADECCO UK LIMITED=============,25789991,1,"1,084.03",FRS STAFF AGENCY,10/11/11,"1,084.03"
800005030,ADECCO UK LIMITED=============,25789996,1,850.40,FRS STAFF AGENCY,10/11/11,850.40
800005049,ADECCO UK LIMITED=============,25790018,1,636.48,FRS STAFF AGENCY,10/11/11,636.48
800005065,ADECCO UK LIMITED=============,25794234,1,860.00,FRS STAFF AGENCY,10/11/11,860.00
800005066,ADECCO UK LIMITED=============,25794235,1,860.00,FRS STAFF AGENCY,10/11/11,860.00
800005067,ADECCO UK LIMITED=============,25794236,1,860.00,FRS STAFF AGENCY,10/11/11,860.00
800005087,ADECCO UK LIMITED=============,25794256,1,850.00,FRS STAFF AGENCY,10/11/11,850.00
800005088,ADECCO UK LIMITED=============,25794257,1,850.00,FRS STAFF AGENCY,10/11/11,850.00
800005089,ADECCO UK LIMITED=============,25794258,1,850.00,FRS STAFF AGENCY,10/11/11,850.00
800005090,ADECCO UK LIMITED=============,25794259,1,850.00,FRS STAFF AGENCY,10/11/11,850.00
800005091,ADECCO UK LIMITED=============,25794260,1,850.00,FRS STAFF AGENCY,10/11/11,850.00
800005092,ADECCO UK LIMITED=============,25794261,1,680.00,FRS STAFF AGENCY,10/11/11,680.00
800005093,ADECCO UK LIMITED=============,25794262,1,850.00,FRS STAFF AGENCY,10/11/11,850.00
800005094,ADECCO UK LIMITED=============,25794263,1,850.00,FRS STAFF AGENCY,10/11/11,850.00
800005095,ADECCO UK LIMITED=============,25794264,1,850.00,FRS STAFF AGENCY,10/11/11,850.00
800005162,ADECCO UK LIMITED=============,25797479,1,680.32,FRS STAFF AGENCY,10/11/11,680.32
800005163,ADECCO UK LIMITED=============,25797480,1,602.00,FRS STAFF AGENCY,10/11/11,602.00
800005164,ADECCO UK LIMITED=============,25797481,1,"1,449.70",FRS STAFF AGENCY,10/11/11,"1,449.70"
800005165,ADECCO UK LIMITED=============,25797482,1,"1,656.80",FRS STAFF AGENCY,10/11/11,"1,656.80"
800005166,ADECCO UK LIMITED=============,25797483,1,946.75,FRS STAFF AGENCY,10/11/11,946.75
800005168,ADECCO UK LIMITED=============,25797485,1,759.15,FRS STAFF AGENCY,10/11/11,759.15
800005172,ADECCO UK LIMITED=============,25797489,1,946.75,FRS STAFF AGENCY,10/11/11,946.75
800005174,ADECCO UK LIMITED=============,25797491,1,917.56,FRS STAFF AGENCY,10/11/11,917.56
800005175,ADECCO UK LIMITED=============,25797492,1,595.28,FRS STAFF AGENCY,10/11/11,595.28
800005179,ADECCO UK LIMITED=============,25797496,1,"2,463.75",FRS STAFF AGENCY,10/11/11,"2,463.75"
800005180,ADECCO UK LIMITED=============,25797497,1,749.70,FRS STAFF AGENCY,10/11/11,749.70
800005181,ADECCO UK LIMITED=============,25797498,1,741.60,FRS STAFF AGENCY,10/11/11,741.60
800005185,ADECCO UK LIMITED=============,25797502,1,530.95,FRS STAFF AGENCY,10/11/11,530.95
800005186,ADECCO UK LIMITED=============,25797503,1,530.95,FRS STAFF AGENCY,10/11/11,530.95
800005187,ADECCO UK LIMITED=============,25797504,1,"1,203.11",FRS STAFF AGENCY,10/11/11,"1,203.11"
800005188,ADECCO UK LIMITED=============,25797505,1,602.00,FRS STAFF AGENCY,10/11/11,602.00
800005189,ADECCO UK LIMITED=============,25797506,1,"1,426.25",FRS STAFF AGENCY,10/11/11,"1,426.25"
800005194,ADECCO UK LIMITED=============,25797511,1,548.80,FRS STAFF AGENCY,10/11/11,548.80
800005195,ADECCO UK LIMITED=============,25797512,1,578.20,FRS STAFF AGENCY,10/11/11,578.20
800005196,ADECCO UK LIMITED=============,25797513,1,995.80,FRS STAFF AGENCY,10/11/11,995.80
800005198,ADECCO UK LIMITED=============,25797515,1,"1,012.48",FRS STAFF AGENCY,10/11/11,"1,012.48"
800005199,ADECCO UK LIMITED=============,25797516,1,632.80,FRS STAFF AGENCY,10/11/11,632.80
800005200,ADECCO UK LIMITED=============,25797517,1,917.56,FRS STAFF AGENCY,10/11/11,917.56
800005203,ADECCO UK LIMITED=============,25797520,1,933.10,FRS STAFF AGENCY,10/11/11,933.10
800005205,ADECCO UK LIMITED=============,25797522,1,"1,434.65",FRS STAFF AGENCY,10/11/11,"1,434.65"
800005207,ADECCO UK LIMITED=============,25797524,1,530.95,FRS STAFF AGENCY,10/11/11,530.95
800005210,ADECCO UK LIMITED=============,25797527,1,578.20,FRS STAFF AGENCY,10/11/11,578.20
800005214,ADECCO UK LIMITED=============,25797531,1,"1,075.76",FRS STAFF AGENCY,10/11/11,"1,075.76"
800005331,ADECCO UK LIMITED=============,25797535,1,507.50,FRS STAFF AGENCY,10/11/11,507.50
800005332,ADECCO UK LIMITED=============,25797536,1,680.32,FRS STAFF AGENCY,10/11/11,680.32
800005224,ADECCO UK LIMITED=============,25799373,1,675.20,FRS STAFF AGENCY,10/11/11,675.20
800005273,ADECCO UK LIMITED=============,25801215,1,"1,550.00",FRS STAFF AGENCY,10/11/11,"1,550.00"
800005274,ADECCO UK LIMITED=============,25801216,1,"1,550.00",FRS STAFF AGENCY,10/11/11,"1,550.00"
800005275,ADECCO UK LIMITED=============,25801217,1,"1,240.00",FRS STAFF AGENCY,10/11/11,"1,240.00"
800005276,ADECCO UK LIMITED=============,25801218,1,"1,550.00",FRS STAFF AGENCY,10/11/11,"1,550.00"
800005277,ADECCO UK LIMITED=============,25801219,1,"1,550.00",FRS STAFF AGENCY,10/11/11,"1,550.00"
071111A,KNIGHTON CLEANING SERVICES LTD,26202,1,"2,121.10",GENERAL CLEANS,10/11/11,"110,318.86"
071111A,KNIGHTON CLEANING SERVICES LTD,26202,2,"3,444.41",GENERAL CLEANS,10/11/11,
071111A,KNIGHTON CLEANING SERVICES LTD,26202,3,"2,094.86",GENERAL CLEANS,10/11/11,
071111A,KNIGHTON CLEANING SERVICES LTD,26202,4,"1,121.89",GENERAL CLEANS,10/11/11,
071111A,KNIGHTON CLEANING SERVICES LTD,26202,5,"1,078.14",GENERAL CLEANS,10/11/11,
071111A,KNIGHTON CLEANING SERVICES LTD,26202,6,"1,329.47",GENERAL CLEANS,10/11/11,
071111A,KNIGHTON CLEANING SERVICES LTD,26202,7,"2,154.99",GENERAL CLEANS,10/11/11,
071111A,KNIGHTON CLEANING SERVICES LTD,26202,8,"1,473.49",GENERAL CLEANS,10/11/11,
071111A,KNIGHTON CLEANING SERVICES LTD,26202,9,930.45,GENERAL CLEANS,10/11/11,
071111A,KNIGHTON CLEANING SERVICES LTD,26202,10,"1,133.64",GENERAL CLEANS,10/11/11,
071111A,KNIGHTON CLEANING SERVICES LTD,26202,11,"2,334.10",GENERAL CLEANS,10/11/11,
071111A,KNIGHTON CLEANING SERVICES LTD,26202,12,"1,141.46",GENERAL CLEANS,10/11/11,
071111A,KNIGHTON CLEANING SERVICES LTD,26202,13,"1,056.51",GENERAL CLEANS,10/11/11,
071111A,KNIGHTON CLEANING SERVICES LTD,26202,14,"1,095.27",GENERAL CLEANS,10/11/11,
071111A,KNIGHTON CLEANING SERVICES LTD,26202,15,"2,108.48",GENERAL CLEANS,10/11/11,
071111A,KNIGHTON CLEANING SERVICES LTD,26202,16,"2,505.93",GENERAL CLEANS,10/11/11,
071111A,KNIGHTON CLEANING SERVICES LTD,26202,17,"1,058.07",GENERAL CLEANS,10/11/11,
071111A,KNIGHTON CLEANING SERVICES LTD,26202,18,"2,569.81",GENERAL CLEANS,10/11/11,
071111A,KNIGHTON CLEANING SERVICES LTD,26202,19,"1,213.14",GENERAL CLEANS,10/11/11,
071111A,KNIGHTON CLEANING SERVICES LTD,26202,20,"1,957.64",GENERAL CLEANS,10/11/11,
071111A,KNIGHTON CLEANING SERVICES LTD,26202,21,"2,144.78",GENERAL CLEANS,10/11/11,
071111A,KNIGHTON CLEANING SERVICES LTD,26202,22,"1,120.43",GENERAL CLEANS,10/11/11,
071111A,KNIGHTON CLEANING SERVICES LTD,26202,23,"2,517.54",GENERAL CLEANS,10/11/11,
071111A,KNIGHTON CLEANING SERVICES LTD,26202,24,"1,931.63",GENERAL CLEANS,10/11/11,
071111A,KNIGHTON CLEANING SERVICES LTD,26202,25,"1,026.29",GENERAL CLEANS,10/11/11,
071111A,KNIGHTON CLEANING SERVICES LTD,26202,26,"1,321.68",GENERAL CLEANS,10/11/11,
071111A,KNIGHTON CLEANING SERVICES LTD,26202,27,"1,198.03",GENERAL CLEANS,10/11/11,
071111A,KNIGHTON CLEANING SERVICES LTD,26202,28,"1,715.25",GENERAL CLEANS,10/11/11,
071111A,KNIGHTON CLEANING SERVICES LTD,26202,29,"1,568.38",GENERAL CLEANS,10/11/11,
071111A,KNIGHTON CLEANING SERVICES LTD,26202,30,"1,081.46",GENERAL CLEANS,10/11/11,
071111A,KNIGHTON CLEANING SERVICES LTD,26202,31,"1,046.28",GENERAL CLEANS,10/11/11,
071111A,KNIGHTON CLEANING SERVICES LTD,26202,32,"1,472.19",GENERAL CLEANS,10/11/11,
071111A,KNIGHTON CLEANING SERVICES LTD,26202,33,"1,071.23",GENERAL CLEANS,10/11/11,
071111A,KNIGHTON CLEANING SERVICES LTD,26202,34,"1,877.51",GENERAL CLEANS,10/11/11,
071111A,KNIGHTON CLEANING SERVICES LTD,26202,35,"1,609.22",GENERAL CLEANS,10/11/11,
071111A,KNIGHTON CLEANING SERVICES LTD,26202,36,"2,121.20",GENERAL CLEANS,10/11/11,
071111A,KNIGHTON CLEANING SERVICES LTD,26202,37,828.50,GENERAL CLEANS,10/11/11,
071111A,KNIGHTON CLEANING SERVICES LTD,26202,38,"1,112.35",GENERAL CLEANS,10/11/11,
071111A,KNIGHTON CLEANING SERVICES LTD,26202,39,"1,117.34",GENERAL CLEANS,10/11/11,
071111A,KNIGHTON CLEANING SERVICES LTD,26202,40,"1,536.25",GENERAL CLEANS,10/11/11,
071111A,KNIGHTON CLEANING SERVICES LTD,26202,41,"1,039.88",GENERAL CLEANS,10/11/11,
071111A,KNIGHTON CLEANING SERVICES LTD,26202,42,843.06,GENERAL CLEANS,10/11/11,
071111A,KNIGHTON CLEANING SERVICES LTD,26202,43,"2,246.00",GENERAL CLEANS,10/11/11,
071111A,KNIGHTON CLEANING SERVICES LTD,26202,44,"1,664.63",GENERAL CLEANS,10/11/11,
071111A,KNIGHTON CLEANING SERVICES LTD,26202,45,"1,029.14",GENERAL CLEANS,10/11/11,
071111A,KNIGHTON CLEANING SERVICES LTD,26202,46,"3,787.29",GENERAL CLEANS,10/11/11,
071111A,KNIGHTON CLEANING SERVICES LTD,26202,47,"1,292.26",GENERAL CLEANS,10/11/11,
071111A,KNIGHTON CLEANING SERVICES LTD,26202,48,"1,669.91",GENERAL CLEANS,10/11/11,
071111A,KNIGHTON CLEANING SERVICES LTD,26202,49,"1,388.44",GENERAL CLEANS,10/11/11,
071111A,KNIGHTON CLEANING SERVICES LTD,26202,50,"1,080.32",GENERAL CLEANS,10/11/11,
071111A,KNIGHTON CLEANING SERVICES LTD,26202,51,216.77,GENERAL CLEANS,10/11/11,
071111A,KNIGHTON CLEANING SERVICES LTD,26202,52,"1,018.83",GENERAL CLEANS,10/11/11,
071111A,KNIGHTON CLEANING SERVICES LTD,26202,53,"1,184.90",GENERAL CLEANS,10/11/11,
071111A,KNIGHTON CLEANING SERVICES LTD,26202,54,"2,504.56",GENERAL CLEANS,10/11/11,
071111A,KNIGHTON CLEANING SERVICES LTD,26202,55,"1,034.52",GENERAL CLEANS,10/11/11,
071111A,KNIGHTON CLEANING SERVICES LTD,26202,56,"2,241.56",GENERAL CLEANS,10/11/11,
071111A,KNIGHTON CLEANING SERVICES LTD,26202,57,767.94,GENERAL CLEANS,10/11/11,
071111A,KNIGHTON CLEANING SERVICES LTD,26202,58,952.99,GENERAL CLEANS,10/11/11,
071111A,KNIGHTON CLEANING SERVICES LTD,26202,59,"1,073.14",GENERAL CLEANS,10/11/11,
071111A,KNIGHTON CLEANING SERVICES LTD,26202,60,822.84,GENERAL CLEANS,10/11/11,
071111A,KNIGHTON CLEANING SERVICES LTD,26202,61,"2,497.85",GENERAL CLEANS,10/11/11,
071111A,KNIGHTON CLEANING SERVICES LTD,26202,62,"1,333.57",GENERAL CLEANS,10/11/11,
071111A,KNIGHTON CLEANING SERVICES LTD,26202,64,"2,977.00",GENERAL CLEANS,10/11/11,
071111A,KNIGHTON CLEANING SERVICES LTD,26202,65,"1,058.83",GENERAL CLEANS,10/11/11,
071111A,KNIGHTON CLEANING SERVICES LTD,26202,66,869.53,GENERAL CLEANS,10/11/11,
071111A,KNIGHTON CLEANING SERVICES LTD,26202,67,"2,835.28",GENERAL CLEANS,10/11/11,
071111A,KNIGHTON CLEANING SERVICES LTD,26202,68,"1,401.00",GENERAL CLEANS,10/11/11,
071111A,KNIGHTON CLEANING SERVICES LTD,26202,69,"1,042.10",GENERAL CLEANS,10/11/11,
071111A,KNIGHTON CLEANING SERVICES LTD,26202,70,"1,304.20",GENERAL CLEANS,10/11/11,
071111A,KNIGHTON CLEANING SERVICES LTD,26202,71,"2,302.79",GENERAL CLEANS,10/11/11,
071111A,KNIGHTON CLEANING SERVICES LTD,26202,72,"1,497.34",GENERAL CLEANS,10/11/11,
071111A,KNIGHTON CLEANING SERVICES LTD,26204,1,"1,008.18",GENERAL CLEANS,10/11/11,"87,939.20"
071111A,KNIGHTON CLEANING SERVICES LTD,26204,2,"1,003.02",GENERAL CLEANS,10/11/11,
071111A,KNIGHTON CLEANING SERVICES LTD,26204,3,"1,795.71",GENERAL CLEANS,10/11/11,
071111A,KNIGHTON CLEANING SERVICES LTD,26204,4,"1,501.02",GENERAL CLEANS,10/11/11,
071111A,KNIGHTON CLEANING SERVICES LTD,26204,5,680.82,GENERAL CLEANS,10/11/11,
071111A,KNIGHTON CLEANING SERVICES LTD,26204,6,"1,460.92",GENERAL CLEANS,10/11/11,
071111A,KNIGHTON CLEANING SERVICES LTD,26204,7,"2,251.45",GENERAL CLEANS,10/11/11,
071111A,KNIGHTON CLEANING SERVICES LTD,26204,8,"2,348.88",GENERAL CLEANS,10/11/11,
071111A,KNIGHTON CLEANING SERVICES LTD,26204,9,"4,274.20",GENERAL CLEANS,10/11/11,
071111A,KNIGHTON CLEANING SERVICES LTD,26204,10,"1,035.83",GENERAL CLEANS,10/11/11,
071111A,KNIGHTON CLEANING SERVICES LTD,26204,11,819.13,GENERAL CLEANS,10/11/11,
071111A,KNIGHTON CLEANING SERVICES LTD,26204,12,"1,227.83",GENERAL CLEANS,10/11/11,
071111A,KNIGHTON CLEANING SERVICES LTD,26204,13,"1,367.85",GENERAL CLEANS,10/11/11,
071111A,KNIGHTON CLEANING SERVICES LTD,26204,14,"1,041.50",GENERAL CLEANS,10/11/11,
071111A,KNIGHTON CLEANING SERVICES LTD,26204,15,"1,080.27",GENERAL CLEANS,10/11/11,
071111A,KNIGHTON CLEANING SERVICES LTD,26204,16,"1,028.13",GENERAL CLEANS,10/11/11,
071111A,KNIGHTON CLEANING SERVICES LTD,26204,17,"1,653.11",GENERAL CLEANS,10/11/11,
071111A,KNIGHTON CLEANING SERVICES LTD,26204,18,"1,096.91",GENERAL CLEANS,10/11/11,
071111A,KNIGHTON CLEANING SERVICES LTD,26204,19,492.52,GENERAL CLEANS,10/11/11,
071111A,KNIGHTON CLEANING SERVICES LTD,26204,20,"17,411.84",GENERAL CLEANS,10/11/11,
071111A,KNIGHTON CLEANING SERVICES LTD,26204,21,"1,126.86",GENERAL CLEANS,10/11/11,
071111A,KNIGHTON CLEANING SERVICES LTD,26204,22,464.71,GENERAL CLEANS,10/11/11,
071111A,KNIGHTON CLEANING SERVICES LTD,26204,23,"1,693.34",GENERAL CLEANS,10/11/11,
071111A,KNIGHTON CLEANING SERVICES LTD,26204,24,"3,552.65",GENERAL CLEANS,10/11/11,
071111A,KNIGHTON CLEANING SERVICES LTD,26204,25,574.20,GENERAL CLEANS,10/11/11,
071111A,KNIGHTON CLEANING SERVICES LTD,26204,26,"1,781.77",GENERAL CLEANS,10/11/11,
071111A,KNIGHTON CLEANING SERVICES LTD,26204,27,840.63,GENERAL CLEANS,10/11/11,
071111A,KNIGHTON CLEANING SERVICES LTD,26204,28,"1,296.42",GENERAL CLEANS,10/11/11,
071111A,KNIGHTON CLEANING SERVICES LTD,26204,29,"1,319.66",GENERAL CLEANS,10/11/11,
071111A,KNIGHTON CLEANING SERVICES LTD,26204,30,756.40,GENERAL CLEANS,10/11/11,
071111A,KNIGHTON CLEANING SERVICES LTD,26204,31,"2,211.74",GENERAL CLEANS,10/11/11,
071111A,KNIGHTON CLEANING SERVICES LTD,26204,32,"1,291.01",GENERAL CLEANS,10/11/11,
071111A,KNIGHTON CLEANING SERVICES LTD,26204,33,"1,020.62",GENERAL CLEANS,10/11/11,
071111A,KNIGHTON CLEANING SERVICES LTD,26204,34,"1,137.23",GENERAL CLEANS,10/11/11,
071111A,KNIGHTON CLEANING SERVICES LTD,26204,35,"1,221.95",GENERAL CLEANS,10/11/11,
071111A,KNIGHTON CLEANING SERVICES LTD,26204,36,"9,014.11",GENERAL CLEANS,10/11/11,
071111A,KNIGHTON CLEANING SERVICES LTD,26204,37,846.80,GENERAL CLEANS,10/11/11,
071111A,KNIGHTON CLEANING SERVICES LTD,26204,38,"1,143.88",GENERAL CLEANS,10/11/11,
071111A,KNIGHTON CLEANING SERVICES LTD,26204,39,"2,218.85",GENERAL CLEANS,10/11/11,
071111A,KNIGHTON CLEANING SERVICES LTD,26204,40,"1,151.25",GENERAL CLEANS,10/11/11,
071111A,KNIGHTON CLEANING SERVICES LTD,26204,41,"1,033.74",GENERAL CLEANS,10/11/11,
071111A,KNIGHTON CLEANING SERVICES LTD,26204,42,"2,251.96",GENERAL CLEANS,10/11/11,
071111A,KNIGHTON CLEANING SERVICES LTD,26204,43,"1,270.15",GENERAL CLEANS,10/11/11,
071111A,KNIGHTON CLEANING SERVICES LTD,26204,44,"1,385.37",GENERAL CLEANS,10/11/11,
071111A,KNIGHTON CLEANING SERVICES LTD,26204,45,"1,254.82",GENERAL CLEANS,10/11/11,
071111A,KNIGHTON CLEANING SERVICES LTD,26204,46,"1,042.33",GENERAL CLEANS,10/11/11,
071111A,KNIGHTON CLEANING SERVICES LTD,26204,47,457.63,GENERAL CLEANS,10/11/11,
139400,OPHTHALMIC TECHNOLOGIES LTD,28503,1,976.11,MEDICAL EXPENSES,10/11/11,976.11
139400,THAMES WATER UTILITIES LTD====,29631-80521I,1,558.92,WATER & SEWERAGE RATES,10/11/11,558.92
139400,THAMES WATER UTILITIES LTD====,3195811112L,1,684.48,WATER & SEWERAGE RATES,10/11/11,684.48
041111G,MELVILLE EXHIB &EVENT SERVICES,338773,1,"3,898.23",PUBLIC RELATIONS,10/11/11,"3,898.23"
071111G,CLASSIC VIDEO INTERNATIONAL===,35634,1,590.00,PUBLIC RELATIONS,10/11/11,590.00
139400,LONDON PENSIONS FUND AUTHORITY,358,1,"6,990.00",PENSION SERVICES,10/11/11,"6,990.00"
071111G,MENTIS MANAGEMENT CONS LTD====,3594FI,1,"4,200.00",PROFESSIONAL SERVICES,10/11/11,"4,200.00"
071111A,SMART WATERCOOLERS LTD========,39234,1,861.04,CATERING FIXTURES,10/11/11,"3,572.40"
071111A,SMART WATERCOOLERS LTD========,39234,2,861.04,CATERING FIXTURES,10/11/11,
071111A,SMART WATERCOOLERS LTD========,39234,3,"1,007.60",CATERING FIXTURES,10/11/11,
071111A,SMART WATERCOOLERS LTD========,39234,4,18.32,CATERING EQUIPMENT,10/11/11,
071111A,SMART WATERCOOLERS LTD========,39234,5,36.64,CATERING EQUIPMENT,10/11/11,
071111A,SMART WATERCOOLERS LTD========,39234,6,18.32,CATERING EQUIPMENT,10/11/11,
071111A,SMART WATERCOOLERS LTD========,39234,7,18.32,OFFICE EQUIPMENT,10/11/11,
071111A,SMART WATERCOOLERS LTD========,39234,8,567.92,CATERING EQUIPMENT,10/11/11,
071111A,SMART WATERCOOLERS LTD========,39234,9,36.64,STATIONERY CONSUMABLES,10/11/11,
071111A,SMART WATERCOOLERS LTD========,39234,10,36.64,CATERING EQUIPMENT,10/11/11,
071111A,SMART WATERCOOLERS LTD========,39234,11,18.32,REFRESHMENTS,10/11/11,
071111A,SMART WATERCOOLERS LTD========,39234,12,18.32,CATERING EQUIPMENT,10/11/11,
071111A,SMART WATERCOOLERS LTD========,39234,13,36.64,CATERING EQUIPMENT,10/11/11,
071111A,SMART WATERCOOLERS LTD========,39234,14,18.32,PROFESSIONAL SERVICES,10/11/11,
071111A,SMART WATERCOOLERS LTD========,39234,15,18.32,RADIO,10/11/11,
041111A,DISCLOSURE SCOTLAND===========,422208,1,"1,800.00",CRB CHECKS,10/11/11,"1,800.00"
071111A,R J HOLLAND LTD===============,43335,1,896.00,DAY TO DAY MINOR IMPS,10/11/11,896.00
071111A,R J HOLLAND LTD===============,4338,1,"8,996.00",STRATEGIC (NON CYCLICAL),10/11/11,"8,996.00"
071111A,CARPETS & FLOOR COVERS DIRECT=,458,1,"1,229.50",TACTICAL DAY TO DAY,10/11/11,"1,229.50"
281011C,TOBY CHURCHILL LTD============,47798,1,668.00,COMMUNITY RELATIONS,10/11/11,668.00
041111C,URS SCOTT WILSON LIMITED,4869601,1,"11,335.00",PROFESSIONAL FEES - MISC,10/11/11,"11,335.00"
041111C,URS SCOTT WILSON LIMITED,4870245,1,"21,484.39",PROFESSIONAL FEES - MISC,10/11/11,"21,484.39"
071111A,RIG SYSTEMS LTD===============,547,1,"1,575.00",TRAINING & CONFERENCES,10/11/11,"1,575.00"
251011C,FRENCON CONSTRUCTION LTD======,6158,1,"46,721.00",DEVELOPMENT EXP - CONTRACTORS,10/11/11,"46,721.00"
081111A,*LYRECO,6751111375,1,36.00,STATIONERY CONSUMABLES,10/11/11,610.06
081111A,*LYRECO,6751111375,2,113.30,STATIONERY CONSUMABLES,10/11/11,
081111A,*LYRECO,6751111375,3,50.00,STATIONERY CONSUMABLES,10/11/11,
081111A,*LYRECO,6751111375,4,22.06,STATIONERY CONSUMABLES,10/11/11,
081111A,*LYRECO,6751111375,5,103.00,STATIONERY CONSUMABLES,10/11/11,
081111A,*LYRECO,6751111375,6,120.00,STATIONERY CONSUMABLES,10/11/11,
081111A,*LYRECO,6751111375,7,72.00,STATIONERY CONSUMABLES,10/11/11,
081111A,*LYRECO,6751111375,8,50.00,STATIONERY CONSUMABLES,10/11/11,
081111A,*LYRECO,6751111375,9,18.00,STATIONERY CONSUMABLES,10/11/11,
081111A,*LYRECO,6751111375,10,25.70,STATIONERY CONSUMABLES,10/11/11,
311011C,NISBETS=======================,6855066,1,529.99,CATERING EQUIPMENT,10/11/11,529.99
021111C,NISBETS=======================,6855067,1,529.99,CATERING EQUIPMENT,10/11/11,529.99
139401,MISS HOLLY STOUT==============,74453*,1,"1,105.00",COUNSELS FEES,10/11/11,"1,105.00"
071111G,EXPOTEL HOTEL RESERVATIONS LTD,753380,1,860.34,PUBLIC TRANSPORT,10/11/11,860.34
071111G,EXPOTEL HOTEL RESERVATIONS LTD,753380A,1,"1,082.50",PUBLIC TRANSPORT,10/11/11,"1,082.50"
071111A,NEXUS PROPERTY SERVICES,79042,1,"4,807.45",GENERAL,10/11/11,"4,807.45"
031111C,A&A ELECTRICAL DISTRIBUTORS===,814044,1,"1,350.00",GENERAL CONSUMABLES,10/11/11,"1,789.56"
031111C,A&A ELECTRICAL DISTRIBUTORS===,814044,2,204.57,GENERAL CONSUMABLES,10/11/11,
031111C,A&A ELECTRICAL DISTRIBUTORS===,814044,3,80.10,GENERAL CONSUMABLES,10/11/11,
031111C,A&A ELECTRICAL DISTRIBUTORS===,814044,4,154.89,GENERAL CONSUMABLES,10/11/11,
031111C,RS COMPONENTS LTD=============,82280078,1,541.80,RADIO,10/11/11,541.80
311011A,THE ENERGY SAVERS LTD,8332,1,"2,477.55",STRATEGIC (NON CYCLICAL),10/11/11,"2,477.55"
800005099,*NPS (SHOES) LTD,9503,1,41.10,CLOTHING,10/11/11,"1,724.15"
800005099,*NPS (SHOES) LTD,9503,2,41.10,CLOTHING,10/11/11,
800005099,*NPS (SHOES) LTD,9503,3,29.45,CLOTHING,10/11/11,
800005099,*NPS (SHOES) LTD,9503,4,29.45,CLOTHING,10/11/11,
800005099,*NPS (SHOES) LTD,9503,5,29.45,CLOTHING,10/11/11,
800005099,*NPS (SHOES) LTD,9503,6,29.45,CLOTHING,10/11/11,
800005099,*NPS (SHOES) LTD,9503,7,29.45,CLOTHING,10/11/11,
800005099,*NPS (SHOES) LTD,9503,8,29.45,CLOTHING,10/11/11,
800005099,*NPS (SHOES) LTD,9503,9,29.45,CLOTHING,10/11/11,
800005099,*NPS (SHOES) LTD,9503,10,29.45,CLOTHING,10/11/11,
800005099,*NPS (SHOES) LTD,9503,11,29.45,CLOTHING,10/11/11,
800005099,*NPS (SHOES) LTD,9503,12,29.45,CLOTHING,10/11/11,
800005099,*NPS (SHOES) LTD,9503,13,29.45,CLOTHING,10/11/11,
800005099,*NPS (SHOES) LTD,9503,14,29.45,CLOTHING,10/11/11,
800005099,*NPS (SHOES) LTD,9503,15,29.45,CLOTHING,10/11/11,
800005099,*NPS (SHOES) LTD,9503,16,29.45,CLOTHING,10/11/11,
800005099,*NPS (SHOES) LTD,9503,17,29.45,CLOTHING,10/11/11,
800005099,*NPS (SHOES) LTD,9503,18,29.45,CLOTHING,10/11/11,
800005099,*NPS (SHOES) LTD,9503,19,29.45,CLOTHING,10/11/11,
800005099,*NPS (SHOES) LTD,9503,20,29.45,CLOTHING,10/11/11,
800005099,*NPS (SHOES) LTD,9503,21,30.05,CLOTHING,10/11/11,
800005099,*NPS (SHOES) LTD,9503,22,30.05,CLOTHING,10/11/11,
800005099,*NPS (SHOES) LTD,9503,23,30.05,CLOTHING,10/11/11,
800005099,*NPS (SHOES) LTD,9503,24,30.05,CLOTHING,10/11/11,
800005099,*NPS (SHOES) LTD,9503,25,30.05,CLOTHING,10/11/11,
800005099,*NPS (SHOES) LTD,9503,26,30.05,CLOTHING,10/11/11,
800005099,*NPS (SHOES) LTD,9503,27,30.05,CLOTHING,10/11/11,
800005099,*NPS (SHOES) LTD,9503,28,30.05,CLOTHING,10/11/11,
800005099,*NPS (SHOES) LTD,9503,29,30.05,CLOTHING,10/11/11,
800005099,*NPS (SHOES) LTD,9503,30,30.05,CLOTHING,10/11/11,
800005099,*NPS (SHOES) LTD,9503,31,30.05,CLOTHING,10/11/11,
800005099,*NPS (SHOES) LTD,9503,32,30.05,CLOTHING,10/11/11,
800005099,*NPS (SHOES) LTD,9503,33,30.05,CLOTHING,10/11/11,
800005099,*NPS (SHOES) LTD,9503,34,30.05,CLOTHING,10/11/11,
800005099,*NPS (SHOES) LTD,9503,35,30.05,CLOTHING,10/11/11,
800005099,*NPS (SHOES) LTD,9503,36,30.05,CLOTHING,10/11/11,
800005099,*NPS (SHOES) LTD,9503,37,30.05,CLOTHING,10/11/11,
800005099,*NPS (SHOES) LTD,9503,38,30.05,CLOTHING,10/11/11,
800005099,*NPS (SHOES) LTD,9503,39,30.05,CLOTHING,10/11/11,
800005099,*NPS (SHOES) LTD,9503,40,30.05,CLOTHING,10/11/11,
800005099,*NPS (SHOES) LTD,9503,41,30.05,CLOTHING,10/11/11,
800005099,*NPS (SHOES) LTD,9503,42,30.05,CLOTHING,10/11/11,
800005099,*NPS (SHOES) LTD,9503,43,30.05,CLOTHING,10/11/11,
800005099,*NPS (SHOES) LTD,9503,44,30.05,CLOTHING,10/11/11,
800005099,*NPS (SHOES) LTD,9503,45,30.05,CLOTHING,10/11/11,
800005099,*NPS (SHOES) LTD,9503,46,30.05,CLOTHING,10/11/11,
800005099,*NPS (SHOES) LTD,9503,47,30.05,CLOTHING,10/11/11,
800005099,*NPS (SHOES) LTD,9503,48,30.05,CLOTHING,10/11/11,
800005099,*NPS (SHOES) LTD,9503,49,30.05,CLOTHING,10/11/11,
800005099,*NPS (SHOES) LTD,9503,50,30.05,CLOTHING,10/11/11,
800005099,*NPS (SHOES) LTD,9503,51,30.05,CLOTHING,10/11/11,
800005099,*NPS (SHOES) LTD,9503,52,30.05,CLOTHING,10/11/11,
800005099,*NPS (SHOES) LTD,9503,53,30.05,CLOTHING,10/11/11,
800005099,*NPS (SHOES) LTD,9503,54,30.05,CLOTHING,10/11/11,
800005099,*NPS (SHOES) LTD,9503,55,30.05,CLOTHING,10/11/11,
800005099,*NPS (SHOES) LTD,9503,56,30.05,CLOTHING,10/11/11,
800005099,*NPS (SHOES) LTD,9503,57,30.05,CLOTHING,10/11/11,
081111A,LONDON PENSIONS FUND AUTHORITY,ACT334,1,"2,000.00",GENERAL,10/11/11,"2,000.00"
031111C,THAMES WATER UTILITIES LTD====,CBA1128262,1,"1,082.00",HYDRANTS,10/11/11,"1,082.00"
031111C,THAMES WATER UTILITIES LTD====,CBA1128263,1,"1,082.00",HYDRANTS,10/11/11,"1,082.00"
031111C,THAMES WATER UTILITIES LTD====,CBA1128266,1,"1,082.00",HYDRANTS,10/11/11,"1,082.00"
031111C,THAMES WATER UTILITIES LTD====,CBA1128286,1,"1,082.00",HYDRANTS,10/11/11,"1,082.00"
271011C,SURVITEC SERVICE &DISTRIBUTION,CD30665418,1,808.80,PROTECTIVE EQUIPT - PARTS,10/11/11,808.80
071111A,WM ENGINEERING SERVICES LTD===,I-4078,1,"1,705.00",TACTICAL DAY TO DAY,10/11/11,"1,705.00"
041111G,BOTTOMLINE TECHNOLOGIES EUROPE,INV374980,1,"1,000.00",MAINTENANCE & SUPPORT,10/11/11,"1,000.00"
041111G,A3UK CONSULTING LTD,LFB001,1,750.00,PROFESSIONAL SERVICES,10/11/11,"3,750.00"
041111G,A3UK CONSULTING LTD,LFB001,2,"1,500.00",PROFESSIONAL SERVICES,10/11/11,
041111G,A3UK CONSULTING LTD,LFB001,3,"1,500.00",PROFESSIONAL SERVICES,10/11/11,
041111C,UBM INFORMATION LTD,N1/3712932,1,"6,123.98",BOOKS & JOURNALS,10/11/11,"6,123.98"
311011C,GALLAGHER BASSETT INTERNATIONA,NC06089,1,"3,200.00",TRAINING & CONFERENCES,10/11/11,"3,200.00"
251011A,HEMSLEY FRASER TRAINING GROUP=,O88176,1,512.10,TRAINING & CONFERENCES,10/11/11,512.10
021111A,WORCESTER CASUALTIES UNION====,OCTOBER2011,1,733.00,TRAINING & CONFERENCES,10/11/11,733.00
021111A,FLAGSHIP (INFRASTRUCTURE),SIINF00584,1,"3,349.88",GENERAL,10/11/11,"3,349.88"
021111A,FLAGSHIP (INFRASTRUCTURE),SIINF00585,1,"3,814.73",GENERAL,10/11/11,"3,814.73"
021111A,FLAGSHIP (INFRASTRUCTURE),SIINF00586,1,610.08,GENERAL,10/11/11,610.08
021111A,FLAGSHIP (INFRASTRUCTURE),SIINF00587,1,"2,908.32",GENERAL,10/11/11,"2,908.32"
021111A,FLAGSHIP (INFRASTRUCTURE),SIINF00588,1,659.32,GENERAL,10/11/11,659.32
031111C,FIRE SERVICE COLLEGE==========,SIN048181,1,"22,600.00",TRAINING & CONFERENCES,10/11/11,"22,600.00"
031111C,IHS GLOBAL LTD================,SINV054002,1,"9,552.81",BOOKS & JOURNALS,10/11/11,"23,570.00"
031111C,IHS GLOBAL LTD================,SINV054002,2,"7,232.61",BOOKS & JOURNALS,10/11/11,
031111C,IHS GLOBAL LTD================,SINV054002,3,"6,784.58",BOOKS & JOURNALS,10/11/11,
011111A,TANNER GAS SERVICES LTD,TGS/0060,1,950.00,STRATEGIC (NON CYCLICAL),10/11/11,950.00
271011C,THE GEOINFORMATION GROUP======,U111001,1,"19,995.00",PROFESSIONAL SERVICES,10/11/11,"19,995.00"
021111A,JOHN SMITH & ASSOCIATES,100115,1,"13,000.00",ADVERTISING,14/11/11,"13,000.00"
081111C,HAYS ACCOUNTANCY & FINANCE====,1001553954,1,696.00,FRS STAFF AGENCY,14/11/11,696.00
091111G,*SPRUE SAFETY PRODUCTS LTD====,1022804,1,"1,264.00",FIRE DETECTORS,14/11/11,"1,264.00"
091111A,*SPRUE SAFETY PRODUCTS LTD====,1022814,1,585.00,FIRE DETECTORS,14/11/11,"1,665.00"
091111A,*SPRUE SAFETY PRODUCTS LTD====,1022814,2,420.00,FIRE DETECTORS,14/11/11,
091111A,*SPRUE SAFETY PRODUCTS LTD====,1022814,3,660.00,FIRE DETECTORS,14/11/11,
091111A,BEAUMONT LTD.,1068,1,"3,000.00",STRATEGIC (NON CYCLICAL),14/11/11,"3,000.00"
091111A,BEAUMONT LTD.,1069,1,"3,000.00",STRATEGIC (NON CYCLICAL),14/11/11,"3,000.00"
091111A,BEAUMONT LTD.,1070,1,"3,000.00",STRATEGIC (NON CYCLICAL),14/11/11,"3,000.00"
031111C,INFOR GLOBAL SOLUTIONS LTD====,1105142,1,570.66,MAINTENANCE & SUPPORT,14/11/11,570.66
091111C,SILVERSANDS LIMITED===========,117454,1,"16,449.00",MAINTENANCE & SUPPORT,14/11/11,"49,933.00"
091111C,SILVERSANDS LIMITED===========,117454,2,"6,376.00",MAINTENANCE & SUPPORT,14/11/11,
091111C,SILVERSANDS LIMITED===========,117454,3,"11,978.00",MAINTENANCE & SUPPORT,14/11/11,
091111C,SILVERSANDS LIMITED===========,117454,4,"15,130.00",MAINTENANCE & SUPPORT,14/11/11,
021111C,BEAUMONT LTD.,1184,1,922.09,STRATEGIC (NON CYCLICAL),14/11/11,922.09
021111C,BEAUMONT LTD.,1185,1,922.09,STRATEGIC (NON CYCLICAL),14/11/11,922.09
021111C,BEAUMONT LTD.,1186,1,922.09,STRATEGIC (NON CYCLICAL),14/11/11,922.09
021111C,BEAUMONT LTD.,1188,1,922.09,STRATEGIC (NON CYCLICAL),14/11/11,922.09
139405,B NOKES CONTRACTS LTD,1303,1,"2,484.00",STRATEGIC (NON CYCLICAL),14/11/11,"3,534.00"
139405,B NOKES CONTRACTS LTD,1303,2,"1,050.00",STRATEGIC (NON CYCLICAL),14/11/11,
139405,B NOKES CONTRACTS LTD,1307,1,207.00,STRATEGIC (NON CYCLICAL),14/11/11,879.00
139405,B NOKES CONTRACTS LTD,1307,2,672.00,STRATEGIC (NON CYCLICAL),14/11/11,
091111C,RESPIREX======================,136059,1,"1,482.50",PROTECTIVE EQUIPT - PARTS,14/11/11,"1,482.50"
091111C,RESPIREX======================,136120,1,"1,482.50",PROTECTIVE EQUIPT - PARTS,14/11/11,"1,482.50"
091111C,DRON & WRIGHT=================,15334,1,"1,020.26",PROFESSIONAL SERVICES,14/11/11,"1,020.26"
091111C,DRON & WRIGHT=================,15336,1,"1,984.50",PROFESSIONAL SERVICES,14/11/11,"1,984.50"
091111C,PLASTOR=======================,15369,1,788.40,PURCHASE,14/11/11,"1,049.35"
091111C,PLASTOR=======================,15369,2,80.00,PURCHASE,14/11/11,
091111C,PLASTOR=======================,15369,3,80.95,PURCHASE,14/11/11,
091111C,PLASTOR=======================,15369,4,100.00,PURCHASE,14/11/11,
091111C,PLASTOR=======================,15370,1,639.00,REPAIR & MAINTENANCE,14/11/11,834.80
091111C,PLASTOR=======================,15370,2,140.80,REPAIR & MAINTENANCE,14/11/11,
091111C,PLASTOR=======================,15370,3,55.00,REPAIR & MAINTENANCE,14/11/11,
091111A,CHRISTIE DIGITAL SYSTEMS EURO.,1741376R2-00281459,1,646.75,ACQUISITIONS,14/11/11,646.75
081111C,MAVEN TRAINING LTD============,17553,1,945.00,TRAINING & CONFERENCES,14/11/11,945.00
081111C,GLOBAL KNOWLEDGE NETWORK UK===,219351,1,"1,695.00",TRAINING & CONFERENCES,14/11/11,"1,695.00"
081111C,SCOTT MERRICK ASSOCIATES======,23663,1,"16,920.00",MAINTENANCE & SUPPORT,14/11/11,"16,920.00"
800005078,ADECCO UK LIMITED=============,25794247,1,"2,700.00",FRS STAFF AGENCY,14/11/11,"2,700.00"
800005079,ADECCO UK LIMITED=============,25794248,1,"2,250.00",FRS STAFF AGENCY,14/11/11,"2,250.00"
800005080,ADECCO UK LIMITED=============,25794249,1,"2,250.00",FRS STAFF AGENCY,14/11/11,"2,250.00"
800005167,ADECCO UK LIMITED=============,25797484,1,946.75,FRS STAFF AGENCY,14/11/11,946.75
800005225,ADECCO UK LIMITED=============,25801167,1,"1,550.00",FRS STAFF AGENCY,14/11/11,"1,550.00"
800005226,ADECCO UK LIMITED=============,25801168,1,"1,550.00",FRS STAFF AGENCY,14/11/11,"1,550.00"
800005227,ADECCO UK LIMITED=============,25801169,1,"1,550.00",FRS STAFF AGENCY,14/11/11,"1,550.00"
800005228,ADECCO UK LIMITED=============,25801170,1,"1,550.00",FRS STAFF AGENCY,14/11/11,"1,550.00"
800005278,ADECCO UK LIMITED=============,25801220,1,"1,550.00",FRS STAFF AGENCY,14/11/11,"1,550.00"
800005279,ADECCO UK LIMITED=============,25801221,1,"1,550.00",FRS STAFF AGENCY,14/11/11,"1,550.00"
800005280,ADECCO UK LIMITED=============,25801222,1,"1,550.00",FRS STAFF AGENCY,14/11/11,"1,550.00"
800005281,ADECCO UK LIMITED=============,25801223,1,"1,550.00",FRS STAFF AGENCY,14/11/11,"1,550.00"
091111G,MUSCO LIGHTING EUROPE LTD=====,3130,1,"3,402.00",GENERAL,14/11/11,"3,402.00"
091111C,MELVILLE EXHIB &EVENT SERVICES,335638,1,"3,234.50",PUBLIC RELATIONS,14/11/11,"3,234.50"
091111A,CLASSIC VIDEO INTERNATIONAL===,35631,1,"27,308.50",PUBLIC RELATIONS,14/11/11,"27,308.50"
091111C,CLASSIC VIDEO INTERNATIONAL===,35633,1,"1,295.00",PUBLIC RELATIONS,14/11/11,"1,295.00"
031111C,COMPUTACENTRE================,3803512663,1,"2,700.00",DEVELOPMENT EXP - CONTRACTORS,14/11/11,"3,058.00"
031111C,COMPUTACENTRE================,3803512663,2,358.00,DEVELOPMENT EXP - CONTRACTORS,14/11/11,
081111C,CORE SURVEYSLTD===============,4008,1,600.00,DEVELOPMENT EXP - CONTRACTORS,14/11/11,"1,700.00"
081111C,CORE SURVEYSLTD===============,4008,2,750.00,DEVELOPMENT EXP - CONTRACTORS,14/11/11,
081111C,CORE SURVEYSLTD===============,4008,3,350.00,DEVELOPMENT EXP - CONTRACTORS,14/11/11,
139403,JCT600 CONTRACTS LIMITED======,407537,1,"1,792.58",LEASE CAR CHARGES,14/11/11,"4,205.68"
139403,JCT600 CONTRACTS LIMITED======,407537,2,"2,413.10",P/PAYMTS-CAR LEASG-RENTAL,14/11/11,
139403,JCT600 CONTRACTS LIMITED======,407537,3,-359.25,VAT CAR LEASING,14/11/11,
139403,JCT600 CONTRACTS LIMITED======,407537,4,359.25,LEASE CAR CHARGES,14/11/11,
139403,JCT600 CONTRACTS LIMITED======,407745,1,"2,492.38",LEASE CAR CHARGES,14/11/11,"6,248.02"
139403,JCT600 CONTRACTS LIMITED======,407745,2,"3,755.64",P/PAYMTS-CAR LEASG-RENTAL,14/11/11,
139403,JCT600 CONTRACTS LIMITED======,407745,3,-562.85,VAT CAR LEASING,14/11/11,
139403,JCT600 CONTRACTS LIMITED======,407745,4,562.85,WINDSCREEN & TYRE CHARGES,14/11/11,
139402,AUTOMOTIVE LEASING LTD========,4359049,1,514.99,LEASE CAR CHARGES,14/11/11,514.99
139402,AUTOMOTIVE LEASING LTD========,4359049,2,-49.12,VAT CAR LEASING,14/11/11,
139402,AUTOMOTIVE LEASING LTD========,4359049,3,49.12,LEASE CAR CHARGES,14/11/11,
081111C,URS SCOTT WILSON LIMITED,4866606,1,408.27,PROFESSIONAL FEES - MISC,14/11/11,"4,082.61"
081111C,URS SCOTT WILSON LIMITED,4866606,2,408.26,PROFESSIONAL FEES - MISC,14/11/11,
081111C,URS SCOTT WILSON LIMITED,4866606,3,408.26,PROFESSIONAL FEES - MISC,14/11/11,
081111C,URS SCOTT WILSON LIMITED,4866606,4,408.26,PROFESSIONAL FEES - MISC,14/11/11,
081111C,URS SCOTT WILSON LIMITED,4866606,5,408.26,PROFESSIONAL FEES - MISC,14/11/11,
081111C,URS SCOTT WILSON LIMITED,4866606,6,408.26,PROFESSIONAL FEES - MISC,14/11/11,
081111C,URS SCOTT WILSON LIMITED,4866606,7,408.26,PROFESSIONAL FEES - MISC,14/11/11,
081111C,URS SCOTT WILSON LIMITED,4866606,8,408.26,PROFESSIONAL FEES - MISC,14/11/11,
081111C,URS SCOTT WILSON LIMITED,4866606,9,408.26,PROFESSIONAL FEES - MISC,14/11/11,
081111C,URS SCOTT WILSON LIMITED,4866606,10,408.26,PROFESSIONAL FEES - MISC,14/11/11,
091111C,GAS & AIR SERVICES (UK)=======,5651,1,934.00,REPAIR & MAINTENANCE,14/11/11,"2,428.00"
091111C,GAS & AIR SERVICES (UK)=======,5651,2,"1,323.00",REPAIR & MAINTENANCE,14/11/11,
091111C,GAS & AIR SERVICES (UK)=======,5651,3,141.00,REPAIR & MAINTENANCE,14/11/11,
091111C,GAS & AIR SERVICES (UK)=======,5651,4,30.00,REPAIR & MAINTENANCE,14/11/11,
311011A,METROPOLITAN POLICE===========,6800078459,1,"1,350.00",COMMUNITY RELATIONS,14/11/11,"1,350.00"
091111A,CPL PETROLEUM=================,6915155,1,"3,454.20",FUEL,14/11/11,"3,454.20"
091111C,OPERATIONAL RESEARCH IN HEALTH,71V/LFB1/14,1,"12,420.00",PROFESSIONAL SERVICES,14/11/11,"12,420.00"
139406,MR JOHN CAVANAGH==============,75024A,1,"23,230.00",COUNSELS FEES,14/11/11,"23,230.00"
311011A,ANGUS FIRE ARMOUR LIMITED=====,8012025,1,"3,956.00",OPERATIONAL EQUIP-PURCHASE,14/11/11,"3,956.00"
081111C,AGE CONCERN SUTTON BOROUGH====,ACSB/011/11-12HRSA,1,"2,280.00",HFSC - SUTTON BOROUGH,14/11/11,"2,320.00"
081111C,AGE CONCERN SUTTON BOROUGH====,ACSB/011/11-12HRSA,2,40.00,HFSC - SUTTON BOROUGH,14/11/11,
281011C,THAMES WATER UTILITIES LTD====,CBA1127712,1,"1,800.00",HYDRANTS,14/11/11,"1,800.00"
281011C,*GRAFTON MERCHANTING GB LTD,CRO/331991,1,895.10,OPERATIONAL EQUIP-PURCHASE,14/11/11,"1,213.82"
281011C,*GRAFTON MERCHANTING GB LTD,CRO/331991,2,318.72,OPERATIONAL EQUIP-PURCHASE,14/11/11,
081111C,KIER BUILDING SERV ENGINEERS==,F028668,1,"3,777.00",DAY TO DAY MINOR IMPS,14/11/11,"3,777.00"
081111C,KIER BUILDING SERV ENGINEERS==,F028669,1,"7,137.00",OPERATIONAL EQUIP-PURCHASE,14/11/11,"7,137.00"
081111C,KIER BUILDING SERV ENGINEERS==,F028670,1,"4,502.00",STRATEGIC (NON CYCLICAL),14/11/11,"4,502.00"
091111A,BRISSCO SIGNS & GRAPHICS======,INV77215,1,844.00,HYDRANTS,14/11/11,844.00
311011C,INNOVISE======================,IS32397,1,"1,087.80",STATIONERY CONSUMABLES,14/11/11,"1,087.80"
081111C,SMITH O'SULLIVAN LTD.=========,LFB/IS/002,1,"19,578.07",STRATEGIC (NON CYCLICAL),14/11/11,"19,578.07"
281011G,POSTCODE ANYWHERE (EUROPE) LD,LONDO11225-125793,1,"1,000.00",PROFESSIONAL SERVICES,14/11/11,"1,000.00"
091111G,KCOM GROUP====================,PA158256,1,"19,028.44",ACQUISITIONS,14/11/11,"19,028.44"
091111A,ETC VENUES LTD================,PH-39221,1,"1,160.00",TRAINING & CONFERENCES,14/11/11,"1,160.00"
081111C,PILLINGER CONTROLS LTD========,PI69612,1,500.40,STRATEGIC (CYCLICAL),14/11/11,"6,374.86"
081111C,PILLINGER CONTROLS LTD========,PI69612,2,500.40,STRATEGIC (CYCLICAL),14/11/11,
081111C,PILLINGER CONTROLS LTD========,PI69612,3,870.46,STRATEGIC (CYCLICAL),14/11/11,
081111C,PILLINGER CONTROLS LTD========,PI69612,4,500.40,STRATEGIC (CYCLICAL),14/11/11,
081111C,PILLINGER CONTROLS LTD========,PI69612,5,500.40,STRATEGIC (CYCLICAL),14/11/11,
081111C,PILLINGER CONTROLS LTD========,PI69612,6,500.40,STRATEGIC (CYCLICAL),14/11/11,
081111C,PILLINGER CONTROLS LTD========,PI69612,7,500.40,STRATEGIC (CYCLICAL),14/11/11,
081111C,PILLINGER CONTROLS LTD========,PI69612,8,500.40,STRATEGIC (CYCLICAL),14/11/11,
081111C,PILLINGER CONTROLS LTD========,PI69612,9,500.40,STRATEGIC (CYCLICAL),14/11/11,
081111C,PILLINGER CONTROLS LTD========,PI69612,10,500.40,STRATEGIC (CYCLICAL),14/11/11,
081111C,PILLINGER CONTROLS LTD========,PI69612,11,500.40,STRATEGIC (CYCLICAL),14/11/11,
081111C,PILLINGER CONTROLS LTD========,PI69612,12,500.40,STRATEGIC (CYCLICAL),14/11/11,
311011A,MOTOROLA LTD==================,UK9000745,1,"123,717.12",MAINTENANCE & SUPPORT,14/11/11,"123,717.12"
311011A,HEALTH MANAGEMENT LIMITED=====,0000077094,1,600.00,OHS CONTRACT,17/11/11,600.00
071111G,HEALTH MANAGEMENT LIMITED=====,0000077099,1,"113,556.67",OHS CONTRACT,17/11/11,"113,556.67"
081111C,HEALTH MANAGEMENT LIMITED=====,0000077337,1,"1,250.00",THIRD PARTY REPORTS,17/11/11,"1,250.00"
081111C,HEALTH MANAGEMENT LIMITED=====,0000077338,1,545.58,OPERATIONAL EQUIP-PURCHASE,17/11/11,545.58
021111G,HOLMAN DESIGN SERVICES LTD====,00003340,1,"1,265.00",MAINTENANCE & SUPPORT,17/11/11,"1,465.00"
021111G,HOLMAN DESIGN SERVICES LTD====,00003340,2,200.00,MAINTENANCE & SUPPORT,17/11/11,
041111C,WRS TEMPS LIMITED=============,00024459,1,451.50,FRS STAFF AGENCY,17/11/11,541.80
041111C,WRS TEMPS LIMITED=============,00024459,2,90.30,FRS STAFF AGENCY,17/11/11,
071111A,JFP CONSULTANT LTD============,0098,1,"4,462.50",PROFESSIONAL SERVICES,17/11/11,"4,462.50"
111111C,IRON MOUNTAIN (UK) LTD========,03339831,1,"5,022.81",MAINTENANCE & SUPPORT,17/11/11,"5,022.81"
141111A,SQUARE PEG MEDIA LIMITED======,10168,1,990.00,ADVERTISING,17/11/11,990.00
111111C,ARVAL PHH=====================,1016882657,1,"3,469.76",CONTRACT HIRE,17/11/11,"3,469.76"
111111C,ARVAL PHH=====================,1017301334,1,"1,248.52",CONTRACT HIRE,17/11/11,"1,248.52"
111111C,ARVAL PHH=====================,1017301335,1,"1,430.80",CONTRACT HIRE,17/11/11,"1,430.80"
111111C,ARVAL PHH=====================,1017301336,1,994.19,CONTRACT HIRE,17/11/11,994.19
111111C,ARVAL PHH=====================,1017301337,1,"2,676.52",CONTRACT HIRE,17/11/11,"2,676.52"
111111C,ARVAL PHH=====================,1017301339,1,"1,734.88",CONTRACT HIRE,17/11/11,"1,734.88"
111111C,ARVAL PHH=====================,1017301340,1,943.32,CONTRACT HIRE,17/11/11,943.32
101111C,ARVAL PHH=====================,1017301342,1,660.24,CONTRACT HIRE,17/11/11,660.24
139407,ARVAL PHH=====================,1022168,1,"2,201.69",LEASE CAR CHARGES,17/11/11,"5,674.79"
139407,ARVAL PHH=====================,1022168,2,"3,473.10",P/PAYMTS-CAR LEASG-RENTAL,17/11/11,
139407,ARVAL PHH=====================,1022168,3,-461.23,VAT CAR LEASING,17/11/11,
139407,ARVAL PHH=====================,1022168,4,461.23,LEASE CAR CHARGES,17/11/11,
139407,ARVAL PHH=====================,1022170,1,"2,695.82",LEASE CAR CHARGES,17/11/11,"6,090.55"
139407,ARVAL PHH=====================,1022170,2,"3,394.73",P/PAYMTS-CAR LEASG-RENTAL,17/11/11,
139407,ARVAL PHH=====================,1022170,3,-506.80,VAT CAR LEASING,17/11/11,
139407,ARVAL PHH=====================,1022170,4,506.80,LEASE CAR CHARGES,17/11/11,
141111A,SQUARE PEG MEDIA LIMITED======,10222,1,990.00,ADVERTISING,17/11/11,990.00
041111A,W G WIGGINTON LTD,11-060,1,"94,889.82",DEVELOPMENT EXP - CONTRACTORS,17/11/11,"110,337.00"
041111A,W G WIGGINTON LTD,11-060,2,"15,447.18",DEVELOPMENT EXP - CONTRACTORS,17/11/11,
071111A,DELOITTE LLP,1110729951,1,"3,606.43",PROFESSIONAL SERVICES,17/11/11,"3,606.43"
071111A,AQUALOGIC (WC) LTD============,113034,1,794.80,STRATEGIC (NON CYCLICAL),17/11/11,794.80
071111A,VISTA LANDSCAPE MANAGEMENT LTD,115695,1,139.90,GROUNDS MAINTENANCE,17/11/11,"2,916.46"
071111A,VISTA LANDSCAPE MANAGEMENT LTD,115695,2,22.36,GROUNDS MAINTENANCE,17/11/11,
071111A,VISTA LANDSCAPE MANAGEMENT LTD,115695,3,24.88,GROUNDS MAINTENANCE,17/11/11,
071111A,VISTA LANDSCAPE MANAGEMENT LTD,115695,4,27.91,GROUNDS MAINTENANCE,17/11/11,
071111A,VISTA LANDSCAPE MANAGEMENT LTD,115695,5,108.87,GROUNDS MAINTENANCE,17/11/11,
071111A,VISTA LANDSCAPE MANAGEMENT LTD,115695,6,21.07,GROUNDS MAINTENANCE,17/11/11,
071111A,VISTA LANDSCAPE MANAGEMENT LTD,115695,7,28.79,GROUNDS MAINTENANCE,17/11/11,
071111A,VISTA LANDSCAPE MANAGEMENT LTD,115695,8,22.11,GROUNDS MAINTENANCE,17/11/11,
071111A,VISTA LANDSCAPE MANAGEMENT LTD,115695,9,18.70,GROUNDS MAINTENANCE,17/11/11,
071111A,VISTA LANDSCAPE MANAGEMENT LTD,115695,10,18.79,GROUNDS MAINTENANCE,17/11/11,
071111A,VISTA LANDSCAPE MANAGEMENT LTD,115695,11,22.33,GROUNDS MAINTENANCE,17/11/11,
071111A,VISTA LANDSCAPE MANAGEMENT LTD,115695,12,32.88,GROUNDS MAINTENANCE,17/11/11,
071111A,VISTA LANDSCAPE MANAGEMENT LTD,115695,13,119.78,GROUNDS MAINTENANCE,17/11/11,
071111A,VISTA LANDSCAPE MANAGEMENT LTD,115695,14,18.11,GROUNDS MAINTENANCE,17/11/11,
071111A,VISTA LANDSCAPE MANAGEMENT LTD,115695,15,89.65,GROUNDS MAINTENANCE,17/11/11,
071111A,VISTA LANDSCAPE MANAGEMENT LTD,115695,16,24.80,GROUNDS MAINTENANCE,17/11/11,
071111A,VISTA LANDSCAPE MANAGEMENT LTD,115695,17,21.50,GROUNDS MAINTENANCE,17/11/11,
071111A,VISTA LANDSCAPE MANAGEMENT LTD,115695,18,137.39,GROUNDS MAINTENANCE,17/11/11,
071111A,VISTA LANDSCAPE MANAGEMENT LTD,115695,19,19.92,GROUNDS MAINTENANCE,17/11/11,
071111A,VISTA LANDSCAPE MANAGEMENT LTD,115695,20,21.46,GROUNDS MAINTENANCE,17/11/11,
071111A,VISTA LANDSCAPE MANAGEMENT LTD,115695,21,15.12,GROUNDS MAINTENANCE,17/11/11,
071111A,VISTA LANDSCAPE MANAGEMENT LTD,115695,22,20.59,GROUNDS MAINTENANCE,17/11/11,
071111A,VISTA LANDSCAPE MANAGEMENT LTD,115695,23,21.44,GROUNDS MAINTENANCE,17/11/11,
071111A,VISTA LANDSCAPE MANAGEMENT LTD,115695,24,25.14,GROUNDS MAINTENANCE,17/11/11,
071111A,VISTA LANDSCAPE MANAGEMENT LTD,115695,25,23.31,GROUNDS MAINTENANCE,17/11/11,
071111A,VISTA LANDSCAPE MANAGEMENT LTD,115695,26,63.86,GROUNDS MAINTENANCE,17/11/11,
071111A,VISTA LANDSCAPE MANAGEMENT LTD,115695,27,19.00,GROUNDS MAINTENANCE,17/11/11,
071111A,VISTA LANDSCAPE MANAGEMENT LTD,115695,28,18.87,GROUNDS MAINTENANCE,17/11/11,
071111A,VISTA LANDSCAPE MANAGEMENT LTD,115695,29,16.77,GROUNDS MAINTENANCE,17/11/11,
071111A,VISTA LANDSCAPE MANAGEMENT LTD,115695,30,86.79,GROUNDS MAINTENANCE,17/11/11,
071111A,VISTA LANDSCAPE MANAGEMENT LTD,115695,31,91.69,GROUNDS MAINTENANCE,17/11/11,
071111A,VISTA LANDSCAPE MANAGEMENT LTD,115695,32,20.17,GROUNDS MAINTENANCE,17/11/11,
071111A,VISTA LANDSCAPE MANAGEMENT LTD,115695,33,275.90,GROUNDS MAINTENANCE,17/11/11,
071111A,VISTA LANDSCAPE MANAGEMENT LTD,115695,34,19.66,GROUNDS MAINTENANCE,17/11/11,
071111A,VISTA LANDSCAPE MANAGEMENT LTD,115695,35,68.88,GROUNDS MAINTENANCE,17/11/11,
071111A,VISTA LANDSCAPE MANAGEMENT LTD,115695,36,18.18,GROUNDS MAINTENANCE,17/11/11,
071111A,VISTA LANDSCAPE MANAGEMENT LTD,115695,37,19.67,GROUNDS MAINTENANCE,17/11/11,
071111A,VISTA LANDSCAPE MANAGEMENT LTD,115695,38,18.99,GROUNDS MAINTENANCE,17/11/11,
071111A,VISTA LANDSCAPE MANAGEMENT LTD,115695,39,86.49,GROUNDS MAINTENANCE,17/11/11,
071111A,VISTA LANDSCAPE MANAGEMENT LTD,115695,40,127.95,GROUNDS MAINTENANCE,17/11/11,
071111A,VISTA LANDSCAPE MANAGEMENT LTD,115695,41,16.71,GROUNDS MAINTENANCE,17/11/11,
071111A,VISTA LANDSCAPE MANAGEMENT LTD,115695,42,747.41,GROUNDS MAINTENANCE,17/11/11,
071111A,VISTA LANDSCAPE MANAGEMENT LTD,115695,43,67.83,GROUNDS MAINTENANCE,17/11/11,
071111A,VISTA LANDSCAPE MANAGEMENT LTD,115695,44,59.93,GROUNDS MAINTENANCE,17/11/11,
071111A,VISTA LANDSCAPE MANAGEMENT LTD,115695,45,24.91,GROUNDS MAINTENANCE,17/11/11,
139409,B NOKES CONTRACTS LTD,1302,1,519.00,DAY TO DAY MINOR IMPS,17/11/11,519.00
141111A,H FINE & SON LTD==============,136799,1,716.80,UNIFORMS - POMS,17/11/11,716.80
111111G,PMR PRODUCTS LTD,14264,1,"2,030.00",OPERATIONAL EQUIP-PURCHASE,17/11/11,"2,030.00"
031111C,AIRSERVICES(UK)===============,15103,1,676.00,REPAIR & MAINTENANCE,17/11/11,"1,248.00"
031111C,AIRSERVICES(UK)===============,15103,2,494.00,REPAIR & MAINTENANCE,17/11/11,
031111C,AIRSERVICES(UK)===============,15103,3,52.00,REPAIR & MAINTENANCE,17/11/11,
031111C,AIRSERVICES(UK)===============,15103,4,26.00,REPAIR & MAINTENANCE,17/11/11,
139408,THAMES WATER UTILITIES LTD====,1560420001Q,1,"1,054.29",WATER & SEWERAGE RATES,17/11/11,"1,054.29"
111111C,STORM TECHNOLOGIES============,162194,1,350.00,ACQUISITIONS,17/11/11,"1,100.00"
111111C,STORM TECHNOLOGIES============,162194,2,750.00,ACQUISITIONS,17/11/11,
111111C,STORM TECHNOLOGIES============,162215,1,"3,485.50",ACQUISITIONS,17/11/11,"5,085.50"
111111C,STORM TECHNOLOGIES============,162215,2,"1,600.00",ACQUISITIONS,17/11/11,
111111C,STORM TECHNOLOGIES============,162640,1,115.50,ACQUISITIONS,17/11/11,"2,381.50"
111111C,STORM TECHNOLOGIES============,162640,2,"2,266.00",ACQUISITIONS,17/11/11,
111111C,STORM TECHNOLOGIES============,163269,1,"1,394.20",ACQUISITIONS,17/11/11,"1,394.20"
111111C,STORM TECHNOLOGIES============,163632,1,676.38,ACQUISITIONS,17/11/11,676.38
111111G,STORM TECHNOLOGIES============,163751,1,824.00,ACQUISITIONS,17/11/11,824.00
041111A,PKF===========================,1666507,1,"5,943.00",PROFESSIONAL SERVICES,17/11/11,"5,943.00"
139408,OGILVIE FLEET LTD=============,166756,1,"1,374.81",LEASE CAR CHARGES,17/11/11,"3,377.04"
139408,OGILVIE FLEET LTD=============,166756,2,"2,002.23",P/PAYMTS-CAR LEASG-RENTAL,17/11/11,
139408,OGILVIE FLEET LTD=============,166756,3,-279.80,VAT CAR LEASING,17/11/11,
139408,OGILVIE FLEET LTD=============,166756,4,279.80,LEASE CAR CHARGES,17/11/11,
139407,EDF ENERGY===================,1785676812,1,"1,396.25",ELECTRICITY,17/11/11,"1,396.25"
139407,EDF ENERGY===================,1785907913,1,"2,967.43",ELECTRICITY,17/11/11,"2,967.43"
139407,EDF ENERGY===================,1786209514,1,"8,255.76",ELECTRICITY,17/11/11,"8,255.76"
139407,EDF ENERGY===================,1786484414,1,467.63,ELECTRICITY,17/11/11,"4,676.29"
139407,EDF ENERGY===================,1786484414,2,"3,974.84",ELECTRICITY,17/11/11,
139407,EDF ENERGY===================,1786484414,3,233.82,ELECTRICITY,17/11/11,
139407,EDF ENERGY===================,1793376211,1,"9,433.35",ELECTRICITY,17/11/11,"9,433.35"
139408,EDF ENERGY===================,1813823604,1,"9,988.48",ELECTRICITY,17/11/11,"9,988.48"
111111C,ARKAS LIMITED=================,21381,1,"4,704.85",STRATEGIC (CYCLICAL),17/11/11,"12,882.10"
111111C,ARKAS LIMITED=================,21381,2,"4,146.25",STRATEGIC (CYCLICAL),17/11/11,
111111C,ARKAS LIMITED=================,21381,3,"4,031.00",STRATEGIC (CYCLICAL),17/11/11,
111111C,ARKAS LIMITED=================,21429,1,161.50,STRATEGIC (CYCLICAL),17/11/11,795.50
111111C,ARKAS LIMITED=================,21429,2,204.25,STRATEGIC (CYCLICAL),17/11/11,
111111C,ARKAS LIMITED=================,21429,3,268.25,STRATEGIC (CYCLICAL),17/11/11,
111111C,ARKAS LIMITED=================,21429,4,161.50,STRATEGIC (CYCLICAL),17/11/11,
111111C,ARKAS LIMITED=================,21430,1,523.59,STRATEGIC (CYCLICAL),17/11/11,"2,730.11"
111111C,ARKAS LIMITED=================,21430,2,603.70,STRATEGIC (CYCLICAL),17/11/11,
111111C,ARKAS LIMITED=================,21430,3,387.66,STRATEGIC (CYCLICAL),17/11/11,
111111C,ARKAS LIMITED=================,21430,4,"1,215.16",STRATEGIC (CYCLICAL),17/11/11,
111111C,ARKAS LIMITED=================,21431,1,475.00,STRATEGIC (CYCLICAL),17/11/11,"1,094.66"
111111C,ARKAS LIMITED=================,21431,2,265.28,STRATEGIC (CYCLICAL),17/11/11,
111111C,ARKAS LIMITED=================,21431,3,221.38,TACTICAL DAY TO DAY,17/11/11,
111111C,ARKAS LIMITED=================,21431,4,133.00,TACTICAL DAY TO DAY,17/11/11,
111111C,ARKAS LIMITED=================,21432,1,190.00,STRATEGIC (CYCLICAL),17/11/11,895.67
111111C,ARKAS LIMITED=================,21432,2,147.25,STRATEGIC (CYCLICAL),17/11/11,
111111C,ARKAS LIMITED=================,21432,3,161.50,STRATEGIC (CYCLICAL),17/11/11,
111111C,ARKAS LIMITED=================,21432,4,396.92,STRATEGIC (CYCLICAL),17/11/11,
111111C,ARKAS LIMITED=================,21433,1,190.00,STRATEGIC (CYCLICAL),17/11/11,797.37
111111C,ARKAS LIMITED=================,21433,2,175.75,STRATEGIC (CYCLICAL),17/11/11,
111111C,ARKAS LIMITED=================,21433,3,190.00,TACTICAL DAY TO DAY,17/11/11,
111111C,ARKAS LIMITED=================,21433,4,241.62,STRATEGIC (CYCLICAL),17/11/11,
111111C,ARKAS LIMITED=================,21434,1,218.50,STRATEGIC (CYCLICAL),17/11/11,992.90
111111C,ARKAS LIMITED=================,21434,2,220.52,STRATEGIC (CYCLICAL),17/11/11,
111111C,ARKAS LIMITED=================,21434,3,221.38,TACTICAL DAY TO DAY,17/11/11,
111111C,ARKAS LIMITED=================,21434,4,332.50,STRATEGIC (CYCLICAL),17/11/11,
111111C,ARKAS LIMITED=================,21435,1,247.00,STRATEGIC (CYCLICAL),17/11/11,745.75
111111C,ARKAS LIMITED=================,21435,2,147.25,STRATEGIC (CYCLICAL),17/11/11,
111111C,ARKAS LIMITED=================,21435,3,161.50,STRATEGIC (CYCLICAL),17/11/11,
111111C,ARKAS LIMITED=================,21435,4,190.00,STRATEGIC (CYCLICAL),17/11/11,
111111C,ARKAS LIMITED=================,21436,1,236.78,STRATEGIC (CYCLICAL),17/11/11,631.03
111111C,ARKAS LIMITED=================,21436,2,204.25,STRATEGIC (CYCLICAL),17/11/11,
111111C,ARKAS LIMITED=================,21436,3,190.00,STRATEGIC (CYCLICAL),17/11/11,
111111G,VODAFONE LIMITED==============,216760,1,"1,113.69",RADIO,17/11/11,"1,113.69"
141111G,INSTITUTE OF RISK MANAGEMENT,233850,1,595.00,TRAINING & CONFERENCES,17/11/11,595.00
111111G,SCOTT MERRICK ASSOCIATES======,23667,1,"13,526.39",MAINTENANCE & SUPPORT,17/11/11,"13,526.39"
800005229,ADECCO UK LIMITED=============,25801171,1,"1,550.00",FRS STAFF AGENCY,17/11/11,"1,550.00"
800005230,ADECCO UK LIMITED=============,25801172,1,930.00,FRS STAFF AGENCY,17/11/11,930.00
800005231,ADECCO UK LIMITED=============,25801173,1,"1,240.00",FRS STAFF AGENCY,17/11/11,"1,240.00"
800005232,ADECCO UK LIMITED=============,25801174,1,"1,550.00",FRS STAFF AGENCY,17/11/11,"1,550.00"
800005233,ADECCO UK LIMITED=============,25801175,1,"1,240.00",FRS STAFF AGENCY,17/11/11,"1,240.00"
800005234,ADECCO UK LIMITED=============,25801176,1,"1,550.00",FRS STAFF AGENCY,17/11/11,"1,550.00"
800005235,ADECCO UK LIMITED=============,25801177,1,"1,550.00",FRS STAFF AGENCY,17/11/11,"1,550.00"
800005282,ADECCO UK LIMITED=============,25801224,1,"1,550.00",FRS STAFF AGENCY,17/11/11,"1,550.00"
800005283,ADECCO UK LIMITED=============,25801225,1,"1,550.00",FRS STAFF AGENCY,17/11/11,"1,550.00"
800005284,ADECCO UK LIMITED=============,25801226,1,"1,550.00",FRS STAFF AGENCY,17/11/11,"1,550.00"
800005285,ADECCO UK LIMITED=============,25801227,1,"1,550.00",FRS STAFF AGENCY,17/11/11,"1,550.00"
800005516,ADECCO UK LIMITED=============,25804504,1,"1,656.80",FRS STAFF AGENCY,17/11/11,"1,656.80"
800005517,ADECCO UK LIMITED=============,25804505,1,946.75,FRS STAFF AGENCY,17/11/11,946.75
800005518,ADECCO UK LIMITED=============,25804506,1,759.15,FRS STAFF AGENCY,17/11/11,759.15
800005524,ADECCO UK LIMITED=============,25804512,1,749.70,FRS STAFF AGENCY,17/11/11,749.70
800005529,ADECCO UK LIMITED=============,25804517,1,530.95,FRS STAFF AGENCY,17/11/11,530.95
800005530,ADECCO UK LIMITED=============,25804518,1,602.00,FRS STAFF AGENCY,17/11/11,602.00
800005531,ADECCO UK LIMITED=============,25804519,1,"1,426.25",FRS STAFF AGENCY,17/11/11,"1,426.25"
800005532,ADECCO UK LIMITED=============,25804520,1,744.10,FRS STAFF AGENCY,17/11/11,744.10
800005533,ADECCO UK LIMITED=============,25804521,1,501.76,FRS STAFF AGENCY,17/11/11,501.76
800005535,ADECCO UK LIMITED=============,25804523,1,530.95,FRS STAFF AGENCY,17/11/11,530.95
800005537,ADECCO UK LIMITED=============,25804525,1,595.28,FRS STAFF AGENCY,17/11/11,595.28
800005538,ADECCO UK LIMITED=============,25804526,1,507.50,FRS STAFF AGENCY,17/11/11,507.50
800005547,ADECCO UK LIMITED=============,25804535,1,933.10,FRS STAFF AGENCY,17/11/11,933.10
800005550,ADECCO UK LIMITED=============,25804538,1,"1,434.65",FRS STAFF AGENCY,17/11/11,"1,434.65"
800005555,ADECCO UK LIMITED=============,25804543,1,530.95,FRS STAFF AGENCY,17/11/11,530.95
800005559,ADECCO UK LIMITED=============,25804547,1,578.20,FRS STAFF AGENCY,17/11/11,578.20
800005564,ADECCO UK LIMITED=============,25806392,1,675.20,FRS STAFF AGENCY,17/11/11,675.20
800005565,ADECCO UK LIMITED=============,25807993,1,"1,096.25",FRS STAFF AGENCY,17/11/11,"1,096.25"
800005567,ADECCO UK LIMITED=============,25807995,1,"1,909.45",FRS STAFF AGENCY,17/11/11,"1,909.45"
800005569,ADECCO UK LIMITED=============,25807997,1,"1,614.59",FRS STAFF AGENCY,17/11/11,"1,614.59"
800005571,ADECCO UK LIMITED=============,25807999,1,896.51,FRS STAFF AGENCY,17/11/11,896.51
800005575,ADECCO UK LIMITED=============,25808003,1,"1,962.75",FRS STAFF AGENCY,17/11/11,"1,962.75"
800005577,ADECCO UK LIMITED=============,25808005,1,650.72,FRS STAFF AGENCY,17/11/11,650.72
800005578,ADECCO UK LIMITED=============,25808006,1,"1,217.25",FRS STAFF AGENCY,17/11/11,"1,217.25"
800005581,ADECCO UK LIMITED=============,25808009,1,750.38,FRS STAFF AGENCY,17/11/11,750.38
800005583,ADECCO UK LIMITED=============,25808011,1,"1,310.62",FRS STAFF AGENCY,17/11/11,"1,310.62"
800005584,ADECCO UK LIMITED=============,25808012,1,850.00,FRS STAFF AGENCY,17/11/11,850.00
111111G,MACE LIMITED,26915/1011372,1,"8,800.00",PROFESSIONAL FEES - MISC,17/11/11,"8,800.00"
141111G,DRAMANON======================,287,1,750.00,TRAINING & CONFERENCES,17/11/11,750.00
141111A,CAPITA BUSINESS SERVICES LTD==,310814,1,"2,950.00",TRAINING & CONFERENCES,17/11/11,"3,190.00"
141111A,CAPITA BUSINESS SERVICES LTD==,310814,2,240.00,REFRESHMENTS,17/11/11,
141111C,AGE CONCERN HAVERING==========,311011,1,"1,085.00",HFSC - HAVERING BOROUGH,17/11/11,"1,130.00"
141111C,AGE CONCERN HAVERING==========,311011,2,45.00,HFSC - HAVERING BOROUGH,17/11/11,
111111C,HUNTERS CONTRACTS LIMITED,336362,1,165.00,OFFICE FURNITURE,17/11/11,"1,097.40"
111111C,HUNTERS CONTRACTS LIMITED,336362,2,932.40,OFFICE FURNITURE,17/11/11,
141111C,HUNTERS CONTRACTS LIMITED,336420,1,338.40,PURCHASE - FURNITURE,17/11/11,"1,769.96"
141111C,HUNTERS CONTRACTS LIMITED,336420,2,338.40,PURCHASE - FURNITURE,17/11/11,
141111C,HUNTERS CONTRACTS LIMITED,336420,3,484.80,PURCHASE - FURNITURE,17/11/11,
141111C,HUNTERS CONTRACTS LIMITED,336420,4,608.36,PURCHASE - FURNITURE,17/11/11,
141111C,HUNTERS CONTRACTS LIMITED,336421,1,338.40,PURCHASE - FURNITURE,17/11/11,"1,465.78"
141111C,HUNTERS CONTRACTS LIMITED,336421,2,338.40,PURCHASE - FURNITURE,17/11/11,
141111C,HUNTERS CONTRACTS LIMITED,336421,3,484.80,PURCHASE - FURNITURE,17/11/11,
141111C,HUNTERS CONTRACTS LIMITED,336421,4,304.18,PURCHASE - FURNITURE,17/11/11,
111111C,PITNEY BOWES LTD==============,33920313,1,557.44,OFFICE EQUIPMENT,17/11/11,557.44
091111C,OPTYMA SECURITY SYSTEMS,37305,1,840.00,STATIONERY CONSUMABLES,17/11/11,"1,000.32"
091111C,OPTYMA SECURITY SYSTEMS,37305,2,160.32,STATIONERY CONSUMABLES,17/11/11,
111111G,COMPUTACENTRE================,3803498438,1,145.00,OPERATIONAL EQUIP-PURCHASE,17/11/11,995.00
111111G,COMPUTACENTRE================,3803498438,2,850.00,OPERATIONAL EQUIP-PURCHASE,17/11/11,
111111C,COMPUTACENTRE================,3803512662,1,697.44,ACQUISITIONS,17/11/11,697.44
101111C,BADENOCH & CLARK==============,4158552,1,"1,581.75",FRS STAFF AGENCY,17/11/11,"2,280.00"
101111C,BADENOCH & CLARK==============,4158552,2,698.25,FRS STAFF AGENCY,17/11/11,
101111C,AUTOMOTIVE LEASING LTD========,4299057,1,"1,614.30","INSPECTION,ROAD TAX & EXCESS MILEAGE",17/11/11,"1,614.30"
101111C,AUTOMOTIVE LEASING LTD========,4368250,1,"1,682.22","INSPECTION,ROAD TAX & EXCESS MILEAGE",17/11/11,"1,682.22"
071111A,DAVIES MAINTENANCE COMPANY LTD,4665,1,546.00,TACTICAL DAY TO DAY,17/11/11,546.00
111111C,FAHEY BUILDERS LTD============,5089,1,"7,399.00",STRATEGIC (NON CYCLICAL),17/11/11,"7,399.00"
111111C,FAHEY BUILDERS LTD============,5090,1,"5,337.00",STRATEGIC (NON CYCLICAL),17/11/11,"5,337.00"
101111C,OAK TELECOM LTD===============,54834,1,"1,895.00",TELECOMMUNICATIONS,17/11/11,"3,695.00"
101111C,OAK TELECOM LTD===============,54834,2,605.00,TELECOMMUNICATIONS,17/11/11,
101111C,OAK TELECOM LTD===============,54834,3,"1,195.00",TELECOMMUNICATIONS,17/11/11,
111111G,SIEMENS ENTERPRISE COMM LTD===,549G 6000821481,1,"1,212.50",PURCHASES - COMPUTERS,17/11/11,"4,962.50"
111111G,SIEMENS ENTERPRISE COMM LTD===,549G 6000821481,2,"3,750.00",PURCHASES - COMPUTERS,17/11/11,
041111G,LIEC PLC======================,59393/1,1,"1,408.34",PUBLIC RELATIONS,17/11/11,"1,408.34"
041111G,LIEC PLC======================,59393/2,1,"1,291.67",PUBLIC RELATIONS,17/11/11,"1,291.67"
091111C,LIEC PLC======================,59393/3,1,"1,010.00",PUBLIC RELATIONS,17/11/11,"1,010.00"
111111C,WEST MIDLANDS FIRE SERVICE====,600027587,1,740.00,TRAINING & CONFERENCES,17/11/11,740.00
141111C,TWO SERVICES LTD==============,61786,1,606.00,CATERING EQUIPMENT,17/11/11,606.00
141111C,TWO SERVICES LTD==============,61787,1,606.00,CATERING EQUIPMENT,17/11/11,606.00
141111C,TWO SERVICES LTD==============,61788,1,606.00,CATERING EQUIPMENT,17/11/11,606.00
141111C,TWO SERVICES LTD==============,61792,1,606.00,CATERING EQUIPMENT,17/11/11,606.00
101111C,GRANT THORNTON UK,6578772,1,"15,750.24",PROFESSIONAL SERVICES,17/11/11,"15,750.24"
141111C,H & V HEATING & VENTILATING==,6653/0441/JE,1,"23,907.26",STRATEGIC (NON CYCLICAL),17/11/11,"51,972.32"
141111C,H & V HEATING & VENTILATING==,6653/0441/JE,2,"28,065.06",DEVELOPMENT EXP - CONTRACTORS,17/11/11,
111111C,NISBETS=======================,6855068,1,529.99,CATERING EQUIPMENT,17/11/11,529.99
141111A,CPL PETROLEUM=================,6881617,1,"3,478.50",FUEL,17/11/11,"3,478.50"
141111A,CPL PETROLEUM=================,6898849,1,"2,289.20",FUEL,17/11/11,"2,289.20"
071111A,CYRIL SWEETT LTD,7007532,1,"3,277.00",PROFESSIONAL FEES - MISC,17/11/11,"3,277.00"
091111C,CYRIL SWEETT LTD,7007537,1,"3,987.00",PROFESSIONAL FEES - MISC,17/11/11,"3,987.00"
111111G,CYRIL SWEETT LTD,7007539,1,"8,350.00",STRATEGIC (NON CYCLICAL),17/11/11,"8,350.00"
111111G,CYRIL SWEETT LTD,7007541,1,"4,714.40",STRATEGIC (NON CYCLICAL),17/11/11,"4,714.40"
139400,PROMOTE INVESTMENTS LTD=======,714,1,"1,953.57",RENTS,17/11/11,"1,953.57"
111111C,RS COMPONENTS LTD=============,82361068,1,"1,995.00",GENERAL,17/11/11,"1,995.00"
091111C,THERMO ELECTRON RMP===========,9110173139,1,"3,280.00",REPAIR & MAINTENANCE,17/11/11,"3,304.00"
091111C,THERMO ELECTRON RMP===========,9110173139,2,24.00,REPAIR & MAINTENANCE,17/11/11,
081111C,ASTEC SURVEYS LIMITED=========,ASL339,1,740.00,DEVELOPMENT EXP - CONTRACTORS,17/11/11,"1,870.00"
081111C,ASTEC SURVEYS LIMITED=========,ASL339,2,565.00,DEVELOPMENT EXP - CONTRACTORS,17/11/11,
081111C,ASTEC SURVEYS LIMITED=========,ASL339,3,565.00,DEVELOPMENT EXP - CONTRACTORS,17/11/11,
111111G,E&S B DAVIS LTD===============,DAV/30237,1,"1,155.00",OPERATIONAL EQUIP-PURCHASE,17/11/11,"1,155.00"
251011A,BAILY GARNER LLP==============,EL:31079,1,"1,341.00",STRATEGIC (NON CYCLICAL),17/11/11,"2,581.06"
251011A,BAILY GARNER LLP==============,EL:31079,2,"1,240.06",STRATEGIC (NON CYCLICAL),17/11/11,
101111C,BAILY GARNER LLP==============,EL:35755,1,"4,286.12",STRATEGIC (NON CYCLICAL),17/11/11,"4,286.12"
101111C,PURDY CONTRACTS LTD,IN220922,1,"4,532.00",STRATEGIC (NON CYCLICAL),17/11/11,"4,532.00"
141111C,CHILDCARE VOUCHERS LTD========,INS04747313/260444,1,571.66,CHILDCARE,17/11/11,571.66
141111G,BRISSCO SIGNS & GRAPHICS======,INV77233,1,430.00,HYDRANTS,17/11/11,"1,338.00"
141111G,BRISSCO SIGNS & GRAPHICS======,INV77233,2,908.00,HYDRANTS,17/11/11,
141111C,G4S TECHNOLOGY LIMITED========,ITN66514,1,"1,010.46",STRATEGIC (NON CYCLICAL),17/11/11,"1,010.46"
041111G,A3UK CONSULTING LTD,LFB002,1,750.00,PROFESSIONAL SERVICES,17/11/11,"3,750.00"
041111G,A3UK CONSULTING LTD,LFB002,2,"1,500.00",PROFESSIONAL SERVICES,17/11/11,
041111G,A3UK CONSULTING LTD,LFB002,3,"1,500.00",PROFESSIONAL SERVICES,17/11/11,
141111C,MARK INSULATIONS GROUP========,OP/I374467,1,748.58,STRATEGIC (NON CYCLICAL),17/11/11,748.58
141111C,MARK INSULATIONS GROUP========,OP/I374468,1,"1,428.35",STRATEGIC (NON CYCLICAL),17/11/11,"1,428.35"
141111C,MARK INSULATIONS GROUP========,OP/I374469,1,"11,988.75",STRATEGIC (NON CYCLICAL),17/11/11,"11,988.75"
031111C,SPECIALIST COMPUTER CENTRES===,OP/L406964,1,"1,250.00",ACQUISITIONS,17/11/11,"1,250.00"
031111C,SPECIALIST COMPUTER CENTRES===,OP/L406965,1,"12,655.00",ACQUISITIONS,17/11/11,"12,655.00"
111111C,PEGASUS COURIERS - LONDON=====,PL010830,1,803.59,POSTAL SERVICES,17/11/11,803.59
111111G,CAPITA SECURE INFO SYSTEMS LTD,POI014983,1,"16,874.00",ACQUISITIONS,17/11/11,"25,137.00"
111111G,CAPITA SECURE INFO SYSTEMS LTD,POI014983,2,"8,263.00",ACQUISITIONS,17/11/11,
141111G,PARITY RESOURCES LIMITED======,PR00239127,1,"1,293.75",PROFESSIONAL SERVICES,17/11/11,"1,293.75"
141111C,MARK INSULATIONS GROUP========,PSP/13166,1,580.80,STRATEGIC (NON CYCLICAL),17/11/11,580.80
081111C,BABCOCK CRITICAL SERVICES LTD,PTSI006765,1,"9,660.03",PROFESSIONAL SERVICES,17/11/11,"9,660.03"
071111A,PULLMAN MOTORS================,PULL67,1,"1,200.00",MODIFICATIONS,17/11/11,"1,200.00"
141111C,FIRE SERVICE COLLEGE==========,SIN048071,1,"22,600.00",TRAINING & CONFERENCES,17/11/11,"22,600.00"
141111C,FIRE SERVICE COLLEGE==========,SIN048072,1,"11,775.00",TRAINING & CONFERENCES,17/11/11,"11,775.00"
141111C,FIRE SERVICE COLLEGE==========,SIN048073,1,"11,775.00",TRAINING & CONFERENCES,17/11/11,"11,775.00"
141111C,FIRE SERVICE COLLEGE==========,SIN048209,1,"11,775.00",TRAINING & CONFERENCES,17/11/11,"11,775.00"
141111C,FIRE SERVICE COLLEGE==========,SIN048210,1,"11,775.00",TRAINING & CONFERENCES,17/11/11,"11,775.00"
111111G,CPC BATTERY SERVICES LTD.===,SIN10018820,1,766.90,TELECOMMUNICATIONS,17/11/11,766.90
011111A,TANNER GAS SERVICES LTD,TGS/0060,1,950.00,STRATEGIC (NON CYCLICAL),17/11/11,950.00
151111C,HEALTH MANAGEMENT LIMITED=====,0000077332,1,275.00,THIRD PARTY REPORTS,21/11/11,"3,408.22"
151111C,HEALTH MANAGEMENT LIMITED=====,0000077332,2,200.00,THIRD PARTY REPORTS,21/11/11,
151111C,HEALTH MANAGEMENT LIMITED=====,0000077332,3,200.00,THIRD PARTY REPORTS,21/11/11,
151111C,HEALTH MANAGEMENT LIMITED=====,0000077332,4,"2,733.22",THIRD PARTY REPORTS,21/11/11,
161111G,HEALTH MANAGEMENT LIMITED=====,0000077766,1,"1,800.00",OHS CONTRACT,21/11/11,"1,800.00"
161111C,REGENT OFFICE CARE LTD========,0030217,1,189.00,STRATEGIC (CYCLICAL),21/11/11,"7,323.75"
161111C,REGENT OFFICE CARE LTD========,0030217,2,157.50,STRATEGIC (CYCLICAL),21/11/11,
161111C,REGENT OFFICE CARE LTD========,0030217,3,157.50,STRATEGIC (CYCLICAL),21/11/11,
161111C,REGENT OFFICE CARE LTD========,0030217,4,157.50,STRATEGIC (CYCLICAL),21/11/11,
161111C,REGENT OFFICE CARE LTD========,0030217,5,189.00,STRATEGIC (CYCLICAL),21/11/11,
161111C,REGENT OFFICE CARE LTD========,0030217,6,157.50,STRATEGIC (CYCLICAL),21/11/11,
161111C,REGENT OFFICE CARE LTD========,0030217,7,189.00,STRATEGIC (CYCLICAL),21/11/11,
161111C,REGENT OFFICE CARE LTD========,0030217,8,189.00,STRATEGIC (CYCLICAL),21/11/11,
161111C,REGENT OFFICE CARE LTD========,0030217,9,157.50,STRATEGIC (CYCLICAL),21/11/11,
161111C,REGENT OFFICE CARE LTD========,0030217,10,189.00,STRATEGIC (CYCLICAL),21/11/11,
161111C,REGENT OFFICE CARE LTD========,0030217,11,189.00,STRATEGIC (CYCLICAL),21/11/11,
161111C,REGENT OFFICE CARE LTD========,0030217,12,157.50,STRATEGIC (CYCLICAL),21/11/11,
161111C,REGENT OFFICE CARE LTD========,0030217,13,189.00,STRATEGIC (CYCLICAL),21/11/11,
161111C,REGENT OFFICE CARE LTD========,0030217,14,189.00,STRATEGIC (CYCLICAL),21/11/11,
161111C,REGENT OFFICE CARE LTD========,0030217,15,189.00,STRATEGIC (CYCLICAL),21/11/11,
161111C,REGENT OFFICE CARE LTD========,0030217,16,189.00,STRATEGIC (CYCLICAL),21/11/11,
161111C,REGENT OFFICE CARE LTD========,0030217,17,189.00,STRATEGIC (CYCLICAL),21/11/11,
161111C,REGENT OFFICE CARE LTD========,0030217,18,220.50,STRATEGIC (CYCLICAL),21/11/11,
161111C,REGENT OFFICE CARE LTD========,0030217,19,157.50,STRATEGIC (CYCLICAL),21/11/11,
161111C,REGENT OFFICE CARE LTD========,0030217,20,189.00,STRATEGIC (CYCLICAL),21/11/11,
161111C,REGENT OFFICE CARE LTD========,0030217,21,157.50,STRATEGIC (CYCLICAL),21/11/11,
161111C,REGENT OFFICE CARE LTD========,0030217,22,157.50,STRATEGIC (CYCLICAL),21/11/11,
161111C,REGENT OFFICE CARE LTD========,0030217,23,189.00,STRATEGIC (CYCLICAL),21/11/11,
161111C,REGENT OFFICE CARE LTD========,0030217,24,189.00,STRATEGIC (CYCLICAL),21/11/11,
161111C,REGENT OFFICE CARE LTD========,0030217,25,189.00,STRATEGIC (CYCLICAL),21/11/11,
161111C,REGENT OFFICE CARE LTD========,0030217,26,157.50,STRATEGIC (CYCLICAL),21/11/11,
161111C,REGENT OFFICE CARE LTD========,0030217,27,189.00,STRATEGIC (CYCLICAL),21/11/11,
161111C,REGENT OFFICE CARE LTD========,0030217,28,173.25,STRATEGIC (CYCLICAL),21/11/11,
161111C,REGENT OFFICE CARE LTD========,0030217,29,157.50,STRATEGIC (CYCLICAL),21/11/11,
161111C,REGENT OFFICE CARE LTD========,0030217,30,189.00,STRATEGIC (CYCLICAL),21/11/11,
161111C,REGENT OFFICE CARE LTD========,0030217,31,157.50,STRATEGIC (CYCLICAL),21/11/11,
161111C,REGENT OFFICE CARE LTD========,0030217,32,157.50,STRATEGIC (CYCLICAL),21/11/11,
161111C,REGENT OFFICE CARE LTD========,0030217,33,189.00,STRATEGIC (CYCLICAL),21/11/11,
161111C,REGENT OFFICE CARE LTD========,0030217,34,189.00,STRATEGIC (CYCLICAL),21/11/11,
161111C,REGENT OFFICE CARE LTD========,0030217,35,189.00,STRATEGIC (CYCLICAL),21/11/11,
161111C,REGENT OFFICE CARE LTD========,0030217,36,189.00,STRATEGIC (CYCLICAL),21/11/11,
161111C,REGENT OFFICE CARE LTD========,0030217,37,157.50,STRATEGIC (CYCLICAL),21/11/11,
161111C,REGENT OFFICE CARE LTD========,0030217,38,189.00,STRATEGIC (CYCLICAL),21/11/11,
161111C,REGENT OFFICE CARE LTD========,0030217,39,189.00,STRATEGIC (CYCLICAL),21/11/11,
161111C,REGENT OFFICE CARE LTD========,0030217,40,189.00,STRATEGIC (CYCLICAL),21/11/11,
161111C,REGENT OFFICE CARE LTD========,0030217,41,189.00,STRATEGIC (CYCLICAL),21/11/11,
151111C,FAITHORN FARRELL TIMMS========,007303,1,"1,329.15",STRATEGIC (NON CYCLICAL),21/11/11,"1,329.15"
111111G,ADAM PHONES LTD===============,00891734,1,120.00,CELLULAR TELEPHONES,21/11/11,526.94
111111G,ADAM PHONES LTD===============,00891734,2,16.50,CELLULAR TELEPHONES,21/11/11,
111111G,ADAM PHONES LTD===============,00891734,3,255.60,CELLULAR TELEPHONES,21/11/11,
111111G,ADAM PHONES LTD===============,00891734,4,134.84,CELLULAR TELEPHONES,21/11/11,
021111C,KNOWLES LTD===================,021111,1,980.00,TRAINING & CONFERENCES,21/11/11,980.00
139412,THAMES WATER UTILITIES LTD====,0423030577K,1,996.12,WATER & SEWERAGE RATES,21/11/11,996.12
151111C,*PRINCIPAL CATERING CONSULTNTS,045442,1,"2,132.72",CATERING,21/11/11,"2,132.72"
151111C,*PRINCIPAL CATERING CONSULTNTS,045444,1,"1,364.00",CATERING,21/11/11,"1,364.00"
151111C,*PRINCIPAL CATERING CONSULTNTS,045445,1,703.40,CATERING,21/11/11,703.40
081111C,HAYS ACCOUNTANCY & FINANCE====,1001575095,1,696.00,FRS STAFF AGENCY,21/11/11,696.00
141111C,*SPRUE SAFETY PRODUCTS LTD====,1024749,1,"1,131.00",FIRE DETECTORS,21/11/11,"3,399.00"
141111C,*SPRUE SAFETY PRODUCTS LTD====,1024749,2,476.00,FIRE DETECTORS,21/11/11,
141111C,*SPRUE SAFETY PRODUCTS LTD====,1024749,3,528.00,FIRE DETECTORS,21/11/11,
141111C,*SPRUE SAFETY PRODUCTS LTD====,1024749,4,"1,264.00",FIRE DETECTORS,21/11/11,
161111C,VISTA LANDSCAPE MANAGEMENT LTD,115796,1,325.00,GROUNDS MAINTENANCE,21/11/11,"5,131.25"
161111C,VISTA LANDSCAPE MANAGEMENT LTD,115796,2,325.00,GROUNDS MAINTENANCE,21/11/11,
161111C,VISTA LANDSCAPE MANAGEMENT LTD,115796,3,325.00,GROUNDS MAINTENANCE,21/11/11,
161111C,VISTA LANDSCAPE MANAGEMENT LTD,115796,4,325.00,GROUNDS MAINTENANCE,21/11/11,
161111C,VISTA LANDSCAPE MANAGEMENT LTD,115796,5,343.75,GROUNDS MAINTENANCE,21/11/11,
161111C,VISTA LANDSCAPE MANAGEMENT LTD,115796,6,343.75,GROUNDS MAINTENANCE,21/11/11,
161111C,VISTA LANDSCAPE MANAGEMENT LTD,115796,7,325.00,GROUNDS MAINTENANCE,21/11/11,
161111C,VISTA LANDSCAPE MANAGEMENT LTD,115796,8,325.00,GROUNDS MAINTENANCE,21/11/11,
161111C,VISTA LANDSCAPE MANAGEMENT LTD,115796,9,325.00,GROUNDS MAINTENANCE,21/11/11,
161111C,VISTA LANDSCAPE MANAGEMENT LTD,115796,10,325.00,GROUNDS MAINTENANCE,21/11/11,
161111C,VISTA LANDSCAPE MANAGEMENT LTD,115796,11,325.00,GROUNDS MAINTENANCE,21/11/11,
161111C,VISTA LANDSCAPE MANAGEMENT LTD,115796,12,325.00,GROUNDS MAINTENANCE,21/11/11,
161111C,VISTA LANDSCAPE MANAGEMENT LTD,115796,13,325.00,GROUNDS MAINTENANCE,21/11/11,
161111C,VISTA LANDSCAPE MANAGEMENT LTD,115796,14,137.50,GROUNDS MAINTENANCE,21/11/11,
161111C,VISTA LANDSCAPE MANAGEMENT LTD,115796,15,325.00,GROUNDS MAINTENANCE,21/11/11,
161111C,VISTA LANDSCAPE MANAGEMENT LTD,115796,16,137.50,GROUNDS MAINTENANCE,21/11/11,
161111C,VISTA LANDSCAPE MANAGEMENT LTD,115796,17,137.50,GROUNDS MAINTENANCE,21/11/11,
161111C,VISTA LANDSCAPE MANAGEMENT LTD,115796,18,131.25,GROUNDS MAINTENANCE,21/11/11,
161111C,SILVERSANDS LIMITED===========,117514,1,950.00,MAINTENANCE & SUPPORT,21/11/11,950.00
151111C,SURREY BLIND & CURTAIN CO=====,13020,1,"1,606.00",STRATEGIC (NON CYCLICAL),21/11/11,"1,606.00"
151111C,POSTAGE BY PHONE==============,13110013,1,"4,009.00",POSTAL SERVICES,21/11/11,"4,009.00"
111111C,STORM TECHNOLOGIES============,164030,1,"85,962.50",ACQUISITIONS,21/11/11,"92,275.00"
111111C,STORM TECHNOLOGIES============,164030,2,"3,417.50",ACQUISITIONS,21/11/11,
111111C,STORM TECHNOLOGIES============,164030,3,"1,622.50",ACQUISITIONS,21/11/11,
111111C,STORM TECHNOLOGIES============,164030,4,"1,272.50",ACQUISITIONS,21/11/11,
111111C,STORM TECHNOLOGIES============,164220,1,"8,523.00",ACQUISITIONS,21/11/11,"8,523.00"
111111C,STORM TECHNOLOGIES============,164224,1,"1,400.00",DEVELOPMENT EXP - CONTRACTORS,21/11/11,"1,400.00"
111111C,STORM TECHNOLOGIES============,164226,1,700.00,ACQUISITIONS,21/11/11,"2,200.00"
111111C,STORM TECHNOLOGIES============,164226,2,"1,500.00",ACQUISITIONS,21/11/11,
161111G,COMMUNITIES & LOCAL GOVERNMENT,1800016372,1,"97,331.20",RADIO,21/11/11,"106,386.20"
161111G,COMMUNITIES & LOCAL GOVERNMENT,1800016372,2,"9,055.00",RADIO,21/11/11,
111111G,SALVUS CONSULTING LIMITED=====,1964/1,1,"9,999.00",TRAINING & CONFERENCES,21/11/11,"9,999.00"
800005236,ADECCO UK LIMITED=============,25801178,1,"1,550.00",FRS STAFF AGENCY,21/11/11,"1,550.00"
800005237,ADECCO UK LIMITED=============,25801179,1,"1,550.00",FRS STAFF AGENCY,21/11/11,"1,550.00"
800005238,ADECCO UK LIMITED=============,25801180,1,"1,240.00",FRS STAFF AGENCY,21/11/11,"1,240.00"
800005239,ADECCO UK LIMITED=============,25801181,1,"1,240.00",FRS STAFF AGENCY,21/11/11,"1,240.00"
800005240,ADECCO UK LIMITED=============,25801182,1,"1,550.00",FRS STAFF AGENCY,21/11/11,"1,550.00"
800005241,ADECCO UK LIMITED=============,25801183,1,"1,240.00",FRS STAFF AGENCY,21/11/11,"1,240.00"
800005242,ADECCO UK LIMITED=============,25801184,1,"1,240.00",FRS STAFF AGENCY,21/11/11,"1,240.00"
800005243,ADECCO UK LIMITED=============,25801185,1,"1,550.00",FRS STAFF AGENCY,21/11/11,"1,550.00"
800005244,ADECCO UK LIMITED=============,25801186,1,"1,550.00",FRS STAFF AGENCY,21/11/11,"1,550.00"
800005286,ADECCO UK LIMITED=============,25801228,1,"1,550.00",FRS STAFF AGENCY,21/11/11,"1,550.00"
800005287,ADECCO UK LIMITED=============,25801229,1,"1,550.00",FRS STAFF AGENCY,21/11/11,"1,550.00"
800005288,ADECCO UK LIMITED=============,25801230,1,"1,550.00",FRS STAFF AGENCY,21/11/11,"1,550.00"
800005289,ADECCO UK LIMITED=============,25801231,1,"1,550.00",FRS STAFF AGENCY,21/11/11,"1,550.00"
800005290,ADECCO UK LIMITED=============,25801232,1,"1,550.00",FRS STAFF AGENCY,21/11/11,"1,550.00"
800005291,ADECCO UK LIMITED=============,25801233,1,"1,550.00",FRS STAFF AGENCY,21/11/11,"1,550.00"
800005292,ADECCO UK LIMITED=============,25801234,1,"1,550.00",FRS STAFF AGENCY,21/11/11,"1,550.00"
800005566,ADECCO UK LIMITED=============,25807994,1,970.57,FRS STAFF AGENCY,21/11/11,970.57
800005568,ADECCO UK LIMITED=============,25807996,1,"1,909.45",FRS STAFF AGENCY,21/11/11,"1,909.45"
800005570,ADECCO UK LIMITED=============,25807998,1,"1,562.22",FRS STAFF AGENCY,21/11/11,"1,562.22"
800005572,ADECCO UK LIMITED=============,25808000,1,896.51,FRS STAFF AGENCY,21/11/11,896.51
800005573,ADECCO UK LIMITED=============,25808001,1,991.52,FRS STAFF AGENCY,21/11/11,991.52
800005574,ADECCO UK LIMITED=============,25808002,1,991.52,FRS STAFF AGENCY,21/11/11,991.52
800005576,ADECCO UK LIMITED=============,25808004,1,"1,766.48",FRS STAFF AGENCY,21/11/11,"1,766.48"
800005579,ADECCO UK LIMITED=============,25808007,1,"1,109.05",FRS STAFF AGENCY,21/11/11,"1,109.05"
800005580,ADECCO UK LIMITED=============,25808008,1,650.72,FRS STAFF AGENCY,21/11/11,650.72
800005582,ADECCO UK LIMITED=============,25808010,1,772.45,FRS STAFF AGENCY,21/11/11,772.45
139412,THAMES WATER UTILITIES LTD====,2610211537K,1,592.91,WATER & SEWERAGE RATES,21/11/11,592.91
151111A,KNIGHTON CLEANING SERVICES LTD,26210,1,"1,377.41",HYGIENE,21/11/11,"1,377.41"
151111C,ENVISION CONCEPTS LIMITED,27901,1,"8,000.00",STRATEGIC (NON CYCLICAL),21/11/11,"8,000.00"
151111A,SKYMASTS ANTENNAS LTD=========,37719,1,"1,203.00",RADIO,21/11/11,"1,232.95"
151111A,SKYMASTS ANTENNAS LTD=========,37719,2,29.95,RADIO,21/11/11,
161111G,COMPUTACENTRE================,3803498437,1,"5,401.60",MAINTENANCE & SUPPORT,21/11/11,"5,401.60"
161111G,*BURLINGTON UNIFORMS LTD,402994,1,23.00,CLOTHING,21/11/11,"1,583.55"
161111G,*BURLINGTON UNIFORMS LTD,402994,2,23.00,CLOTHING,21/11/11,
161111G,*BURLINGTON UNIFORMS LTD,402994,3,23.00,CLOTHING,21/11/11,
161111G,*BURLINGTON UNIFORMS LTD,402994,4,23.00,CLOTHING,21/11/11,
161111G,*BURLINGTON UNIFORMS LTD,402994,5,23.00,CLOTHING,21/11/11,
161111G,*BURLINGTON UNIFORMS LTD,402994,6,23.00,CLOTHING,21/11/11,
161111G,*BURLINGTON UNIFORMS LTD,402994,7,23.00,CLOTHING,21/11/11,
161111G,*BURLINGTON UNIFORMS LTD,402994,8,23.00,CLOTHING,21/11/11,
161111G,*BURLINGTON UNIFORMS LTD,402994,9,23.00,CLOTHING,21/11/11,
161111G,*BURLINGTON UNIFORMS LTD,402994,10,23.00,CLOTHING,21/11/11,
161111G,*BURLINGTON UNIFORMS LTD,402994,11,23.00,CLOTHING,21/11/11,
161111G,*BURLINGTON UNIFORMS LTD,402994,12,23.00,CLOTHING,21/11/11,
161111G,*BURLINGTON UNIFORMS LTD,402994,13,23.00,CLOTHING,21/11/11,
161111G,*BURLINGTON UNIFORMS LTD,402994,14,23.00,CLOTHING,21/11/11,
161111G,*BURLINGTON UNIFORMS LTD,402994,15,23.00,CLOTHING,21/11/11,
161111G,*BURLINGTON UNIFORMS LTD,402994,16,23.00,CLOTHING,21/11/11,
161111G,*BURLINGTON UNIFORMS LTD,402994,17,23.00,CLOTHING,21/11/11,
161111G,*BURLINGTON UNIFORMS LTD,402994,18,23.00,CLOTHING,21/11/11,
161111G,*BURLINGTON UNIFORMS LTD,402994,19,23.00,CLOTHING,21/11/11,
161111G,*BURLINGTON UNIFORMS LTD,402994,20,23.00,CLOTHING,21/11/11,
161111G,*BURLINGTON UNIFORMS LTD,402994,21,23.00,CLOTHING,21/11/11,
161111G,*BURLINGTON UNIFORMS LTD,402994,22,23.00,CLOTHING,21/11/11,
161111G,*BURLINGTON UNIFORMS LTD,402994,23,23.00,CLOTHING,21/11/11,
161111G,*BURLINGTON UNIFORMS LTD,402994,24,23.00,CLOTHING,21/11/11,
161111G,*BURLINGTON UNIFORMS LTD,402994,25,15.95,CLOTHING,21/11/11,
161111G,*BURLINGTON UNIFORMS LTD,402994,26,15.95,CLOTHING,21/11/11,
161111G,*BURLINGTON UNIFORMS LTD,402994,27,15.95,CLOTHING,21/11/11,
161111G,*BURLINGTON UNIFORMS LTD,402994,28,15.95,CLOTHING,21/11/11,
161111G,*BURLINGTON UNIFORMS LTD,402994,29,15.95,CLOTHING,21/11/11,
161111G,*BURLINGTON UNIFORMS LTD,402994,30,15.95,CLOTHING,21/11/11,
161111G,*BURLINGTON UNIFORMS LTD,402994,31,15.95,CLOTHING,21/11/11,
161111G,*BURLINGTON UNIFORMS LTD,402994,32,15.95,CLOTHING,21/11/11,
161111G,*BURLINGTON UNIFORMS LTD,402994,33,15.95,CLOTHING,21/11/11,
161111G,*BURLINGTON UNIFORMS LTD,402994,34,15.95,CLOTHING,21/11/11,
161111G,*BURLINGTON UNIFORMS LTD,402994,35,15.95,CLOTHING,21/11/11,
161111G,*BURLINGTON UNIFORMS LTD,402994,36,15.95,CLOTHING,21/11/11,
161111G,*BURLINGTON UNIFORMS LTD,402994,37,15.95,CLOTHING,21/11/11,
161111G,*BURLINGTON UNIFORMS LTD,402994,38,15.95,CLOTHING,21/11/11,
161111G,*BURLINGTON UNIFORMS LTD,402994,39,23.00,CLOTHING,21/11/11,
161111G,*BURLINGTON UNIFORMS LTD,402994,40,23.00,CLOTHING,21/11/11,
161111G,*BURLINGTON UNIFORMS LTD,402994,41,23.00,CLOTHING,21/11/11,
161111G,*BURLINGTON UNIFORMS LTD,402994,42,23.00,CLOTHING,21/11/11,
161111G,*BURLINGTON UNIFORMS LTD,402994,43,23.00,CLOTHING,21/11/11,
161111G,*BURLINGTON UNIFORMS LTD,402994,44,23.00,CLOTHING,21/11/11,
161111G,*BURLINGTON UNIFORMS LTD,402994,45,23.00,CLOTHING,21/11/11,
161111G,*BURLINGTON UNIFORMS LTD,402994,46,23.00,CLOTHING,21/11/11,
161111G,*BURLINGTON UNIFORMS LTD,402994,47,23.00,CLOTHING,21/11/11,
161111G,*BURLINGTON UNIFORMS LTD,402994,48,23.00,CLOTHING,21/11/11,
161111G,*BURLINGTON UNIFORMS LTD,402994,49,23.00,CLOTHING,21/11/11,
161111G,*BURLINGTON UNIFORMS LTD,402994,50,23.00,CLOTHING,21/11/11,
161111G,*BURLINGTON UNIFORMS LTD,402994,51,23.00,CLOTHING,21/11/11,
161111G,*BURLINGTON UNIFORMS LTD,402994,52,17.30,CLOTHING,21/11/11,
161111G,*BURLINGTON UNIFORMS LTD,402994,53,17.30,CLOTHING,21/11/11,
161111G,*BURLINGTON UNIFORMS LTD,402994,54,17.30,CLOTHING,21/11/11,
161111G,*BURLINGTON UNIFORMS LTD,402994,55,17.30,CLOTHING,21/11/11,
161111G,*BURLINGTON UNIFORMS LTD,402994,56,17.30,CLOTHING,21/11/11,
161111G,*BURLINGTON UNIFORMS LTD,402994,57,17.30,CLOTHING,21/11/11,
161111G,*BURLINGTON UNIFORMS LTD,402994,58,15.95,CLOTHING,21/11/11,
161111G,*BURLINGTON UNIFORMS LTD,402994,59,15.95,CLOTHING,21/11/11,
161111G,*BURLINGTON UNIFORMS LTD,402994,60,15.95,CLOTHING,21/11/11,
161111G,*BURLINGTON UNIFORMS LTD,402994,61,15.95,CLOTHING,21/11/11,
161111G,*BURLINGTON UNIFORMS LTD,402994,62,15.95,CLOTHING,21/11/11,
161111G,*BURLINGTON UNIFORMS LTD,402994,63,15.95,CLOTHING,21/11/11,
161111G,*BURLINGTON UNIFORMS LTD,402994,64,15.95,CLOTHING,21/11/11,
161111G,*BURLINGTON UNIFORMS LTD,402994,65,15.95,CLOTHING,21/11/11,
161111G,*BURLINGTON UNIFORMS LTD,402994,66,15.95,CLOTHING,21/11/11,
161111G,*BURLINGTON UNIFORMS LTD,402994,67,15.95,CLOTHING,21/11/11,
161111G,*BURLINGTON UNIFORMS LTD,402994,68,15.95,CLOTHING,21/11/11,
161111G,*BURLINGTON UNIFORMS LTD,402994,69,23.00,CLOTHING,21/11/11,
161111G,*BURLINGTON UNIFORMS LTD,402994,70,23.00,CLOTHING,21/11/11,
161111G,*BURLINGTON UNIFORMS LTD,402994,71,23.00,CLOTHING,21/11/11,
161111G,*BURLINGTON UNIFORMS LTD,402994,72,23.00,CLOTHING,21/11/11,
161111G,*BURLINGTON UNIFORMS LTD,402994,73,23.00,CLOTHING,21/11/11,
161111G,*BURLINGTON UNIFORMS LTD,402994,74,23.00,CLOTHING,21/11/11,
161111G,*BURLINGTON UNIFORMS LTD,402994,75,23.00,CLOTHING,21/11/11,
161111G,*BURLINGTON UNIFORMS LTD,402994,76,23.00,CLOTHING,21/11/11,
161111G,*BURLINGTON UNIFORMS LTD,402994,77,23.00,CLOTHING,21/11/11,
161111G,*BURLINGTON UNIFORMS LTD,402994,78,23.00,CLOTHING,21/11/11,
139414,JCT600 CONTRACTS LIMITED======,407743,1,"1,654.60",LEASE CAR CHARGES,21/11/11,"4,176.43"
139414,JCT600 CONTRACTS LIMITED======,407743,2,"2,521.83",P/PAYMTS-CAR LEASG-RENTAL,21/11/11,
139414,JCT600 CONTRACTS LIMITED======,407743,3,-370.01,VAT CAR LEASING,21/11/11,
139414,JCT600 CONTRACTS LIMITED======,407743,4,370.01,LEASE CAR CHARGES,21/11/11,
161111C,DICKINSON DEES================,4103724,1,"9,107.08",PROFESSIONAL SERVICES,21/11/11,"9,107.08"
161111C,R J HOLLAND LTD===============,4343,1,"1,750.00",DAY TO DAY MINOR IMPS,21/11/11,"1,750.00"
161111C,R J HOLLAND LTD===============,4344,1,"1,445.00",DAY TO DAY MINOR IMPS,21/11/11,"1,445.00"
139414,*ALEXANDRA PLC================,4344868,1,"1,117.25",UNIFORMS - POMS,21/11/11,"1,117.25"
151111C,MITIE SECURITY (LONDON) LTD===,44/447984,1,"8,021.02",PREMISES SECURITY,21/11/11,"8,021.02"
151111C,MITIE SECURITY (LONDON) LTD===,44/447995,1,"16,338.24",PREMISES SECURITY,21/11/11,"16,338.24"
151111C,MITIE SECURITY (LONDON) LTD===,44/448088,1,"8,031.83",PREMISES SECURITY,21/11/11,"8,031.83"
161111C,CARPETS & FLOOR COVERS DIRECT=,479,1,"3,400.00",FIXTURES & FITTINGS,21/11/11,"3,400.00"
151111C,URS SCOTT WILSON LIMITED,4838544,1,"1,000.00",STRATEGIC (NON CYCLICAL),21/11/11,"1,000.00"
151111C,URS SCOTT WILSON LIMITED,4839308,1,879.29,STRATEGIC (NON CYCLICAL),21/11/11,"3,500.00"
151111C,URS SCOTT WILSON LIMITED,4839308,2,"2,620.71",STRATEGIC (NON CYCLICAL),21/11/11,
151111C,URS SCOTT WILSON LIMITED,4863633,1,"11,034.50",STRATEGIC (NON CYCLICAL),21/11/11,"11,461.50"
151111C,URS SCOTT WILSON LIMITED,4863633,2,427.00,STRATEGIC (NON CYCLICAL),21/11/11,
151111A,BTC BIRNIE TRAINING CONSULTANC,535052,1,700.00,TRAINING & CONFERENCES,21/11/11,700.00
161111C,RIG SYSTEMS LTD===============,561,1,"1,575.00",TRAINING & CONFERENCES,21/11/11,"1,575.00"
161111C,RIG SYSTEMS LTD===============,564,1,"1,575.00",TRAINING & CONFERENCES,21/11/11,"1,575.00"
081111C,KINGSWOOD CONSTRUCTION,5714,1,"37,658.00",DEVELOPMENT EXP - CONTRACTORS,21/11/11,"37,658.00"
071111A,KINGSWOOD CONSTRUCTION,5715,1,"16,644.00",DEVELOPMENT EXP - CONTRACTORS,21/11/11,"16,644.00"
091111C,DCB (KENT) LIMITED============,584/002,1,"28,407.70",STRATEGIC (NON CYCLICAL),21/11/11,"28,407.70"
161111G,METROPOLITAN POLICE===========,6800078192,1,"9,000.00",CONTRACT HIRE,21/11/11,"9,000.00"
800005650,*NPS (SHOES) LTD,9267,1,29.45,CLOTHING,21/11/11,"1,059.55"
800005650,*NPS (SHOES) LTD,9267,2,29.45,CLOTHING,21/11/11,
800005650,*NPS (SHOES) LTD,9267,3,29.45,CLOTHING,21/11/11,
800005650,*NPS (SHOES) LTD,9267,4,29.45,CLOTHING,21/11/11,
800005650,*NPS (SHOES) LTD,9267,5,29.45,CLOTHING,21/11/11,
800005650,*NPS (SHOES) LTD,9267,6,29.45,CLOTHING,21/11/11,
800005650,*NPS (SHOES) LTD,9267,7,29.45,CLOTHING,21/11/11,
800005650,*NPS (SHOES) LTD,9267,8,29.45,CLOTHING,21/11/11,
800005650,*NPS (SHOES) LTD,9267,9,29.45,CLOTHING,21/11/11,
800005650,*NPS (SHOES) LTD,9267,10,29.45,CLOTHING,21/11/11,
800005650,*NPS (SHOES) LTD,9267,11,29.45,CLOTHING,21/11/11,
800005650,*NPS (SHOES) LTD,9267,12,29.45,CLOTHING,21/11/11,
800005650,*NPS (SHOES) LTD,9267,13,29.45,CLOTHING,21/11/11,
800005650,*NPS (SHOES) LTD,9267,14,29.45,CLOTHING,21/11/11,
800005650,*NPS (SHOES) LTD,9267,15,29.45,CLOTHING,21/11/11,
800005650,*NPS (SHOES) LTD,9267,16,29.45,CLOTHING,21/11/11,
800005650,*NPS (SHOES) LTD,9267,17,29.45,CLOTHING,21/11/11,
800005650,*NPS (SHOES) LTD,9267,18,29.45,CLOTHING,21/11/11,
800005650,*NPS (SHOES) LTD,9267,19,29.45,CLOTHING,21/11/11,
800005650,*NPS (SHOES) LTD,9267,20,29.45,CLOTHING,21/11/11,
800005650,*NPS (SHOES) LTD,9267,21,29.45,CLOTHING,21/11/11,
800005650,*NPS (SHOES) LTD,9267,22,29.45,CLOTHING,21/11/11,
800005650,*NPS (SHOES) LTD,9267,23,29.45,CLOTHING,21/11/11,
800005650,*NPS (SHOES) LTD,9267,24,29.45,CLOTHING,21/11/11,
800005650,*NPS (SHOES) LTD,9267,25,29.45,CLOTHING,21/11/11,
800005650,*NPS (SHOES) LTD,9267,26,29.45,CLOTHING,21/11/11,
800005650,*NPS (SHOES) LTD,9267,27,29.45,CLOTHING,21/11/11,
800005650,*NPS (SHOES) LTD,9267,28,29.45,CLOTHING,21/11/11,
800005650,*NPS (SHOES) LTD,9267,29,29.45,CLOTHING,21/11/11,
800005650,*NPS (SHOES) LTD,9267,30,41.10,CLOTHING,21/11/11,
800005650,*NPS (SHOES) LTD,9267,31,41.10,CLOTHING,21/11/11,
800005650,*NPS (SHOES) LTD,9267,32,41.10,CLOTHING,21/11/11,
800005650,*NPS (SHOES) LTD,9267,33,41.10,CLOTHING,21/11/11,
800005650,*NPS (SHOES) LTD,9267,34,41.10,CLOTHING,21/11/11,
800005417,*NPS (SHOES) LTD,9523,1,30.05,CLOTHING,21/11/11,"1,768.40"
800005417,*NPS (SHOES) LTD,9523,2,30.05,CLOTHING,21/11/11,
800005417,*NPS (SHOES) LTD,9523,3,30.05,CLOTHING,21/11/11,
800005417,*NPS (SHOES) LTD,9523,4,30.05,CLOTHING,21/11/11,
800005417,*NPS (SHOES) LTD,9523,5,29.45,CLOTHING,21/11/11,
800005417,*NPS (SHOES) LTD,9523,6,29.45,CLOTHING,21/11/11,
800005417,*NPS (SHOES) LTD,9523,7,29.45,CLOTHING,21/11/11,
800005417,*NPS (SHOES) LTD,9523,8,29.45,CLOTHING,21/11/11,
800005417,*NPS (SHOES) LTD,9523,9,29.45,CLOTHING,21/11/11,
800005417,*NPS (SHOES) LTD,9523,10,29.45,CLOTHING,21/11/11,
800005417,*NPS (SHOES) LTD,9523,11,29.45,CLOTHING,21/11/11,
800005417,*NPS (SHOES) LTD,9523,12,29.45,CLOTHING,21/11/11,
800005417,*NPS (SHOES) LTD,9523,13,29.45,CLOTHING,21/11/11,
800005417,*NPS (SHOES) LTD,9523,14,29.45,CLOTHING,21/11/11,
800005417,*NPS (SHOES) LTD,9523,15,29.45,CLOTHING,21/11/11,
800005417,*NPS (SHOES) LTD,9523,16,29.45,CLOTHING,21/11/11,
800005417,*NPS (SHOES) LTD,9523,17,29.45,CLOTHING,21/11/11,
800005417,*NPS (SHOES) LTD,9523,18,29.45,CLOTHING,21/11/11,
800005417,*NPS (SHOES) LTD,9523,19,29.45,CLOTHING,21/11/11,
800005417,*NPS (SHOES) LTD,9523,20,29.45,CLOTHING,21/11/11,
800005417,*NPS (SHOES) LTD,9523,21,29.45,CLOTHING,21/11/11,
800005417,*NPS (SHOES) LTD,9523,22,29.45,CLOTHING,21/11/11,
800005417,*NPS (SHOES) LTD,9523,23,29.45,CLOTHING,21/11/11,
800005417,*NPS (SHOES) LTD,9523,24,29.45,CLOTHING,21/11/11,
800005417,*NPS (SHOES) LTD,9523,25,29.45,CLOTHING,21/11/11,
800005417,*NPS (SHOES) LTD,9523,26,29.45,CLOTHING,21/11/11,
800005417,*NPS (SHOES) LTD,9523,27,29.45,CLOTHING,21/11/11,
800005417,*NPS (SHOES) LTD,9523,28,29.45,CLOTHING,21/11/11,
800005417,*NPS (SHOES) LTD,9523,29,29.45,CLOTHING,21/11/11,
800005417,*NPS (SHOES) LTD,9523,30,29.45,CLOTHING,21/11/11,
800005417,*NPS (SHOES) LTD,9523,31,29.45,CLOTHING,21/11/11,
800005417,*NPS (SHOES) LTD,9523,32,29.45,CLOTHING,21/11/11,
800005417,*NPS (SHOES) LTD,9523,33,29.45,CLOTHING,21/11/11,
800005417,*NPS (SHOES) LTD,9523,34,29.45,CLOTHING,21/11/11,
800005417,*NPS (SHOES) LTD,9523,35,29.45,CLOTHING,21/11/11,
800005417,*NPS (SHOES) LTD,9523,36,29.45,CLOTHING,21/11/11,
800005417,*NPS (SHOES) LTD,9523,37,29.45,CLOTHING,21/11/11,
800005417,*NPS (SHOES) LTD,9523,38,29.45,CLOTHING,21/11/11,
800005417,*NPS (SHOES) LTD,9523,39,29.45,CLOTHING,21/11/11,
800005417,*NPS (SHOES) LTD,9523,40,29.45,CLOTHING,21/11/11,
800005417,*NPS (SHOES) LTD,9523,41,29.45,CLOTHING,21/11/11,
800005417,*NPS (SHOES) LTD,9523,42,29.45,CLOTHING,21/11/11,
800005417,*NPS (SHOES) LTD,9523,43,28.45,CLOTHING,21/11/11,
800005417,*NPS (SHOES) LTD,9523,44,29.45,CLOTHING,21/11/11,
800005417,*NPS (SHOES) LTD,9523,45,29.45,CLOTHING,21/11/11,
800005417,*NPS (SHOES) LTD,9523,46,29.45,CLOTHING,21/11/11,
800005417,*NPS (SHOES) LTD,9523,47,29.45,CLOTHING,21/11/11,
800005417,*NPS (SHOES) LTD,9523,48,29.45,CLOTHING,21/11/11,
800005417,*NPS (SHOES) LTD,9523,49,29.45,CLOTHING,21/11/11,
800005417,*NPS (SHOES) LTD,9523,50,29.45,CLOTHING,21/11/11,
800005417,*NPS (SHOES) LTD,9523,51,29.45,CLOTHING,21/11/11,
800005417,*NPS (SHOES) LTD,9523,52,29.45,CLOTHING,21/11/11,
800005417,*NPS (SHOES) LTD,9523,53,29.45,CLOTHING,21/11/11,
800005417,*NPS (SHOES) LTD,9523,54,29.45,CLOTHING,21/11/11,
800005417,*NPS (SHOES) LTD,9523,55,29.45,CLOTHING,21/11/11,
800005417,*NPS (SHOES) LTD,9523,56,29.45,CLOTHING,21/11/11,
800005417,*NPS (SHOES) LTD,9523,57,29.45,CLOTHING,21/11/11,
800005417,*NPS (SHOES) LTD,9523,58,29.45,CLOTHING,21/11/11,
800005417,*NPS (SHOES) LTD,9523,59,29.45,CLOTHING,21/11/11,
800005417,*NPS (SHOES) LTD,9523,60,29.45,CLOTHING,21/11/11,
139412,THAMES WATER UTILITIES LTD====,95240-85193N,1,908.64,WATER & SEWERAGE RATES,21/11/11,908.64
111111C,BROMLEY COLLEGE OF F & H EDUC.,BCOI/0000027,1,"1,895.00",TRAINING & CONFERENCES,21/11/11,"2,411.00"
111111C,BROMLEY COLLEGE OF F & H EDUC.,BCOI/0000027,2,396.00,TRAINING & CONFERENCES,21/11/11,
111111C,BROMLEY COLLEGE OF F & H EDUC.,BCOI/0000027,3,120.00,TRAINING & CONFERENCES,21/11/11,
151111C,BAILY GARNER LLP==============,EL:35757,1,640.40,STRATEGIC (NON CYCLICAL),21/11/11,640.40
161111C,BRISTOL UNIFORMS LTD==========,I161294,1,"177,675.48",CLOTHING,21/11/11,"177,675.48"
161111G,KCOM GROUP====================,INV0197161,1,950.00,REPAIR & MAINTENANCE,21/11/11,950.00
161111C,*HOMEPACK LTD=================,INV31876,1,740.00,OPERATIONAL EQUIP-PURCHASE,21/11/11,740.00
141111C,CHICHESTER COLLEGE============,ISTU145216,1,"1,750.00",TRAINING & CONFERENCES,21/11/11,"1,750.00"
151111C,LONDON PENSIONS FUND AUTHORITY,MC68,1,"1,116.00",LOCAL GOVT PENSION SCHEME PAYM,21/11/11,"1,116.00"
151111A,RADIOCOMS SYSTEMS LIMITED=====,OP/I005009,1,"4,917.00",RADIO,21/11/11,"4,927.00"
151111A,RADIOCOMS SYSTEMS LIMITED=====,OP/I005009,2,10.00,RADIO,21/11/11,
161111C,ASSETCO EMERGENCY LTD=========,OP/I040683,1,"14,920.05",VEHICLES NWFT,21/11/11,"14,920.05"
161111C,ASSETCO EMERGENCY LTD=========,OP/I040684,1,"73,677.75",MODIFICATIONS,21/11/11,"73,677.75"
161111C,ASSETCO EMERGENCY LTD=========,OP/I040687,1,"78,512.07",MODIFICATIONS,21/11/11,"78,512.07"
111111C,SPECIALIST COMPUTER CENTRES===,OP/L408872,1,"2,500.52",ACQUISITIONS,21/11/11,"2,500.52"
161111C,KINGSTON UNIVERSITY===========,S438629,1,"1,367.00",TRAINING & CONFERENCES,21/11/11,"4,100.00"
161111C,KINGSTON UNIVERSITY===========,S438629,2,"2,733.00",TRAINING & CONFERENCES,21/11/11,
161111G,BRITISH TELECOM===============,VP1178070M17101XR,1,"4,162.94",CALL CHARGES,21/11/11,"43,436.72"
161111G,BRITISH TELECOM===============,VP1178070M17101XR,2,"39,273.78",TELECOMMUNICATIONS,21/11/11,
139417,MR DAVID MYHILL===============,7352*,1,990.00,COUNSELS FEES,22/11/11,990.00
139417,THOMPSON SOLICITORS===========,7783,1,"20,000.00",CLAIMANT COSTS AGREED,22/11/11,"20,000.00"
211111A,*PRINCIPAL CATERING CONSULTNTS,045298,1,400.80,REFRESHMENTS,24/11/11,988.80
211111A,*PRINCIPAL CATERING CONSULTNTS,045298,2,588.00,REFRESHMENTS,24/11/11,
211111C,*PRINCIPAL CATERING CONSULTNTS,045573,1,32.40,REFRESHMENTS,24/11/11,546.00
211111C,*PRINCIPAL CATERING CONSULTNTS,045573,2,93.60,REFRESHMENTS,24/11/11,
211111C,*PRINCIPAL CATERING CONSULTNTS,045573,3,420.00,REFRESHMENTS,24/11/11,
211111C,*PRINCIPAL CATERING CONSULTNTS,045579,1,"1,056.00",REFRESHMENTS,24/11/11,"1,056.00"
221111C,*APTCO========================,101258,1,"1,500.00",OPERATIONAL EQUIP-PURCHASE,24/11/11,"1,500.00"
221111F,ARVAL PHH=====================,1017232567,1,220.81,FUEL,24/11/11,"25,767.94"
221111F,ARVAL PHH=====================,1017232567,2,204.96,FUEL,24/11/11,
221111F,ARVAL PHH=====================,1017232567,3,122.50,FUEL,24/11/11,
221111F,ARVAL PHH=====================,1017232567,4,274.45,FUEL,24/11/11,
221111F,ARVAL PHH=====================,1017232567,5,379.44,FUEL,24/11/11,
221111F,ARVAL PHH=====================,1017232567,6,98.45,FUEL,24/11/11,
221111F,ARVAL PHH=====================,1017232567,7,126.39,FUEL,24/11/11,
221111F,ARVAL PHH=====================,1017232567,8,158.65,FUEL,24/11/11,
221111F,ARVAL PHH=====================,1017232567,9,169.28,FUEL,24/11/11,
221111F,ARVAL PHH=====================,1017232567,10,248.60,FUEL,24/11/11,
221111F,ARVAL PHH=====================,1017232567,11,161.25,FUEL,24/11/11,
221111F,ARVAL PHH=====================,1017232567,12,485.11,FUEL,24/11/11,
221111F,ARVAL PHH=====================,1017232567,13,289.07,FUEL,24/11/11,
221111F,ARVAL PHH=====================,1017232567,14,306.87,FUEL,24/11/11,
221111F,ARVAL PHH=====================,1017232567,15,134.94,FUEL,24/11/11,
221111F,ARVAL PHH=====================,1017232567,16,492.89,FUEL,24/11/11,
221111F,ARVAL PHH=====================,1017232567,17,261.73,FUEL,24/11/11,
221111F,ARVAL PHH=====================,1017232567,18,158.06,FUEL,24/11/11,
221111F,ARVAL PHH=====================,1017232567,19,145.99,FUEL,24/11/11,
221111F,ARVAL PHH=====================,1017232567,20,131.87,FUEL,24/11/11,
221111F,ARVAL PHH=====================,1017232567,21,157.17,FUEL,24/11/11,
221111F,ARVAL PHH=====================,1017232567,22,173.45,FUEL,24/11/11,
221111F,ARVAL PHH=====================,1017232567,23,265.49,FUEL,24/11/11,
221111F,ARVAL PHH=====================,1017232567,24,265.49,FUEL,24/11/11,
221111F,ARVAL PHH=====================,1017232567,25,226.84,FUEL,24/11/11,
221111F,ARVAL PHH=====================,1017232567,26,149.79,FUEL,24/11/11,
221111F,ARVAL PHH=====================,1017232567,27,235.63,FUEL,24/11/11,
221111F,ARVAL PHH=====================,1017232567,28,350.26,FUEL,24/11/11,
221111F,ARVAL PHH=====================,1017232567,29,261.44,FUEL,24/11/11,
221111F,ARVAL PHH=====================,1017232567,30,263.61,FUEL,24/11/11,
221111F,ARVAL PHH=====================,1017232567,31,464.54,FUEL,24/11/11,
221111F,ARVAL PHH=====================,1017232567,32,287.75,FUEL,24/11/11,
221111F,ARVAL PHH=====================,1017232567,33,259.64,FUEL,24/11/11,
221111F,ARVAL PHH=====================,1017232567,34,326.58,FUEL,24/11/11,
221111F,ARVAL PHH=====================,1017232567,35,525.35,FUEL,24/11/11,
221111F,ARVAL PHH=====================,1017232567,36,93.87,FUEL,24/11/11,
221111F,ARVAL PHH=====================,1017232567,37,265.61,FUEL,24/11/11,
221111F,ARVAL PHH=====================,1017232567,38,112.31,FUEL,24/11/11,
221111F,ARVAL PHH=====================,1017232567,39,110.06,FUEL,24/11/11,
221111F,ARVAL PHH=====================,1017232567,40,662.45,FUEL,24/11/11,
221111F,ARVAL PHH=====================,1017232567,41,187.75,FUEL,24/11/11,
221111F,ARVAL PHH=====================,1017232567,42,170.17,FUEL,24/11/11,
221111F,ARVAL PHH=====================,1017232567,43,141.55,FUEL,24/11/11,
221111F,ARVAL PHH=====================,1017232567,44,211.04,FUEL,24/11/11,
221111F,ARVAL PHH=====================,1017232567,45,187.25,FUEL,24/11/11,
221111F,ARVAL PHH=====================,1017232567,46,336.83,FUEL,24/11/11,
221111F,ARVAL PHH=====================,1017232567,47,219.99,FUEL,24/11/11,
221111F,ARVAL PHH=====================,1017232567,48,158.80,FUEL,24/11/11,
221111F,ARVAL PHH=====================,1017232567,49,162.01,FUEL,24/11/11,
221111F,ARVAL PHH=====================,1017232567,50,157.39,FUEL,24/11/11,
221111F,ARVAL PHH=====================,1017232567,51,98.75,FUEL,24/11/11,
221111F,ARVAL PHH=====================,1017232567,52,164.72,FUEL,24/11/11,
221111F,ARVAL PHH=====================,1017232567,53,823.07,FUEL,24/11/11,
221111F,ARVAL PHH=====================,1017232567,54,387.57,FUEL,24/11/11,
221111F,ARVAL PHH=====================,1017232567,55,202.19,FUEL,24/11/11,
221111F,ARVAL PHH=====================,1017232567,56,180.41,FUEL,24/11/11,
221111F,ARVAL PHH=====================,1017232567,57,235.78,FUEL,24/11/11,
221111F,ARVAL PHH=====================,1017232567,58,647.54,FUEL,24/11/11,
221111F,ARVAL PHH=====================,1017232567,59,118.21,FUEL,24/11/11,
221111F,ARVAL PHH=====================,1017232567,60,380.78,FUEL,24/11/11,
221111F,ARVAL PHH=====================,1017232567,61,177.27,FUEL,24/11/11,
221111F,ARVAL PHH=====================,1017232567,62,272.01,FUEL,24/11/11,
221111F,ARVAL PHH=====================,1017232567,63,233.24,FUEL,24/11/11,
221111F,ARVAL PHH=====================,1017232567,64,315.44,FUEL,24/11/11,
221111F,ARVAL PHH=====================,1017232567,65,178.88,FUEL,24/11/11,
221111F,ARVAL PHH=====================,1017232567,66,215.92,FUEL,24/11/11,
221111F,ARVAL PHH=====================,1017232567,67,224.31,FUEL,24/11/11,
221111F,ARVAL PHH=====================,1017232567,68,455.94,FUEL,24/11/11,
221111F,ARVAL PHH=====================,1017232567,69,101.02,FUEL,24/11/11,
221111F,ARVAL PHH=====================,1017232567,70,124.95,FUEL,24/11/11,
221111F,ARVAL PHH=====================,1017232567,71,25.18,FUEL,24/11/11,
221111F,ARVAL PHH=====================,1017232567,72,114.30,FUEL,24/11/11,
221111F,ARVAL PHH=====================,1017232567,73,135.45,FUEL,24/11/11,
221111F,ARVAL PHH=====================,1017232567,74,256.99,FUEL,24/11/11,
221111F,ARVAL PHH=====================,1017232567,75,504.22,FUEL,24/11/11,
221111F,ARVAL PHH=====================,1017232567,76,92.37,FUEL,24/11/11,
221111F,ARVAL PHH=====================,1017232567,77,222.68,FUEL,24/11/11,
221111F,ARVAL PHH=====================,1017232567,78,79.30,FUEL,24/11/11,
221111F,ARVAL PHH=====================,1017232567,79,59.07,FUEL,24/11/11,
221111F,ARVAL PHH=====================,1017232567,80,97.11,FUEL,24/11/11,
221111F,ARVAL PHH=====================,1017232567,81,236.03,FUEL,24/11/11,
221111F,ARVAL PHH=====================,1017232567,82,189.87,FUEL,24/11/11,
221111F,ARVAL PHH=====================,1017232567,83,240.43,FUEL,24/11/11,
221111F,ARVAL PHH=====================,1017232567,84,337.74,FUEL,24/11/11,
221111F,ARVAL PHH=====================,1017232567,85,74.26,FUEL,24/11/11,
221111F,ARVAL PHH=====================,1017232567,86,157.61,FUEL,24/11/11,
221111F,ARVAL PHH=====================,1017232567,87,58.97,FUEL,24/11/11,
221111F,ARVAL PHH=====================,1017232567,88,610.45,FUEL,24/11/11,
221111F,ARVAL PHH=====================,1017232567,89,580.78,FUEL,24/11/11,
221111F,ARVAL PHH=====================,1017232567,90,143.99,FUEL,24/11/11,
221111F,ARVAL PHH=====================,1017232567,91,63.33,FUEL,24/11/11,
221111F,ARVAL PHH=====================,1017232567,92,131.34,FUEL,24/11/11,
221111F,ARVAL PHH=====================,1017232567,93,180.08,FUEL,24/11/11,
221111F,ARVAL PHH=====================,1017232567,94,145.52,FUEL,24/11/11,
221111F,ARVAL PHH=====================,1017232567,95,134.45,FUEL,24/11/11,
221111F,ARVAL PHH=====================,1017232567,96,124.07,FUEL,24/11/11,
221111F,ARVAL PHH=====================,1017232567,97,62.50,FUEL,24/11/11,
221111F,ARVAL PHH=====================,1017232567,98,299.09,FUEL,24/11/11,
221111F,ARVAL PHH=====================,1017232567,99,200.41,FUEL,24/11/11,
221111F,ARVAL PHH=====================,1017232567,100,87.12,FUEL,24/11/11,
221111F,ARVAL PHH=====================,1017232567,101,74.33,FUEL,24/11/11,
221111F,ARVAL PHH=====================,1017232567,102,10.10,FUEL,24/11/11,
221111F,ARVAL PHH=====================,1017232567,103,63.42,FUEL,24/11/11,
221111F,ARVAL PHH=====================,1017232567,104,55.01,FUEL,24/11/11,
221111F,ARVAL PHH=====================,1017232567,105,201.70,FUEL,24/11/11,
221111F,ARVAL PHH=====================,1017232567,106,199.14,FUEL,24/11/11,
221111F,ARVAL PHH=====================,1017232567,107,52.85,FUEL,24/11/11,
221111F,ARVAL PHH=====================,1017232567,108,58.87,FUEL,24/11/11,
221111F,ARVAL PHH=====================,1017232567,109,50.72,FUEL,24/11/11,
221111F,ARVAL PHH=====================,1017232567,110,660.28,FUEL,24/11/11,
221111F,ARVAL PHH=====================,1017232567,111,20.91,FUEL,24/11/11,
221111F,ARVAL PHH=====================,1017232567,112,696.30,FUEL,24/11/11,
221111F,ARVAL PHH=====================,1017232567,113,70.87,FUEL,24/11/11,
221111F,ARVAL PHH=====================,1017232567,114,33.28,FUEL,24/11/11,
221111F,ARVAL PHH=====================,1017232567,115,376.03,FUEL,24/11/11,
139416,BOURNE CONSTRUCTION COMPANY,11/337,1,825.00,STRATEGIC (NON CYCLICAL),24/11/11,"1,745.00"
139416,BOURNE CONSTRUCTION COMPANY,11/337,2,920.00,STRATEGIC (NON CYCLICAL),24/11/11,
139416,BOURNE CONSTRUCTION COMPANY,11/338,1,450.00,STRATEGIC (NON CYCLICAL),24/11/11,790.00
139416,BOURNE CONSTRUCTION COMPANY,11/338,2,340.00,STRATEGIC (NON CYCLICAL),24/11/11,
139416,BOURNE CONSTRUCTION COMPANY,11/339,1,520.00,STRATEGIC (NON CYCLICAL),24/11/11,880.00
139416,BOURNE CONSTRUCTION COMPANY,11/339,2,360.00,STRATEGIC (NON CYCLICAL),24/11/11,
139416,BOURNE CONSTRUCTION COMPANY,11/341,1,800.00,STRATEGIC (NON CYCLICAL),24/11/11,"1,775.00"
139416,BOURNE CONSTRUCTION COMPANY,11/341,2,975.00,STRATEGIC (NON CYCLICAL),24/11/11,
139416,BOURNE CONSTRUCTION COMPANY,11/342,1,600.00,STRATEGIC (NON CYCLICAL),24/11/11,"1,450.00"
139416,BOURNE CONSTRUCTION COMPANY,11/342,2,850.00,STRATEGIC (NON CYCLICAL),24/11/11,
211111C,MAXAURA LTD===================,111045,1,333.00,REPAIR & MAINTENANCE,24/11/11,"7,558.38"
211111C,MAXAURA LTD===================,111045,2,"5,271.38",REPAIR & MAINTENANCE,24/11/11,
211111C,MAXAURA LTD===================,111045,3,"1,954.00",REPAIR & MAINTENANCE,24/11/11,
111111G,BEAUMONT LTD.,1190,1,"7,648.39",STRATEGIC (CYCLICAL),24/11/11,"7,648.39"
211111C,ABARIS INTERNATIONAL LIMITED==,12158,1,397.21,OPERATIONAL EQUIP-PURCHASE,24/11/11,756.03
211111C,ABARIS INTERNATIONAL LIMITED==,12158,2,56.71,OPERATIONAL EQUIP-PURCHASE,24/11/11,
211111C,ABARIS INTERNATIONAL LIMITED==,12158,3,164.32,OPERATIONAL EQUIP-PURCHASE,24/11/11,
211111C,ABARIS INTERNATIONAL LIMITED==,12158,4,129.29,OPERATIONAL EQUIP-PURCHASE,24/11/11,
211111C,ABARIS INTERNATIONAL LIMITED==,12158,5,8.50,OPERATIONAL EQUIP-PURCHASE,24/11/11,
139413,B NOKES CONTRACTS LTD,1309,1,"1,680.00",STRATEGIC (NON CYCLICAL),24/11/11,"5,748.75"
139413,B NOKES CONTRACTS LTD,1309,2,"4,068.75",STRATEGIC (NON CYCLICAL),24/11/11,
139413,B NOKES CONTRACTS LTD,1310,1,"1,680.00",STRATEGIC (NON CYCLICAL),24/11/11,"2,717.00"
139413,B NOKES CONTRACTS LTD,1310,2,"1,037.00",STRATEGIC (NON CYCLICAL),24/11/11,
139413,B NOKES CONTRACTS LTD,1311,1,"1,470.00",STRATEGIC (NON CYCLICAL),24/11/11,"3,637.75"
139413,B NOKES CONTRACTS LTD,1311,2,"2,167.75",STRATEGIC (NON CYCLICAL),24/11/11,
139416,B NOKES CONTRACTS LTD,1312,1,"1,060.00",DAY TO DAY MINOR IMPS,24/11/11,"1,440.00"
139416,B NOKES CONTRACTS LTD,1312,2,380.00,DAY TO DAY MINOR IMPS,24/11/11,
181111A,RESPIREX======================,136391,1,966.00,PROTECTIVE EQUIPT - PARTS,24/11/11,966.00
211111C,GP CONTRACTS==================,14036,1,550.00,TACTICAL DAY TO DAY,24/11/11,550.00
211111C,GP CONTRACTS==================,14050,1,"1,210.00",TACTICAL DAY TO DAY,24/11/11,"1,210.00"
171111C,BOWLES OUTDOOR CENTRE LTD=====,1695,1,"8,948.22",TRAINING & CONFERENCES,24/11/11,"8,948.22"
221111A,CENTRAL LEARNING SOLUTIONS====,1728,1,950.00,TRAINING & CONFERENCES,24/11/11,950.00
211111C,ARKAS LIMITED=================,21373,1,"1,386.00",STRATEGIC (NON CYCLICAL),24/11/11,"1,386.00"
211111C,ARKAS LIMITED=================,21375,1,"1,800.00",STRATEGIC (NON CYCLICAL),24/11/11,"1,800.00"
211111C,ARKAS LIMITED=================,21378,1,"4,788.00",STRATEGIC (NON CYCLICAL),24/11/11,"4,788.00"
800005245,ADECCO UK LIMITED=============,25801187,1,"1,240.00",FRS STAFF AGENCY,24/11/11,"1,240.00"
800005246,ADECCO UK LIMITED=============,25801188,1,930.00,FRS STAFF AGENCY,24/11/11,930.00
800005247,ADECCO UK LIMITED=============,25801189,1,"1,550.00",FRS STAFF AGENCY,24/11/11,"1,550.00"
800005248,ADECCO UK LIMITED=============,25801190,1,"1,550.00",FRS STAFF AGENCY,24/11/11,"1,550.00"
800005249,ADECCO UK LIMITED=============,25801191,1,"1,860.00",FRS STAFF AGENCY,24/11/11,"1,860.00"
800005250,ADECCO UK LIMITED=============,25801192,1,"1,240.00",FRS STAFF AGENCY,24/11/11,"1,240.00"
800005251,ADECCO UK LIMITED=============,25801193,1,"1,550.00",FRS STAFF AGENCY,24/11/11,"1,550.00"
800005252,ADECCO UK LIMITED=============,25801194,1,"1,550.00",FRS STAFF AGENCY,24/11/11,"1,550.00"
800005253,ADECCO UK LIMITED=============,25801195,1,"1,240.00",FRS STAFF AGENCY,24/11/11,"1,240.00"
800005254,ADECCO UK LIMITED=============,25801196,1,"1,550.00",FRS STAFF AGENCY,24/11/11,"1,550.00"
800005255,ADECCO UK LIMITED=============,25801197,1,"1,550.00",FRS STAFF AGENCY,24/11/11,"1,550.00"
800005256,ADECCO UK LIMITED=============,25801198,1,"1,550.00",FRS STAFF AGENCY,24/11/11,"1,550.00"
800005257,ADECCO UK LIMITED=============,25801199,1,"1,240.00",FRS STAFF AGENCY,24/11/11,"1,240.00"
800005258,ADECCO UK LIMITED=============,25801200,1,"1,550.00",FRS STAFF AGENCY,24/11/11,"1,550.00"
800005259,ADECCO UK LIMITED=============,25801201,1,"1,550.00",FRS STAFF AGENCY,24/11/11,"1,550.00"
800005260,ADECCO UK LIMITED=============,25801202,1,"1,240.00",FRS STAFF AGENCY,24/11/11,"1,240.00"
800005261,ADECCO UK LIMITED=============,25801203,1,"1,240.00",FRS STAFF AGENCY,24/11/11,"1,240.00"
800005262,ADECCO UK LIMITED=============,25801204,1,"1,240.00",FRS STAFF AGENCY,24/11/11,"1,240.00"
800005263,ADECCO UK LIMITED=============,25801205,1,930.00,FRS STAFF AGENCY,24/11/11,930.00
800005264,ADECCO UK LIMITED=============,25801206,1,"1,240.00",FRS STAFF AGENCY,24/11/11,"1,240.00"
800005265,ADECCO UK LIMITED=============,25801207,1,"1,550.00",FRS STAFF AGENCY,24/11/11,"1,550.00"
800005266,ADECCO UK LIMITED=============,25801208,1,"1,550.00",FRS STAFF AGENCY,24/11/11,"1,550.00"
800005267,ADECCO UK LIMITED=============,25801209,1,"1,240.00",FRS STAFF AGENCY,24/11/11,"1,240.00"
800005268,ADECCO UK LIMITED=============,25801210,1,"1,240.00",FRS STAFF AGENCY,24/11/11,"1,240.00"
800005269,ADECCO UK LIMITED=============,25801211,1,"1,550.00",FRS STAFF AGENCY,24/11/11,"1,550.00"
800005270,ADECCO UK LIMITED=============,25801212,1,"1,550.00",FRS STAFF AGENCY,24/11/11,"1,550.00"
800005271,ADECCO UK LIMITED=============,25801213,1,"1,550.00",FRS STAFF AGENCY,24/11/11,"1,550.00"
800005272,ADECCO UK LIMITED=============,25801214,1,930.00,FRS STAFF AGENCY,24/11/11,930.00
800005293,ADECCO UK LIMITED=============,25801235,1,"1,550.00",FRS STAFF AGENCY,24/11/11,"1,550.00"
800005294,ADECCO UK LIMITED=============,25801236,1,"1,550.00",FRS STAFF AGENCY,24/11/11,"1,550.00"
800005295,ADECCO UK LIMITED=============,25801237,1,"1,550.00",FRS STAFF AGENCY,24/11/11,"1,550.00"
800005296,ADECCO UK LIMITED=============,25801238,1,"1,550.00",FRS STAFF AGENCY,24/11/11,"1,550.00"
800005297,ADECCO UK LIMITED=============,25801239,1,"1,550.00",FRS STAFF AGENCY,24/11/11,"1,550.00"
800005298,ADECCO UK LIMITED=============,25801240,1,"1,550.00",FRS STAFF AGENCY,24/11/11,"1,550.00"
800005299,ADECCO UK LIMITED=============,25801241,1,"1,550.00",FRS STAFF AGENCY,24/11/11,"1,550.00"
800005300,ADECCO UK LIMITED=============,25801242,1,"1,550.00",FRS STAFF AGENCY,24/11/11,"1,550.00"
800005301,ADECCO UK LIMITED=============,25801243,1,"1,550.00",FRS STAFF AGENCY,24/11/11,"1,550.00"
800005302,ADECCO UK LIMITED=============,25801244,1,"1,550.00",FRS STAFF AGENCY,24/11/11,"1,550.00"
800005303,ADECCO UK LIMITED=============,25801245,1,"1,550.00",FRS STAFF AGENCY,24/11/11,"1,550.00"
800005304,ADECCO UK LIMITED=============,25801246,1,"1,550.00",FRS STAFF AGENCY,24/11/11,"1,550.00"
800005305,ADECCO UK LIMITED=============,25801247,1,"1,550.00",FRS STAFF AGENCY,24/11/11,"1,550.00"
800005306,ADECCO UK LIMITED=============,25801248,1,"1,550.00",FRS STAFF AGENCY,24/11/11,"1,550.00"
800005307,ADECCO UK LIMITED=============,25801249,1,"1,550.00",FRS STAFF AGENCY,24/11/11,"1,550.00"
800005308,ADECCO UK LIMITED=============,25801250,1,"1,550.00",FRS STAFF AGENCY,24/11/11,"1,550.00"
800005309,ADECCO UK LIMITED=============,25801251,1,"1,550.00",FRS STAFF AGENCY,24/11/11,"1,550.00"
800005310,ADECCO UK LIMITED=============,25801252,1,"1,550.00",FRS STAFF AGENCY,24/11/11,"1,550.00"
800005311,ADECCO UK LIMITED=============,25801253,1,"1,240.00",FRS STAFF AGENCY,24/11/11,"1,240.00"
800005312,ADECCO UK LIMITED=============,25801254,1,"1,240.00",FRS STAFF AGENCY,24/11/11,"1,240.00"
800005313,ADECCO UK LIMITED=============,25801255,1,"1,550.00",FRS STAFF AGENCY,24/11/11,"1,550.00"
800005314,ADECCO UK LIMITED=============,25801256,1,"1,550.00",FRS STAFF AGENCY,24/11/11,"1,550.00"
800005315,ADECCO UK LIMITED=============,25801257,1,"1,550.00",FRS STAFF AGENCY,24/11/11,"1,550.00"
800005316,ADECCO UK LIMITED=============,25801258,1,"1,240.00",FRS STAFF AGENCY,24/11/11,"1,240.00"
800005317,ADECCO UK LIMITED=============,25801259,1,"1,550.00",FRS STAFF AGENCY,24/11/11,"1,550.00"
800005318,ADECCO UK LIMITED=============,25801260,1,"1,550.00",FRS STAFF AGENCY,24/11/11,"1,550.00"
800005319,ADECCO UK LIMITED=============,25801261,1,"1,550.00",FRS STAFF AGENCY,24/11/11,"1,550.00"
800005320,ADECCO UK LIMITED=============,25801262,1,"1,550.00",FRS STAFF AGENCY,24/11/11,"1,550.00"
800005321,ADECCO UK LIMITED=============,25801263,1,"1,550.00",FRS STAFF AGENCY,24/11/11,"1,550.00"
800005520,ADECCO UK LIMITED=============,25804508,1,946.75,FRS STAFF AGENCY,24/11/11,946.75
800005666,ADECCO UK LIMITED=============,25811950,1,680.32,FRS STAFF AGENCY,24/11/11,680.32
800005669,ADECCO UK LIMITED=============,25811953,1,759.15,FRS STAFF AGENCY,24/11/11,759.15
800005671,ADECCO UK LIMITED=============,25811955,1,946.75,FRS STAFF AGENCY,24/11/11,946.75
800005675,ADECCO UK LIMITED=============,25811959,1,"2,463.75",FRS STAFF AGENCY,24/11/11,"2,463.75"
800005676,ADECCO UK LIMITED=============,25811960,1,741.60,FRS STAFF AGENCY,24/11/11,741.60
800005680,ADECCO UK LIMITED=============,25811964,1,"1,241.92",FRS STAFF AGENCY,24/11/11,"1,241.92"
800005681,ADECCO UK LIMITED=============,25811965,1,602.00,FRS STAFF AGENCY,24/11/11,602.00
800005682,ADECCO UK LIMITED=============,25811966,1,"1,426.25",FRS STAFF AGENCY,24/11/11,"1,426.25"
800005683,ADECCO UK LIMITED=============,25811967,1,744.10,FRS STAFF AGENCY,24/11/11,744.10
800005685,ADECCO UK LIMITED=============,25811969,1,578.20,FRS STAFF AGENCY,24/11/11,578.20
800005686,ADECCO UK LIMITED=============,25811970,1,"1,273.11",FRS STAFF AGENCY,24/11/11,"1,273.11"
800005687,ADECCO UK LIMITED=============,25811971,1,592.44,FRS STAFF AGENCY,24/11/11,592.44
800005688,ADECCO UK LIMITED=============,25811972,1,530.95,FRS STAFF AGENCY,24/11/11,530.95
800005689,ADECCO UK LIMITED=============,25811973,1,595.28,FRS STAFF AGENCY,24/11/11,595.28
800005690,ADECCO UK LIMITED=============,25811974,1,507.50,FRS STAFF AGENCY,24/11/11,507.50
800005700,ADECCO UK LIMITED=============,25811984,1,"1,434.65",FRS STAFF AGENCY,24/11/11,"1,434.65"
800005703,ADECCO UK LIMITED=============,25811988,1,530.95,FRS STAFF AGENCY,24/11/11,530.95
800005717,ADECCO UK LIMITED=============,25812002,1,680.32,FRS STAFF AGENCY,24/11/11,680.32
800005718,ADECCO UK LIMITED=============,25813845,1,675.20,FRS STAFF AGENCY,24/11/11,675.20
800005720,ADECCO UK LIMITED=============,25815466,1,"1,909.45",FRS STAFF AGENCY,24/11/11,"1,909.45"
800005721,ADECCO UK LIMITED=============,25815467,1,"1,909.45",FRS STAFF AGENCY,24/11/11,"1,909.45"
800005722,ADECCO UK LIMITED=============,25815468,1,"1,570.95",FRS STAFF AGENCY,24/11/11,"1,570.95"
800005723,ADECCO UK LIMITED=============,25815469,1,"1,614.59",FRS STAFF AGENCY,24/11/11,"1,614.59"
800005724,ADECCO UK LIMITED=============,25815470,1,896.51,FRS STAFF AGENCY,24/11/11,896.51
800005729,ADECCO UK LIMITED=============,25815475,1,"1,373.93",FRS STAFF AGENCY,24/11/11,"1,373.93"
800005732,ADECCO UK LIMITED=============,25815478,1,650.72,FRS STAFF AGENCY,24/11/11,650.72
800005737,ADECCO UK LIMITED=============,25815483,1,"1,258.89",FRS STAFF AGENCY,24/11/11,"1,258.89"
800005739,ADECCO UK LIMITED=============,25815485,1,"1,008.83",FRS STAFF AGENCY,24/11/11,"1,008.83"
800005743,ADECCO UK LIMITED=============,25815489,1,850.00,FRS STAFF AGENCY,24/11/11,850.00
139398,PSR LIGHTING & SIGNS LTD,299,1,"8,500.00",DEVELOPMENT EXP - CONTRACTORS,24/11/11,"8,500.00"
139398,PSR LIGHTING & SIGNS LTD,300,1,619.92,DAY TO DAY MINOR IMPS,24/11/11,619.92
139398,PSR LIGHTING & SIGNS LTD,302,1,400.00,DAY TO DAY MINOR IMPS,24/11/11,"1,018.00"
139398,PSR LIGHTING & SIGNS LTD,302,2,400.00,DAY TO DAY MINOR IMPS,24/11/11,
139398,PSR LIGHTING & SIGNS LTD,302,3,218.00,DAY TO DAY MINOR IMPS,24/11/11,
139398,PSR LIGHTING & SIGNS LTD,303,1,"1,520.00",DEVELOPMENT EXP - CONTRACTORS,24/11/11,"1,520.00"
141111C,HUNTERS CONTRACTS LIMITED,336483,1,579.00,OFFICE FURNITURE,24/11/11,579.00
139417,BURGES SALMON=================,360192,1,"17,058.42",PROFESSIONAL SERVICES,24/11/11,"17,058.42"
211111C,SKILLTRACK,395,1,513.00,TRAINING & CONFERENCES,24/11/11,513.00
171111C,BYWATERS LTD=========,416552,1,230.67,REFUSE COLLECTION,24/11/11,"21,970.92"
171111C,BYWATERS LTD=========,416552,2,348.25,REFUSE COLLECTION,24/11/11,
171111C,BYWATERS LTD=========,416552,3,151.86,REFUSE COLLECTION,24/11/11,
171111C,BYWATERS LTD=========,416552,4,250.81,REFUSE COLLECTION,24/11/11,
171111C,BYWATERS LTD=========,416552,5,95.99,REFUSE COLLECTION,24/11/11,
171111C,BYWATERS LTD=========,416552,6,151.86,REFUSE COLLECTION,24/11/11,
171111C,BYWATERS LTD=========,416552,7,95.99,REFUSE COLLECTION,24/11/11,
171111C,BYWATERS LTD=========,416552,8,189.61,REFUSE COLLECTION,24/11/11,
171111C,BYWATERS LTD=========,416552,9,189.61,REFUSE COLLECTION,24/11/11,
171111C,BYWATERS LTD=========,416552,10,151.86,REFUSE COLLECTION,24/11/11,
171111C,BYWATERS LTD=========,416552,11,95.99,REFUSE COLLECTION,24/11/11,
171111C,BYWATERS LTD=========,416552,12,95.99,REFUSE COLLECTION,24/11/11,
171111C,BYWATERS LTD=========,416552,13,133.74,REFUSE COLLECTION,24/11/11,
171111C,BYWATERS LTD=========,416552,14,182.46,REFUSE COLLECTION,24/11/11,
171111C,BYWATERS LTD=========,416552,15,348.25,REFUSE COLLECTION,24/11/11,
171111C,BYWATERS LTD=========,416552,16,151.86,REFUSE COLLECTION,24/11/11,
171111C,BYWATERS LTD=========,416552,17,348.25,REFUSE COLLECTION,24/11/11,
171111C,BYWATERS LTD=========,416552,18,95.99,REFUSE COLLECTION,24/11/11,
171111C,BYWATERS LTD=========,416552,19,348.25,REFUSE COLLECTION,24/11/11,
171111C,BYWATERS LTD=========,416552,20,348.25,REFUSE COLLECTION,24/11/11,
171111C,BYWATERS LTD=========,416552,21,416.60,REFUSE COLLECTION,24/11/11,
171111C,BYWATERS LTD=========,416552,22,348.25,REFUSE COLLECTION,24/11/11,
171111C,BYWATERS LTD=========,416552,23,95.99,REFUSE COLLECTION,24/11/11,
171111C,BYWATERS LTD=========,416552,24,95.99,REFUSE COLLECTION,24/11/11,
171111C,BYWATERS LTD=========,416552,25,95.99,REFUSE COLLECTION,24/11/11,
171111C,BYWATERS LTD=========,416552,26,95.99,REFUSE COLLECTION,24/11/11,
171111C,BYWATERS LTD=========,416552,27,151.86,REFUSE COLLECTION,24/11/11,
171111C,BYWATERS LTD=========,416552,28,95.99,REFUSE COLLECTION,24/11/11,
171111C,BYWATERS LTD=========,416552,29,348.25,REFUSE COLLECTION,24/11/11,
171111C,BYWATERS LTD=========,416552,30,287.05,REFUSE COLLECTION,24/11/11,
171111C,BYWATERS LTD=========,416552,31,95.99,REFUSE COLLECTION,24/11/11,
171111C,BYWATERS LTD=========,416552,32,151.86,REFUSE COLLECTION,24/11/11,
171111C,BYWATERS LTD=========,416552,33,348.25,REFUSE COLLECTION,24/11/11,
171111C,BYWATERS LTD=========,416552,34,151.86,REFUSE COLLECTION,24/11/11,
171111C,BYWATERS LTD=========,416552,35,151.86,REFUSE COLLECTION,24/11/11,
171111C,BYWATERS LTD=========,416552,36,181.96,REFUSE COLLECTION,24/11/11,
171111C,BYWATERS LTD=========,416552,37,151.86,REFUSE COLLECTION,24/11/11,
171111C,BYWATERS LTD=========,416552,38,189.61,REFUSE COLLECTION,24/11/11,
171111C,BYWATERS LTD=========,416552,39,133.74,REFUSE COLLECTION,24/11/11,
171111C,BYWATERS LTD=========,416552,40,95.99,REFUSE COLLECTION,24/11/11,
171111C,BYWATERS LTD=========,416552,41,287.05,REFUSE COLLECTION,24/11/11,
171111C,BYWATERS LTD=========,416552,42,287.05,REFUSE COLLECTION,24/11/11,
171111C,BYWATERS LTD=========,416552,43,151.86,REFUSE COLLECTION,24/11/11,
171111C,BYWATERS LTD=========,416552,44,95.99,REFUSE COLLECTION,24/11/11,
171111C,BYWATERS LTD=========,416552,45,95.99,REFUSE COLLECTION,24/11/11,
171111C,BYWATERS LTD=========,416552,46,360.43,REFUSE COLLECTION,24/11/11,
171111C,BYWATERS LTD=========,416552,47,287.05,REFUSE COLLECTION,24/11/11,
171111C,BYWATERS LTD=========,416552,48,151.86,REFUSE COLLECTION,24/11/11,
171111C,BYWATERS LTD=========,416552,49,95.99,REFUSE COLLECTION,24/11/11,
171111C,BYWATERS LTD=========,416552,50,95.99,REFUSE COLLECTION,24/11/11,
171111C,BYWATERS LTD=========,416552,51,151.86,REFUSE COLLECTION,24/11/11,
171111C,BYWATERS LTD=========,416552,52,348.25,REFUSE COLLECTION,24/11/11,
171111C,BYWATERS LTD=========,416552,53,95.99,REFUSE COLLECTION,24/11/11,
171111C,BYWATERS LTD=========,416552,54,95.99,REFUSE COLLECTION,24/11/11,
171111C,BYWATERS LTD=========,416552,55,151.86,REFUSE COLLECTION,24/11/11,
171111C,BYWATERS LTD=========,416552,56,95.99,REFUSE COLLECTION,24/11/11,
171111C,BYWATERS LTD=========,416552,57,133.74,REFUSE COLLECTION,24/11/11,
171111C,BYWATERS LTD=========,416552,58,95.99,REFUSE COLLECTION,24/11/11,
171111C,BYWATERS LTD=========,416552,59,189.61,REFUSE COLLECTION,24/11/11,
171111C,BYWATERS LTD=========,416552,60,95.99,REFUSE COLLECTION,24/11/11,
171111C,BYWATERS LTD=========,416552,61,348.25,REFUSE COLLECTION,24/11/11,
171111C,BYWATERS LTD=========,416552,62,151.86,REFUSE COLLECTION,24/11/11,
171111C,BYWATERS LTD=========,416552,63,151.86,REFUSE COLLECTION,24/11/11,
171111C,BYWATERS LTD=========,416552,64,95.99,REFUSE COLLECTION,24/11/11,
171111C,BYWATERS LTD=========,416552,65,348.25,REFUSE COLLECTION,24/11/11,
171111C,BYWATERS LTD=========,416552,66,95.99,REFUSE COLLECTION,24/11/11,
171111C,BYWATERS LTD=========,416552,67,348.25,REFUSE COLLECTION,24/11/11,
171111C,BYWATERS LTD=========,416552,68,95.99,REFUSE COLLECTION,24/11/11,
171111C,BYWATERS LTD=========,416552,69,151.86,REFUSE COLLECTION,24/11/11,
171111C,BYWATERS LTD=========,416552,70,151.86,REFUSE COLLECTION,24/11/11,
171111C,BYWATERS LTD=========,416552,71,151.86,REFUSE COLLECTION,24/11/11,
171111C,BYWATERS LTD=========,416552,72,151.86,REFUSE COLLECTION,24/11/11,
171111C,BYWATERS LTD=========,416552,73,95.99,REFUSE COLLECTION,24/11/11,
171111C,BYWATERS LTD=========,416552,74,348.25,REFUSE COLLECTION,24/11/11,
171111C,BYWATERS LTD=========,416552,75,95.99,REFUSE COLLECTION,24/11/11,
171111C,BYWATERS LTD=========,416552,76,151.86,REFUSE COLLECTION,24/11/11,
171111C,BYWATERS LTD=========,416552,77,151.86,REFUSE COLLECTION,24/11/11,
171111C,BYWATERS LTD=========,416552,78,151.86,REFUSE COLLECTION,24/11/11,
171111C,BYWATERS LTD=========,416552,79,133.74,REFUSE COLLECTION,24/11/11,
171111C,BYWATERS LTD=========,416552,80,95.99,REFUSE COLLECTION,24/11/11,
171111C,BYWATERS LTD=========,416552,81,95.99,REFUSE COLLECTION,24/11/11,
171111C,BYWATERS LTD=========,416552,82,151.86,REFUSE COLLECTION,24/11/11,
171111C,BYWATERS LTD=========,416552,83,95.99,REFUSE COLLECTION,24/11/11,
171111C,BYWATERS LTD=========,416552,84,348.25,REFUSE COLLECTION,24/11/11,
171111C,BYWATERS LTD=========,416552,85,348.25,REFUSE COLLECTION,24/11/11,
171111C,BYWATERS LTD=========,416552,86,151.86,REFUSE COLLECTION,24/11/11,
171111C,BYWATERS LTD=========,416552,87,95.99,REFUSE COLLECTION,24/11/11,
171111C,BYWATERS LTD=========,416552,88,118.44,REFUSE COLLECTION,24/11/11,
171111C,BYWATERS LTD=========,416552,89,151.86,REFUSE COLLECTION,24/11/11,
171111C,BYWATERS LTD=========,416552,90,95.99,REFUSE COLLECTION,24/11/11,
171111C,BYWATERS LTD=========,416552,91,660.20,REFUSE COLLECTION,24/11/11,
171111C,BYWATERS LTD=========,416552,92,95.99,REFUSE COLLECTION,24/11/11,
171111C,BYWATERS LTD=========,416552,93,95.99,REFUSE COLLECTION,24/11/11,
171111C,BYWATERS LTD=========,416552,94,348.25,REFUSE COLLECTION,24/11/11,
171111C,BYWATERS LTD=========,416552,95,95.99,REFUSE COLLECTION,24/11/11,
171111C,BYWATERS LTD=========,416552,96,151.86,REFUSE COLLECTION,24/11/11,
171111C,BYWATERS LTD=========,416552,97,151.86,REFUSE COLLECTION,24/11/11,
171111C,BYWATERS LTD=========,416552,98,348.25,REFUSE COLLECTION,24/11/11,
171111C,BYWATERS LTD=========,416552,99,144.71,REFUSE COLLECTION,24/11/11,
171111C,BYWATERS LTD=========,416552,100,"1,555.37",REFUSE COLLECTION,24/11/11,
171111C,BYWATERS LTD=========,416552,101,95.99,REFUSE COLLECTION,24/11/11,
171111C,BYWATERS LTD=========,416552,103,151.86,REFUSE COLLECTION,24/11/11,
171111C,BYWATERS LTD=========,416552,104,348.25,REFUSE COLLECTION,24/11/11,
171111C,BYWATERS LTD=========,416552,105,95.99,REFUSE COLLECTION,24/11/11,
171111C,BYWATERS LTD=========,416552,106,133.74,REFUSE COLLECTION,24/11/11,
171111C,BYWATERS LTD=========,416552,107,151.86,REFUSE COLLECTION,24/11/11,
171111C,BYWATERS LTD=========,416552,108,250.81,REFUSE COLLECTION,24/11/11,
171111C,BYWATERS LTD=========,416552,109,151.86,REFUSE COLLECTION,24/11/11,
171111C,BYWATERS LTD=========,416552,110,151.86,REFUSE COLLECTION,24/11/11,
171111C,BYWATERS LTD=========,416552,111,133.74,REFUSE COLLECTION,24/11/11,
171111C,BYWATERS LTD=========,416552,112,95.99,REFUSE COLLECTION,24/11/11,
171111C,BYWATERS LTD=========,416552,113,95.99,REFUSE COLLECTION,24/11/11,
171111C,BYWATERS LTD=========,416552,114,95.99,REFUSE COLLECTION,24/11/11,
171111C,BYWATERS LTD=========,416552,115,189.61,REFUSE COLLECTION,24/11/11,
171111C,R J HOLLAND LTD===============,4348,1,"2,125.00",STRATEGIC (NON CYCLICAL),24/11/11,"2,125.00"
181111C,SIEMENS ENTERPRISE COMM LTD===,549G6000821884,1,750.00,DEVELOPMENT EXP - CONTRACTORS,24/11/11,750.00
211111A,RIG SYSTEMS LTD===============,572,1,"1,575.00",TRAINING & CONFERENCES,24/11/11,"1,575.00"
139417,MISS SAIMA HANIF==============,64363*,1,"4,050.00",COUNSELS FEES,24/11/11,"4,050.00"
111111C,NISBETS=======================,6889610,1,529.99,CATERING EQUIPMENT,24/11/11,529.99
139417,M & M MEDICAL REPORTS,6903,1,600.00,DOCTORS/MEDICAL FEES,24/11/11,600.00
211111C,CYRIL SWEETT LTD,7007529,1,"2,920.00",STRATEGIC (NON CYCLICAL),24/11/11,"2,920.00"
701478,MR DAVID MYHILL===============,7352B,1,825.00,COUNSELS FEES,24/11/11,825.00
221111A,LANCASHIRE COMBINED FIRE AUTH=,8200000473,1,"9,995.00",TRAINING & CONFERENCES,24/11/11,"9,995.00"
181111C,CAPITAL CAPTURE LTD===========,8350,1,"2,700.00",MAINTENANCE & SUPPORT,24/11/11,"2,700.00"
221111A,AMEY MECHANICAL & ELECTRICAL==,90289413,1,"16,242.30",TACTICAL DAY TO DAY,24/11/11,"80,854.62"
221111A,AMEY MECHANICAL & ELECTRICAL==,90289413,2,"3,659.62",TACTICAL DAY TO DAY,24/11/11,
221111A,AMEY MECHANICAL & ELECTRICAL==,90289413,3,"7,012.05",TACTICAL DAY TO DAY,24/11/11,
221111A,AMEY MECHANICAL & ELECTRICAL==,90289413,4,"36,694.87",STRATEGIC (CYCLICAL),24/11/11,
221111A,AMEY MECHANICAL & ELECTRICAL==,90289413,5,"12,503.21",STRATEGIC (CYCLICAL),24/11/11,
221111A,AMEY MECHANICAL & ELECTRICAL==,90289413,6,"1,563.89",STRATEGIC (CYCLICAL),24/11/11,
221111A,AMEY MECHANICAL & ELECTRICAL==,90289413,7,"1,101.14",STRATEGIC (CYCLICAL),24/11/11,
221111A,AMEY MECHANICAL & ELECTRICAL==,90289413,8,247.60,STRATEGIC (CYCLICAL),24/11/11,
221111A,AMEY MECHANICAL & ELECTRICAL==,90289413,9,"1,829.94",TACTICAL DAY TO DAY,24/11/11,
221111A,AMEY MECHANICAL & ELECTRICAL==,90289415/90292127,1,"1,508.51",STRATEGIC (CYCLICAL),24/11/11,"3,347.16"
221111A,AMEY MECHANICAL & ELECTRICAL==,90289415/90292127,2,724.78,STRATEGIC (CYCLICAL),24/11/11,
221111A,AMEY MECHANICAL & ELECTRICAL==,90289415/90292127,3,777.99,TACTICAL DAY TO DAY,24/11/11,
221111A,AMEY MECHANICAL & ELECTRICAL==,90289415/90292127,4,335.88,TACTICAL DAY TO DAY,24/11/11,
211111C,AMEY MECHANICAL & ELECTRICAL==,90290964,1,"5,000.00",STRATEGIC (NON CYCLICAL),24/11/11,"17,815.75"
211111C,AMEY MECHANICAL & ELECTRICAL==,90290964,2,"12,815.75",STRATEGIC (NON CYCLICAL),24/11/11,
181111A,DRAEGER SAFETY UK LIMITED=====,90354590,1,"1,420.00",PROTECTIVE EQUIPT - PARTS,24/11/11,"1,420.00"
181111A,DRAEGER SAFETY UK LIMITED=====,90354623,1,54.40,PROTECTIVE EQUIPT - PARTS,24/11/11,665.70
181111A,DRAEGER SAFETY UK LIMITED=====,90354623,2,22.80,PROTECTIVE EQUIPT - PARTS,24/11/11,
181111A,DRAEGER SAFETY UK LIMITED=====,90354623,3,588.50,PROTECTIVE EQUIPT - PARTS,24/11/11,
181111A,DRAEGER SAFETY UK LIMITED=====,90354711,1,760.00,PROTECTIVE EQUIPT - PARTS,24/11/11,760.00
211111C,LINCOLNSHIRE COUNTY COUNCIL===,90672058 / 90672066,1,"30,616.13",TRAINING & CONFERENCES,24/11/11,"34,501.13"
211111C,LINCOLNSHIRE COUNTY COUNCIL===,90672058 / 90672066,2,"3,885.00",TRAINING & CONFERENCES,24/11/11,
211111C,NB REAL ESTATE LTD,92220715,1,"1,500.00",DEVELOPMENT EXP - CONTRACTORS,24/11/11,"1,500.00"
800005651,*NPS (SHOES) LTD,9564,1,29.45,CLOTHING,24/11/11,"2,334.95"
800005651,*NPS (SHOES) LTD,9564,2,29.45,CLOTHING,24/11/11,
800005651,*NPS (SHOES) LTD,9564,3,29.45,CLOTHING,24/11/11,
800005651,*NPS (SHOES) LTD,9564,4,29.45,CLOTHING,24/11/11,
800005651,*NPS (SHOES) LTD,9564,5,29.45,CLOTHING,24/11/11,
800005651,*NPS (SHOES) LTD,9564,6,29.45,CLOTHING,24/11/11,
800005651,*NPS (SHOES) LTD,9564,7,29.45,CLOTHING,24/11/11,
800005651,*NPS (SHOES) LTD,9564,8,29.45,CLOTHING,24/11/11,
800005651,*NPS (SHOES) LTD,9564,9,29.45,CLOTHING,24/11/11,
800005651,*NPS (SHOES) LTD,9564,10,29.45,CLOTHING,24/11/11,
800005651,*NPS (SHOES) LTD,9564,11,29.45,CLOTHING,24/11/11,
800005651,*NPS (SHOES) LTD,9564,12,29.45,CLOTHING,24/11/11,
800005651,*NPS (SHOES) LTD,9564,13,29.45,CLOTHING,24/11/11,
800005651,*NPS (SHOES) LTD,9564,14,29.45,CLOTHING,24/11/11,
800005651,*NPS (SHOES) LTD,9564,15,29.45,CLOTHING,24/11/11,
800005651,*NPS (SHOES) LTD,9564,16,29.45,CLOTHING,24/11/11,
800005651,*NPS (SHOES) LTD,9564,17,29.45,CLOTHING,24/11/11,
800005651,*NPS (SHOES) LTD,9564,18,29.45,CLOTHING,24/11/11,
800005651,*NPS (SHOES) LTD,9564,19,29.45,CLOTHING,24/11/11,
800005651,*NPS (SHOES) LTD,9564,20,29.45,CLOTHING,24/11/11,
800005651,*NPS (SHOES) LTD,9564,21,29.45,CLOTHING,24/11/11,
800005651,*NPS (SHOES) LTD,9564,22,29.45,CLOTHING,24/11/11,
800005651,*NPS (SHOES) LTD,9564,23,29.45,CLOTHING,24/11/11,
800005651,*NPS (SHOES) LTD,9564,24,29.45,CLOTHING,24/11/11,
800005651,*NPS (SHOES) LTD,9564,25,29.45,CLOTHING,24/11/11,
800005651,*NPS (SHOES) LTD,9564,26,29.45,CLOTHING,24/11/11,
800005651,*NPS (SHOES) LTD,9564,27,29.45,CLOTHING,24/11/11,
800005651,*NPS (SHOES) LTD,9564,28,29.45,CLOTHING,24/11/11,
800005651,*NPS (SHOES) LTD,9564,29,29.45,CLOTHING,24/11/11,
800005651,*NPS (SHOES) LTD,9564,30,29.45,CLOTHING,24/11/11,
800005651,*NPS (SHOES) LTD,9564,31,29.45,CLOTHING,24/11/11,
800005651,*NPS (SHOES) LTD,9564,32,29.45,CLOTHING,24/11/11,
800005651,*NPS (SHOES) LTD,9564,33,29.45,CLOTHING,24/11/11,
800005651,*NPS (SHOES) LTD,9564,34,29.45,CLOTHING,24/11/11,
800005651,*NPS (SHOES) LTD,9564,35,29.45,CLOTHING,24/11/11,
800005651,*NPS (SHOES) LTD,9564,36,29.45,CLOTHING,24/11/11,
800005651,*NPS (SHOES) LTD,9564,37,29.45,CLOTHING,24/11/11,
800005651,*NPS (SHOES) LTD,9564,38,29.45,CLOTHING,24/11/11,
800005651,*NPS (SHOES) LTD,9564,39,29.45,CLOTHING,24/11/11,
800005651,*NPS (SHOES) LTD,9564,40,29.45,CLOTHING,24/11/11,
800005651,*NPS (SHOES) LTD,9564,41,29.45,CLOTHING,24/11/11,
800005651,*NPS (SHOES) LTD,9564,42,29.45,CLOTHING,24/11/11,
800005651,*NPS (SHOES) LTD,9564,43,29.45,CLOTHING,24/11/11,
800005651,*NPS (SHOES) LTD,9564,44,29.45,CLOTHING,24/11/11,
800005651,*NPS (SHOES) LTD,9564,45,29.45,CLOTHING,24/11/11,
800005651,*NPS (SHOES) LTD,9564,46,29.45,CLOTHING,24/11/11,
800005651,*NPS (SHOES) LTD,9564,47,29.45,CLOTHING,24/11/11,
800005651,*NPS (SHOES) LTD,9564,48,29.45,CLOTHING,24/11/11,
800005651,*NPS (SHOES) LTD,9564,49,29.45,CLOTHING,24/11/11,
800005651,*NPS (SHOES) LTD,9564,50,29.45,CLOTHING,24/11/11,
800005651,*NPS (SHOES) LTD,9564,51,29.45,CLOTHING,24/11/11,
800005651,*NPS (SHOES) LTD,9564,52,29.45,CLOTHING,24/11/11,
800005651,*NPS (SHOES) LTD,9564,53,29.45,CLOTHING,24/11/11,
800005651,*NPS (SHOES) LTD,9564,54,29.45,CLOTHING,24/11/11,
800005651,*NPS (SHOES) LTD,9564,55,29.45,CLOTHING,24/11/11,
800005651,*NPS (SHOES) LTD,9564,56,29.45,CLOTHING,24/11/11,
800005651,*NPS (SHOES) LTD,9564,57,29.45,CLOTHING,24/11/11,
800005651,*NPS (SHOES) LTD,9564,58,29.45,CLOTHING,24/11/11,
800005651,*NPS (SHOES) LTD,9564,59,29.45,CLOTHING,24/11/11,
800005651,*NPS (SHOES) LTD,9564,60,29.45,CLOTHING,24/11/11,
800005651,*NPS (SHOES) LTD,9564,61,29.45,CLOTHING,24/11/11,
800005651,*NPS (SHOES) LTD,9564,62,29.45,CLOTHING,24/11/11,
800005651,*NPS (SHOES) LTD,9564,63,29.45,CLOTHING,24/11/11,
800005651,*NPS (SHOES) LTD,9564,64,29.45,CLOTHING,24/11/11,
800005651,*NPS (SHOES) LTD,9564,65,29.45,CLOTHING,24/11/11,
800005651,*NPS (SHOES) LTD,9564,66,30.05,CLOTHING,24/11/11,
800005651,*NPS (SHOES) LTD,9564,67,30.05,CLOTHING,24/11/11,
800005651,*NPS (SHOES) LTD,9564,68,30.05,CLOTHING,24/11/11,
800005651,*NPS (SHOES) LTD,9564,69,30.05,CLOTHING,24/11/11,
800005651,*NPS (SHOES) LTD,9564,70,30.05,CLOTHING,24/11/11,
800005651,*NPS (SHOES) LTD,9564,71,30.05,CLOTHING,24/11/11,
800005651,*NPS (SHOES) LTD,9564,72,30.05,CLOTHING,24/11/11,
800005651,*NPS (SHOES) LTD,9564,73,30.05,CLOTHING,24/11/11,
800005651,*NPS (SHOES) LTD,9564,74,30.05,CLOTHING,24/11/11,
800005651,*NPS (SHOES) LTD,9564,75,30.05,CLOTHING,24/11/11,
800005651,*NPS (SHOES) LTD,9564,76,30.05,CLOTHING,24/11/11,
800005651,*NPS (SHOES) LTD,9564,77,30.05,CLOTHING,24/11/11,
800005651,*NPS (SHOES) LTD,9564,78,30.05,CLOTHING,24/11/11,
800005651,*NPS (SHOES) LTD,9564,79,30.05,CLOTHING,24/11/11,
231111A,CITRIX SYSTEMS INTERNATIONAL,96544470,1,"4,987.50",PURCHASES - SOFTWARE,24/11/11,"4,987.50"
181111A,LIFT COMPONENTS LIMITED=======,A11004029,1,49.90,GENERAL CONSUMABLES,24/11/11,703.40
181111A,LIFT COMPONENTS LIMITED=======,A11004029,2,183.10,GENERAL CONSUMABLES,24/11/11,
181111A,LIFT COMPONENTS LIMITED=======,A11004029,3,201.40,GENERAL CONSUMABLES,24/11/11,
181111A,LIFT COMPONENTS LIMITED=======,A11004029,4,24.30,GENERAL CONSUMABLES,24/11/11,
181111A,LIFT COMPONENTS LIMITED=======,A11004029,5,94.75,GENERAL CONSUMABLES,24/11/11,
181111A,LIFT COMPONENTS LIMITED=======,A11004029,6,149.95,GENERAL CONSUMABLES,24/11/11,
181111C,THAMES WATER UTILITIES LTD====,CBA1129088,1,"1,082.00",CURRENT HYDRANT COSTS,24/11/11,"1,082.00"
181111C,THAMES WATER UTILITIES LTD====,CBA1129091,1,"1,082.00",CURRENT HYDRANT COSTS,24/11/11,"1,082.00"
181111C,THAMES WATER UTILITIES LTD====,CBA1129093,1,"1,082.00",CURRENT HYDRANT COSTS,24/11/11,"1,082.00"
181111C,THAMES WATER UTILITIES LTD====,CBA1129096,1,"1,082.00",CURRENT HYDRANT COSTS,24/11/11,"1,082.00"
181111C,THAMES WATER UTILITIES LTD====,CBA1129097,1,"1,082.00",CURRENT HYDRANT COSTS,24/11/11,"1,082.00"
181111C,THAMES WATER UTILITIES LTD====,CBA1129098,1,"1,082.00",CURRENT HYDRANT COSTS,24/11/11,"1,082.00"
181111C,THAMES WATER UTILITIES LTD====,CBA1129099,1,"1,082.00",HYDRANTS,24/11/11,"1,082.00"
181111C,THAMES WATER UTILITIES LTD====,CBA1129130,1,"1,082.00",HYDRANTS,24/11/11,"1,082.00"
181111C,THAMES WATER UTILITIES LTD====,CBA1129131,1,"1,082.00",HYDRANTS,24/11/11,"1,082.00"
181111C,THAMES WATER UTILITIES LTD====,CBA1129133,1,"1,082.00",HYDRANTS,24/11/11,"1,082.00"
181111C,THAMES WATER UTILITIES LTD====,CBA1129134,1,"1,082.00",HYDRANTS,24/11/11,"1,082.00"
181111C,THAMES WATER UTILITIES LTD====,CBA1129136,1,"1,082.00",HYDRANTS,24/11/11,"1,082.00"
181111C,THAMES WATER UTILITIES LTD====,CBA1129137,1,"1,082.00",HYDRANTS,24/11/11,"1,082.00"
181111C,THAMES WATER UTILITIES LTD====,CBA1129139,1,"1,082.00",HYDRANTS,24/11/11,"1,082.00"
181111C,THAMES WATER UTILITIES LTD====,CBA1129140,1,"1,082.00",HYDRANTS,24/11/11,"1,082.00"
181111C,THAMES WATER UTILITIES LTD====,CBA1129145,1,"1,082.00",HYDRANTS,24/11/11,"1,082.00"
181111C,THAMES WATER UTILITIES LTD====,CBA1129147,1,"1,082.00",HYDRANTS,24/11/11,"1,082.00"
181111C,THAMES WATER UTILITIES LTD====,CBA1129148,1,"1,082.00",HYDRANTS,24/11/11,"1,082.00"
181111C,THAMES WATER UTILITIES LTD====,CBA1129149,1,"1,082.00",HYDRANTS,24/11/11,"1,082.00"
181111C,THAMES WATER UTILITIES LTD====,CBA1129150,1,"1,082.00",CURRENT HYDRANT COSTS,24/11/11,"1,082.00"
